Council Name,Date,TransNo,Amount � (Excl VAT),Supplier name,Supplier Category,Expense Area,Expense Type,Expense Code
Royal Borough of Kingston,01/07/2023,90252573,"6,421.43",Claremont Care Services Ltd,SOCIAL SERVICES RESIDENTIAL,Adult Social Care & Health,Independent Placements,A56006
Royal Borough of Kingston,01/07/2023,90252578,"6,250.00",Claremont Care Services Ltd,SOCIAL SERVICES RESIDENTIAL,Adult Social Care & Health,Independent Placements,A56006
Royal Borough of Kingston,01/07/2023,90252784,"6,250.00",Claremont Care Services Ltd,SOCIAL SERVICES RESIDENTIAL,Adult Social Care & Health,Independent Placements,A56006
Royal Borough of Kingston,25/07/2023,90254311,"1,375.00",REDACTED - PERSONAL DATA,PLS LANDLORDS,Place,PSL Payments To Landlords,A22031
Royal Borough of Kingston,25/07/2023,90254363,"1,375.00",REDACTED - PERSONAL DATA,PLS LANDLORDS,Place,PSL Payments To Landlords,A22031
Royal Borough of Kingston,06/06/2023,90248141,500.00,REDACTED - PERSONAL DATA,GRANTS & EX GRATIA PAYMENTS,Adult Social Care & Health,"Grants, Contributions & Donations",A47005
Royal Borough of Kingston,25/07/2023,90254205,"1,097.00",REDACTED - PERSONAL DATA,PLS LANDLORDS,Place,PSL Payments To Landlords,A22031
Royal Borough of Kingston,25/07/2023,90254266,"1,125.00",REDACTED - PERSONAL DATA,PLS LANDLORDS,Place,PSL Payments To Landlords,A22031
Royal Borough of Kingston,25/07/2023,90254354,"2,300.00",REDACTED - PERSONAL DATA,PLS LANDLORDS,Place,PSL Payments To Landlords,A22031
Royal Borough of Kingston,25/07/2023,90254355,"2,300.00",REDACTED - PERSONAL DATA,PLS LANDLORDS,Place,PSL Payments To Landlords,A22031
Royal Borough of Kingston,25/07/2023,90254356,"2,300.00",REDACTED - PERSONAL DATA,PLS LANDLORDS,Place,PSL Payments To Landlords,A22031
Royal Borough of Kingston,25/07/2023,90254514,"2,300.00",REDACTED - PERSONAL DATA,PLS LANDLORDS,Place,PSL Payments To Landlords,A22031
Royal Borough of Kingston,25/07/2023,90254307,993.34,REDACTED - PERSONAL DATA,PLS LANDLORDS,Place,PSL Payments To Landlords,A22031
Royal Borough of Kingston,01/07/2023,90252626,"5,314.29",ABBEY 14LIMITED,SOCIAL SERVICES RESIDENTIAL,Adult Social Care & Health,Independent Placements,A56006
Royal Borough of Kingston,01/07/2023,90252474,"4,161.31",ABBEYFIELD,SOCIAL SERVICES RESIDENTIAL,Adult Social Care & Health,Independent Placements,A56006
Royal Borough of Kingston,01/07/2023,90252475,"4,161.31",ABBEYFIELD,SOCIAL SERVICES RESIDENTIAL,Adult Social Care & Health,Independent Placements,A56006
Royal Borough of Kingston,01/07/2023,90252479,"4,161.31",ABBEYFIELD,SOCIAL SERVICES RESIDENTIAL,Adult Social Care & Health,Independent Placements,A56006
Royal Borough of Kingston,01/07/2023,90252482,"3,865.08",ABBEYFIELD,SOCIAL SERVICES RESIDENTIAL,Adult Social Care & Health,Independent Placements,A56006
Royal Borough of Kingston,01/07/2023,90252483,"3,865.08",ABBEYFIELD,SOCIAL SERVICES RESIDENTIAL,Adult Social Care & Health,Independent Placements,A56006
Royal Borough of Kingston,01/07/2023,90252486,"3,865.08",ABBEYFIELD,SOCIAL SERVICES RESIDENTIAL,Adult Social Care & Health,Independent Placements,A56006
Royal Borough of Kingston,01/07/2023,90252489,"3,865.08",ABBEYFIELD,SOCIAL SERVICES RESIDENTIAL,Adult Social Care & Health,Independent Placements,A56006
Royal Borough of Kingston,01/07/2023,90252497,"4,161.31",ABBEYFIELD,SOCIAL SERVICES RESIDENTIAL,Adult Social Care & Health,Independent Placements,A56006
Royal Borough of Kingston,01/07/2023,90252502,"4,161.31",ABBEYFIELD,SOCIAL SERVICES RESIDENTIAL,Adult Social Care & Health,Independent Placements,A56006
Royal Borough of Kingston,01/07/2023,90252506,"4,161.31",ABBEYFIELD,SOCIAL SERVICES RESIDENTIAL,Adult Social Care & Health,Independent Placements,A56006
Royal Borough of Kingston,01/07/2023,90252521,"5,235.68",ABBEYFIELD,SOCIAL SERVICES RESIDENTIAL,Adult Social Care & Health,Independent Placements,A56006
Royal Borough of Kingston,01/07/2023,90252522,"4,161.31",ABBEYFIELD,SOCIAL SERVICES RESIDENTIAL,Adult Social Care & Health,Independent Placements,A56006
Royal Borough of Kingston,01/07/2023,90252526,"4,161.31",ABBEYFIELD,SOCIAL SERVICES RESIDENTIAL,Adult Social Care & Health,Independent Placements,A56006
Royal Borough of Kingston,01/07/2023,90252528,"4,161.31",ABBEYFIELD,SOCIAL SERVICES RESIDENTIAL,Adult Social Care & Health,Independent Placements,A56006
Royal Borough of Kingston,01/07/2023,90252532,"4,161.31",ABBEYFIELD,SOCIAL SERVICES RESIDENTIAL,Adult Social Care & Health,Independent Placements,A56006
Royal Borough of Kingston,01/07/2023,90252533,"4,161.31",ABBEYFIELD,SOCIAL SERVICES RESIDENTIAL,Adult Social Care & Health,Independent Placements,A56006
Royal Borough of Kingston,01/07/2023,90252549,"3,865.08",ABBEYFIELD,SOCIAL SERVICES RESIDENTIAL,Adult Social Care & Health,Independent Placements,A56006
Royal Borough of Kingston,01/07/2023,90252609,"4,161.31",ABBEYFIELD,SOCIAL SERVICES RESIDENTIAL,Adult Social Care & Health,Independent Placements,A56006
Royal Borough of Kingston,01/07/2023,90252627,"1,520.04",ABBEYFIELD,SOCIAL SERVICES RESIDENTIAL,Adult Social Care & Health,Independent Placements,A56006
Royal Borough of Kingston,01/07/2023,90252628,"1,688.93",ABBEYFIELD,SOCIAL SERVICES RESIDENTIAL,Adult Social Care & Health,Independent Placements,A56006
Royal Borough of Kingston,01/07/2023,90252634,"4,161.31",ABBEYFIELD,SOCIAL SERVICES RESIDENTIAL,Adult Social Care & Health,Independent Placements,A56006
Royal Borough of Kingston,01/07/2023,90252655,"4,161.31",ABBEYFIELD,SOCIAL SERVICES RESIDENTIAL,Adult Social Care & Health,Independent Placements,A56006
Royal Borough of Kingston,01/07/2023,90252659,506.68,ABBEYFIELD,SOCIAL SERVICES RESIDENTIAL,Adult Social Care & Health,Independent Placements,A56006
Royal Borough of Kingston,01/07/2023,90252671,"-2,742.96",ABBEYFIELD,SOCIAL SERVICES RESIDENTIAL,Adult Social Care & Health,Independent Placements,A56006
Royal Borough of Kingston,01/07/2023,90252672,"-3,740.40",ABBEYFIELD,SOCIAL SERVICES RESIDENTIAL,Adult Social Care & Health,Independent Placements,A56006
Royal Borough of Kingston,01/07/2023,90252685,"3,865.08",ABBEYFIELD,SOCIAL SERVICES RESIDENTIAL,Adult Social Care & Health,Independent Placements,A56006
Royal Borough of Kingston,01/07/2023,90254111,"6,032.33",ABC HILLINGDON LTD,ACCOMMODATION - OTHER,Adult Social Care & Health,Personal Budget - Third Party,A61019
Royal Borough of Kingston,14/06/2023,70048708,"4,250.00",Able Skills Ltd,SUNDRY SUPPLIER - FINANCE,Corporate & Communities,Street Lighting - Maintenance,A56083
Royal Borough of Kingston,25/07/2023,90254318,990.58,REDACTED - PERSONAL DATA,PLS LANDLORDS,Place,PSL Payments To Landlords,A22031
Royal Borough of Kingston,29/06/2023,70049311,"3,409.47",AC & MS LIMITED,LEGAL & PROFESSIONAL SERVICES,Housing Revenue Account,Asbestos Removal,C10000
Royal Borough of Kingston,29/06/2023,70049297,"1,440.00",ACCESS INDEPENDENT LIMITED,SOCIAL SERVICES - OTHER,Adult Social Care & Health,Other Private Contractors - Third Party,A56080
Royal Borough of Kingston,15/02/2023,70049561,"2,436.00",ACCESS INDEPENDENT LIMITED,SOCIAL SERVICES - OTHER,Adult Social Care & Health,Other Private Contractors - Third Party,A56080
Royal Borough of Kingston,25/07/2023,90254590,"1,047.00",Accountancy Services (New Malden) Limited,PLS LANDLORDS,Place,PSL Payments To Landlords,A22031
Royal Borough of Kingston,01/07/2023,90252710,"7,363.96",Achieve Together Limited,SOCIAL SERVICES - OTHER,Adult Social Care & Health,Independent Placements,A56006
Royal Borough of Kingston,01/07/2023,90252747,"4,977.27",Achieve Together Limited,SOCIAL SERVICES - OTHER,Adult Social Care & Health,Independent Placements,A56006
Royal Borough of Kingston,01/07/2023,90252774,"12,436.67",Achieve Together Limited,SOCIAL SERVICES - OTHER,Adult Social Care & Health,Independent Placements,A56006
Royal Borough of Kingston,03/07/2023,70049417,"2,718.00",ACHIEVING FOR CHILDREN LIMITED,LEGAL & PROFESSIONAL SERVICES,Adult Social Care & Health,"Grants, Contributions & Donations",A47005
Royal Borough of Kingston,06/07/2023,70049859,"6,156,876.36",ACHIEVING FOR CHILDREN LIMITED,LEGAL & PROFESSIONAL SERVICES,Childrens Services,Fixed Childrens Services Contract Strategic,A51019
Royal Borough of Kingston,24/03/2023,70050179,"3,825.06",ACHIEVING FOR CHILDREN LIMITED,LEGAL & PROFESSIONAL SERVICES,Adult Social Care & Health,Independent Placements,A56006
Royal Borough of Kingston,04/07/2023,70050095,"1,530.00",ADAM HOTEL MANAGEMENT LTD,ACCOMMODATION BED & BREAKFAST,Place,Bed & Breakfast,A56000
Royal Borough of Kingston,04/07/2023,70050097,"1,050.00",ADAM HOTEL MANAGEMENT LTD,ACCOMMODATION BED & BREAKFAST,Place,Bed & Breakfast,A56000
Royal Borough of Kingston,04/07/2023,70050111,"1,530.00",ADAM HOTEL MANAGEMENT LTD,ACCOMMODATION BED & BREAKFAST,Place,Bed & Breakfast,A56000
Royal Borough of Kingston,04/07/2023,70050118,"1,050.00",ADAM HOTEL MANAGEMENT LTD,ACCOMMODATION BED & BREAKFAST,Place,Bed & Breakfast,A56000
Royal Borough of Kingston,04/07/2023,70050119,"1,050.00",ADAM HOTEL MANAGEMENT LTD,ACCOMMODATION BED & BREAKFAST,Place,Bed & Breakfast,A56000
Royal Borough of Kingston,04/07/2023,70050121,"1,260.00",ADAM HOTEL MANAGEMENT LTD,ACCOMMODATION BED & BREAKFAST,Place,Bed & Breakfast,A56000
Royal Borough of Kingston,04/07/2023,70050122,"1,050.00",ADAM HOTEL MANAGEMENT LTD,ACCOMMODATION BED & BREAKFAST,Place,Bed & Breakfast,A56000
Royal Borough of Kingston,28/06/2023,70049558,"12,406.17",ADAM HTT LIMITED ,TAXI AND COACH HIRE,Adult Social Care & Health,Home To School Transport Taxis,A33016
Royal Borough of Kingston,05/07/2023,70049806,"16,947.25",ADAM HTT LIMITED ,TAXI AND COACH HIRE,Adult Social Care & Health,Home To School Transport Taxis,A33016
Royal Borough of Kingston,12/07/2023,70050152,"26,671.45",ADAM HTT LIMITED ,TAXI AND COACH HIRE,Adult Social Care & Health,Home To School Transport Taxis,A33016
Royal Borough of Kingston,19/07/2023,70050695,"13,940.78",ADAM HTT LIMITED ,TAXI AND COACH HIRE,Adult Social Care & Health,Home To School Transport Taxis,A33016
Royal Borough of Kingston,29/06/2023,70049298,960.00,ADVANCED TREE SERVICES LIMITED,CONSTRUCTION INDUSTRY,Housing Revenue Account,Maintenance of trees,A28003
Royal Borough of Kingston,28/06/2023,70049334,"4,100.00",ADVANCED TREE SERVICES LIMITED,CONSTRUCTION INDUSTRY,Corporate & Communities,Grounds Maintenance Contract,A28000
Royal Borough of Kingston,12/07/2023,70050147,"3,500.00",ADVANCED TREE SERVICES LIMITED,CONSTRUCTION INDUSTRY,Corporate & Communities,Maintenance of trees,A28003
Royal Borough of Kingston,12/07/2023,70050147,420.00,ADVANCED TREE SERVICES LIMITED,CONSTRUCTION INDUSTRY,Housing Revenue Account,Tree Works,A56042
Royal Borough of Kingston,20/07/2023,70050885,"10,585.00",ADVANCED TREE SERVICES LIMITED,CONSTRUCTION INDUSTRY,Corporate & Communities,Maintenance of trees,A28003
Royal Borough of Kingston,24/07/2023,70050906,450.00,ADVANCED TREE SERVICES LIMITED,CONSTRUCTION INDUSTRY,Corporate & Communities,Maintenance of trees,A28003
Royal Borough of Kingston,24/03/2023,90252279,777.60,ADVANTAGE DAY NURSERY LTD,ACADEMIC INSTNS - OTHER,Schools,PVI Providers,A60014
Royal Borough of Kingston,01/07/2023,70050169,"71,718.00",Age Concern Kingston upon Thames ,GRANTS & EX GRATIA PAYMENTS,Adult Social Care & Health,Payments to Voluntary Organisations,A54005
Royal Borough of Kingston,01/07/2023,90253664,885.71,Age Concern Kingston upon Thames ,GRANTS & EX GRATIA PAYMENTS,Adult Social Care & Health,Personal Budget - Third Party,A61019
Royal Borough of Kingston,01/07/2023,90253670,708.57,Age Concern Kingston upon Thames ,GRANTS & EX GRATIA PAYMENTS,Adult Social Care & Health,Personal Budget - Third Party,A61019
Royal Borough of Kingston,01/07/2023,90252553,"6,864.29",AIMS CARE LIMITED,SOCIAL SERVICES RESIDENTIAL,Adult Social Care & Health,Independent Placements,A56006
Royal Borough of Kingston,06/06/2023,90248137,500.00,REDACTED - PERSONAL DATA,GRANTS & EX GRATIA PAYMENTS,Adult Social Care & Health,"Grants, Contributions & Donations",A47005
Royal Borough of Kingston,06/06/2023,90248138,500.00,REDACTED - PERSONAL DATA,CHARITIES & VOLUNTARY ORGNS,Adult Social Care & Health,"Grants, Contributions & Donations",A47005
Royal Borough of Kingston,25/07/2023,90254390,"1,094.00",REDACTED - PERSONAL DATA,LANDLORDS,Place,PSL Payments To Landlords,A22031
Royal Borough of Kingston,06/07/2023,90249340,"162,395.61",ALEXANDRA SCHOOL,SCHOOL FUNDS,Schools,Miscellaneous Expenses,A49000
Royal Borough of Kingston,18/07/2023,90251445,"4,000.00",ALEXANDRA SCHOOL,SCHOOL FUNDS,Schools,Miscellaneous Expenses,A49000
Royal Borough of Kingston,25/07/2023,90254578,"1,050.00",REDACTED - PERSONAL DATA,PLS LANDLORDS,Place,PSL Payments To Landlords,A22031
Royal Borough of Kingston,25/07/2023,90254216,"1,314.00",REDACTED - PERSONAL DATA,PLS LANDLORDS,Place,PSL Payments To Landlords,A22031
Royal Borough of Kingston,28/06/2023,70049637,460.70,ALLIED PUBLICITY SERVICES (MANCHESTER) LTD,PRESS & PUBLICITY,Adult Social Care & Health,Other Private Contractors - Third Party,A56080
Royal Borough of Kingston,30/06/2023,70049755,891.87,ALLPAY LIMITED,FINANCIAL / INSURANCE INSTNS,Adult Social Care & Health,Bank Fees & Charges,A44250
Royal Borough of Kingston,12/06/2023,90248239,567.24,ALPENBEST LTD,SOCIAL SERVICES DAY CARE,Adult Social Care & Health,Homecare - new framework,A56127
Royal Borough of Kingston,12/06/2023,90248243,576.24,ALPENBEST LTD,SOCIAL SERVICES DAY CARE,Adult Social Care & Health,Homecare - new framework,A56127
Royal Borough of Kingston,12/06/2023,90248256,"1,512.64",ALPENBEST LTD,SOCIAL SERVICES DAY CARE,Adult Social Care & Health,Homecare - new framework,A56127
Royal Borough of Kingston,12/06/2023,90248271,630.27,ALPENBEST LTD,SOCIAL SERVICES DAY CARE,Adult Social Care & Health,Homecare - new framework,A56127
Royal Borough of Kingston,12/06/2023,90248376,531.22,ALPENBEST LTD,SOCIAL SERVICES DAY CARE,Adult Social Care & Health,Homecare - new framework,A56127
Royal Borough of Kingston,12/06/2023,90248387,567.24,ALPENBEST LTD,SOCIAL SERVICES DAY CARE,Adult Social Care & Health,Homecare - new framework,A56127
Royal Borough of Kingston,12/06/2023,90248405,567.24,ALPENBEST LTD,SOCIAL SERVICES DAY CARE,Adult Social Care & Health,Homecare - new framework,A56127
Royal Borough of Kingston,12/06/2023,90248415,819.35,ALPENBEST LTD,SOCIAL SERVICES DAY CARE,Adult Social Care & Health,Homecare - new framework,A56127
Royal Borough of Kingston,12/06/2023,90248444,567.24,ALPENBEST LTD,SOCIAL SERVICES DAY CARE,Adult Social Care & Health,Homecare - new framework,A56127
Royal Borough of Kingston,12/06/2023,90248455,630.27,ALPENBEST LTD,SOCIAL SERVICES DAY CARE,Adult Social Care & Health,Homecare - new framework,A56127
Royal Borough of Kingston,12/06/2023,90248458,567.24,ALPENBEST LTD,SOCIAL SERVICES DAY CARE,Adult Social Care & Health,Homecare - new framework,A56127
Royal Borough of Kingston,12/06/2023,90248470,630.27,ALPENBEST LTD,SOCIAL SERVICES DAY CARE,Adult Social Care & Health,Homecare - new framework,A56127
Royal Borough of Kingston,12/06/2023,90248571,819.35,ALPENBEST LTD,SOCIAL SERVICES DAY CARE,Adult Social Care & Health,Homecare - new framework,A56127
Royal Borough of Kingston,12/06/2023,90248599,567.24,ALPENBEST LTD,SOCIAL SERVICES DAY CARE,Adult Social Care & Health,Homecare - new framework,A56127
Royal Borough of Kingston,12/06/2023,90248606,756.32,ALPENBEST LTD,SOCIAL SERVICES DAY CARE,Adult Social Care & Health,Homecare - new framework,A56127
Royal Borough of Kingston,12/06/2023,90248627,765.33,ALPENBEST LTD,SOCIAL SERVICES DAY CARE,Adult Social Care & Health,Homecare - new framework,A56127
Royal Borough of Kingston,12/06/2023,90248629,630.27,ALPENBEST LTD,SOCIAL SERVICES DAY CARE,Adult Social Care & Health,Homecare - new framework,A56127
Royal Borough of Kingston,12/06/2023,90248658,621.26,ALPENBEST LTD,SOCIAL SERVICES DAY CARE,Adult Social Care & Health,Homecare - new framework,A56127
Royal Borough of Kingston,12/06/2023,90248668,630.27,ALPENBEST LTD,SOCIAL SERVICES DAY CARE,Adult Social Care & Health,Homecare - new framework,A56127
Royal Borough of Kingston,12/06/2023,90248673,747.32,ALPENBEST LTD,SOCIAL SERVICES DAY CARE,Adult Social Care & Health,Homecare - new framework,A56127
Royal Borough of Kingston,12/06/2023,90248695,630.27,ALPENBEST LTD,SOCIAL SERVICES DAY CARE,Adult Social Care & Health,Homecare - new framework,A56127
Royal Borough of Kingston,12/06/2023,90248753,504.21,ALPENBEST LTD,SOCIAL SERVICES DAY CARE,Adult Social Care & Health,Homecare - new framework,A56127
Royal Borough of Kingston,12/06/2023,90248790,630.27,ALPENBEST LTD,SOCIAL SERVICES DAY CARE,Adult Social Care & Health,Homecare - new framework,A56127
Royal Borough of Kingston,12/06/2023,90249239,630.27,ALPENBEST LTD,SOCIAL SERVICES DAY CARE,Adult Social Care & Health,Personal Budget - Third Party,A61019
Royal Borough of Kingston,19/06/2023,90250593,567.24,ALPENBEST LTD,SOCIAL SERVICES DAY CARE,Adult Social Care & Health,Homecare - new framework,A56127
Royal Borough of Kingston,19/06/2023,90250597,576.24,ALPENBEST LTD,SOCIAL SERVICES DAY CARE,Adult Social Care & Health,Homecare - new framework,A56127
Royal Borough of Kingston,19/06/2023,90250611,"1,512.64",ALPENBEST LTD,SOCIAL SERVICES DAY CARE,Adult Social Care & Health,Homecare - new framework,A56127
Royal Borough of Kingston,19/06/2023,90250626,630.27,ALPENBEST LTD,SOCIAL SERVICES DAY CARE,Adult Social Care & Health,Homecare - new framework,A56127
Royal Borough of Kingston,19/06/2023,90250749,567.24,ALPENBEST LTD,SOCIAL SERVICES DAY CARE,Adult Social Care & Health,Homecare - new framework,A56127
Royal Borough of Kingston,19/06/2023,90250765,567.24,ALPENBEST LTD,SOCIAL SERVICES DAY CARE,Adult Social Care & Health,Homecare - new framework,A56127
Royal Borough of Kingston,19/06/2023,90250776,819.35,ALPENBEST LTD,SOCIAL SERVICES DAY CARE,Adult Social Care & Health,Homecare - new framework,A56127
Royal Borough of Kingston,19/06/2023,90250824,567.24,ALPENBEST LTD,SOCIAL SERVICES DAY CARE,Adult Social Care & Health,Homecare - new framework,A56127
Royal Borough of Kingston,19/06/2023,90250835,639.27,ALPENBEST LTD,SOCIAL SERVICES DAY CARE,Adult Social Care & Health,Homecare - new framework,A56127
Royal Borough of Kingston,19/06/2023,90250837,567.24,ALPENBEST LTD,SOCIAL SERVICES DAY CARE,Adult Social Care & Health,Homecare - new framework,A56127
Royal Borough of Kingston,19/06/2023,90250949,819.35,ALPENBEST LTD,SOCIAL SERVICES DAY CARE,Adult Social Care & Health,Homecare - new framework,A56127
Royal Borough of Kingston,19/06/2023,90250975,567.24,ALPENBEST LTD,SOCIAL SERVICES DAY CARE,Adult Social Care & Health,Homecare - new framework,A56127
Royal Borough of Kingston,19/06/2023,90251006,756.32,ALPENBEST LTD,SOCIAL SERVICES DAY CARE,Adult Social Care & Health,Homecare - new framework,A56127
Royal Borough of Kingston,19/06/2023,90251028,720.31,ALPENBEST LTD,SOCIAL SERVICES DAY CARE,Adult Social Care & Health,Homecare - new framework,A56127
Royal Borough of Kingston,19/06/2023,90251029,630.27,ALPENBEST LTD,SOCIAL SERVICES DAY CARE,Adult Social Care & Health,Homecare - new framework,A56127
Royal Borough of Kingston,19/06/2023,90251057,621.26,ALPENBEST LTD,SOCIAL SERVICES DAY CARE,Adult Social Care & Health,Homecare - new framework,A56127
Royal Borough of Kingston,19/06/2023,90251066,630.27,ALPENBEST LTD,SOCIAL SERVICES DAY CARE,Adult Social Care & Health,Homecare - new framework,A56127
Royal Borough of Kingston,19/06/2023,90251071,747.32,ALPENBEST LTD,SOCIAL SERVICES DAY CARE,Adult Social Care & Health,Homecare - new framework,A56127
Royal Borough of Kingston,19/06/2023,90251095,630.27,ALPENBEST LTD,SOCIAL SERVICES DAY CARE,Adult Social Care & Health,Homecare - new framework,A56127
Royal Borough of Kingston,19/06/2023,90251143,504.21,ALPENBEST LTD,SOCIAL SERVICES DAY CARE,Adult Social Care & Health,Homecare - new framework,A56127
Royal Borough of Kingston,19/06/2023,90251176,630.27,ALPENBEST LTD,SOCIAL SERVICES DAY CARE,Adult Social Care & Health,Homecare - new framework,A56127
Royal Borough of Kingston,19/06/2023,90251236,630.27,ALPENBEST LTD,SOCIAL SERVICES DAY CARE,Adult Social Care & Health,Personal Budget - Third Party,A61019
Royal Borough of Kingston,26/06/2023,90251501,567.24,ALPENBEST LTD,SOCIAL SERVICES DAY CARE,Adult Social Care & Health,Homecare - new framework,A56127
Royal Borough of Kingston,26/06/2023,90251505,576.24,ALPENBEST LTD,SOCIAL SERVICES DAY CARE,Adult Social Care & Health,Homecare - new framework,A56127
Royal Borough of Kingston,26/06/2023,90251519,"1,512.64",ALPENBEST LTD,SOCIAL SERVICES DAY CARE,Adult Social Care & Health,Homecare - new framework,A56127
Royal Borough of Kingston,26/06/2023,90251534,630.27,ALPENBEST LTD,SOCIAL SERVICES DAY CARE,Adult Social Care & Health,Homecare - new framework,A56127
Royal Borough of Kingston,26/06/2023,90251691,567.24,ALPENBEST LTD,SOCIAL SERVICES DAY CARE,Adult Social Care & Health,Homecare - new framework,A56127
Royal Borough of Kingston,26/06/2023,90251704,567.24,ALPENBEST LTD,SOCIAL SERVICES DAY CARE,Adult Social Care & Health,Homecare - new framework,A56127
Royal Borough of Kingston,26/06/2023,90251717,819.35,ALPENBEST LTD,SOCIAL SERVICES DAY CARE,Adult Social Care & Health,Homecare - new framework,A56127
Royal Borough of Kingston,26/06/2023,90251734,504.21,ALPENBEST LTD,SOCIAL SERVICES DAY CARE,Adult Social Care & Health,Homecare - new framework,A56127
Royal Borough of Kingston,26/06/2023,90251751,549.23,ALPENBEST LTD,SOCIAL SERVICES DAY CARE,Adult Social Care & Health,Homecare - new framework,A56127
Royal Borough of Kingston,26/06/2023,90251762,630.27,ALPENBEST LTD,SOCIAL SERVICES DAY CARE,Adult Social Care & Health,Homecare - new framework,A56127
Royal Borough of Kingston,26/06/2023,90251764,567.24,ALPENBEST LTD,SOCIAL SERVICES DAY CARE,Adult Social Care & Health,Homecare - new framework,A56127
Royal Borough of Kingston,26/06/2023,90251866,819.35,ALPENBEST LTD,SOCIAL SERVICES DAY CARE,Adult Social Care & Health,Homecare - new framework,A56127
Royal Borough of Kingston,26/06/2023,90251903,585.25,ALPENBEST LTD,SOCIAL SERVICES DAY CARE,Adult Social Care & Health,Homecare - new framework,A56127
Royal Borough of Kingston,26/06/2023,90251911,756.32,ALPENBEST LTD,SOCIAL SERVICES DAY CARE,Adult Social Care & Health,Homecare - new framework,A56127
Royal Borough of Kingston,26/06/2023,90251933,630.27,ALPENBEST LTD,SOCIAL SERVICES DAY CARE,Adult Social Care & Health,Homecare - new framework,A56127
Royal Borough of Kingston,26/06/2023,90251961,621.26,ALPENBEST LTD,SOCIAL SERVICES DAY CARE,Adult Social Care & Health,Homecare - new framework,A56127
Royal Borough of Kingston,26/06/2023,90251970,630.27,ALPENBEST LTD,SOCIAL SERVICES DAY CARE,Adult Social Care & Health,Homecare - new framework,A56127
Royal Borough of Kingston,26/06/2023,90251975,747.32,ALPENBEST LTD,SOCIAL SERVICES DAY CARE,Adult Social Care & Health,Homecare - new framework,A56127
Royal Borough of Kingston,26/06/2023,90251999,630.27,ALPENBEST LTD,SOCIAL SERVICES DAY CARE,Adult Social Care & Health,Homecare - new framework,A56127
Royal Borough of Kingston,26/06/2023,90252051,504.21,ALPENBEST LTD,SOCIAL SERVICES DAY CARE,Adult Social Care & Health,Homecare - new framework,A56127
Royal Borough of Kingston,26/06/2023,90252083,630.27,ALPENBEST LTD,SOCIAL SERVICES DAY CARE,Adult Social Care & Health,Homecare - new framework,A56127
Royal Borough of Kingston,26/06/2023,90252093,630.27,ALPENBEST LTD,SOCIAL SERVICES DAY CARE,Adult Social Care & Health,Homecare - new framework,A56127
Royal Borough of Kingston,26/06/2023,90252147,630.27,ALPENBEST LTD,SOCIAL SERVICES DAY CARE,Adult Social Care & Health,Personal Budget - Third Party,A61019
Royal Borough of Kingston,03/07/2023,90253085,567.24,ALPENBEST LTD,SOCIAL SERVICES DAY CARE,Adult Social Care & Health,Homecare - new framework,A56127
Royal Borough of Kingston,03/07/2023,90253089,576.24,ALPENBEST LTD,SOCIAL SERVICES DAY CARE,Adult Social Care & Health,Homecare - new framework,A56127
Royal Borough of Kingston,03/07/2023,90253103,"1,512.64",ALPENBEST LTD,SOCIAL SERVICES DAY CARE,Adult Social Care & Health,Homecare - new framework,A56127
Royal Borough of Kingston,03/07/2023,90253117,630.27,ALPENBEST LTD,SOCIAL SERVICES DAY CARE,Adult Social Care & Health,Homecare - new framework,A56127
Royal Borough of Kingston,03/07/2023,90253227,567.24,ALPENBEST LTD,SOCIAL SERVICES DAY CARE,Adult Social Care & Health,Homecare - new framework,A56127
Royal Borough of Kingston,03/07/2023,90253240,567.24,ALPENBEST LTD,SOCIAL SERVICES DAY CARE,Adult Social Care & Health,Homecare - new framework,A56127
Royal Borough of Kingston,03/07/2023,90253251,819.35,ALPENBEST LTD,SOCIAL SERVICES DAY CARE,Adult Social Care & Health,Homecare - new framework,A56127
Royal Borough of Kingston,03/07/2023,90253267,504.21,ALPENBEST LTD,SOCIAL SERVICES DAY CARE,Adult Social Care & Health,Homecare - new framework,A56127
Royal Borough of Kingston,03/07/2023,90253286,567.24,ALPENBEST LTD,SOCIAL SERVICES DAY CARE,Adult Social Care & Health,Homecare - new framework,A56127
Royal Borough of Kingston,03/07/2023,90253298,639.27,ALPENBEST LTD,SOCIAL SERVICES DAY CARE,Adult Social Care & Health,Homecare - new framework,A56127
Royal Borough of Kingston,03/07/2023,90253300,567.24,ALPENBEST LTD,SOCIAL SERVICES DAY CARE,Adult Social Care & Health,Homecare - new framework,A56127
Royal Borough of Kingston,03/07/2023,90253403,819.35,ALPENBEST LTD,SOCIAL SERVICES DAY CARE,Adult Social Care & Health,Homecare - new framework,A56127
Royal Borough of Kingston,03/07/2023,90253438,756.32,ALPENBEST LTD,SOCIAL SERVICES DAY CARE,Adult Social Care & Health,Homecare - new framework,A56127
Royal Borough of Kingston,03/07/2023,90253460,630.27,ALPENBEST LTD,SOCIAL SERVICES DAY CARE,Adult Social Care & Health,Homecare - new framework,A56127
Royal Borough of Kingston,03/07/2023,90253502,630.27,ALPENBEST LTD,SOCIAL SERVICES DAY CARE,Adult Social Care & Health,Homecare - new framework,A56127
Royal Borough of Kingston,03/07/2023,90253507,747.32,ALPENBEST LTD,SOCIAL SERVICES DAY CARE,Adult Social Care & Health,Homecare - new framework,A56127
Royal Borough of Kingston,03/07/2023,90253531,630.27,ALPENBEST LTD,SOCIAL SERVICES DAY CARE,Adult Social Care & Health,Homecare - new framework,A56127
Royal Borough of Kingston,03/07/2023,90253579,504.21,ALPENBEST LTD,SOCIAL SERVICES DAY CARE,Adult Social Care & Health,Homecare - new framework,A56127
Royal Borough of Kingston,03/07/2023,90253612,630.27,ALPENBEST LTD,SOCIAL SERVICES DAY CARE,Adult Social Care & Health,Homecare - new framework,A56127
Royal Borough of Kingston,03/07/2023,90253623,630.27,ALPENBEST LTD,SOCIAL SERVICES DAY CARE,Adult Social Care & Health,Homecare - new framework,A56127
Royal Borough of Kingston,03/07/2023,90254049,630.27,ALPENBEST LTD,SOCIAL SERVICES DAY CARE,Adult Social Care & Health,Personal Budget - Third Party,A61019
Royal Borough of Kingston,25/07/2023,90254197,"1,136.00",REDACTED - PERSONAL DATA,PLS LANDLORDS,Place,PSL Payments To Landlords,A22031
Royal Borough of Kingston,30/06/2023,70049505,"2,482.14",ANA TREATMENT CENTRES LTD,SOCIAL SERVICES RESIDENTIAL,Adult Social Care & Health,Independent Placements,A56006
Royal Borough of Kingston,30/06/2023,70049506,"2,978.57",ANA TREATMENT CENTRES LTD,SOCIAL SERVICES RESIDENTIAL,Adult Social Care & Health,Independent Placements,A56006
Royal Borough of Kingston,25/07/2023,90254552,"1,383.33",REDACTED - PERSONAL DATA,PLS LANDLORDS,Place,PSL Payments To Landlords,A22031
Royal Borough of Kingston,25/07/2023,90254530,"1,314.00",REDACTED - PERSONAL DATA,PLS LANDLORDS,Place,PSL Payments To Landlords,A22031
Royal Borough of Kingston,25/07/2023,90254454,"1,094.00",REDACTED - PERSONAL DATA,PLS LANDLORDS,Place,PSL Payments To Landlords,A22031
Royal Borough of Kingston,21/02/2023,70049283,"54,660.71",ANGLIAN WATER BUSINESS NATIONAL LTD,UTILITIES,Corporate & Communities,Water Services,A24005
Royal Borough of Kingston,18/12/2022,70049284,"1,970.87",ANGLIAN WATER BUSINESS NATIONAL LTD,UTILITIES,Corporate & Communities,Water Services,A24005
Royal Borough of Kingston,18/06/2023,70049440,644.56,ANGLIAN WATER BUSINESS NATIONAL LTD,UTILITIES,Housing Revenue Account,Water Services,A24005
Royal Borough of Kingston,18/06/2023,70049441,875.27,ANGLIAN WATER BUSINESS NATIONAL LTD,UTILITIES,Housing Revenue Account,Water Services,A24005
Royal Borough of Kingston,18/06/2023,70049441,337.67,ANGLIAN WATER BUSINESS NATIONAL LTD,UTILITIES,Housing Revenue Account,Water Services,A24005
Royal Borough of Kingston,18/06/2023,70049444,"6,661.28",ANGLIAN WATER BUSINESS NATIONAL LTD,UTILITIES,Place,Water Services,A24005
Royal Borough of Kingston,05/01/2023,70049445,"5,950.00",ANGLIAN WATER BUSINESS NATIONAL LTD,UTILITIES,Place,Water Services,A24005
Royal Borough of Kingston,18/06/2023,70049579,956.28,ANGLIAN WATER BUSINESS NATIONAL LTD,UTILITIES,Corporate & Communities,Water Services,A24005
Royal Borough of Kingston,18/06/2023,70049829,"1,360.26",ANGLIAN WATER BUSINESS NATIONAL LTD,UTILITIES,Housing Revenue Account,Water Services,A24005
Royal Borough of Kingston,18/05/2023,70049891,552.13,ANGLIAN WATER BUSINESS NATIONAL LTD,UTILITIES,Corporate & Communities,Water Services,A24005
Royal Borough of Kingston,18/05/2023,70049892,"6,349.90",ANGLIAN WATER BUSINESS NATIONAL LTD,UTILITIES,Place,Water Services,A24005
Royal Borough of Kingston,25/07/2023,90254226,"1,094.00",REDACTED - PERSONAL DATA,PLS LANDLORDS,Place,PSL Payments To Landlords,A22031
Royal Borough of Kingston,25/07/2023,90254575,"1,047.00",REDACTED - PERSONAL DATA,PLS LANDLORDS,Place,PSL Payments To Landlords,A22031
Royal Borough of Kingston,03/07/2023,70049344,"1,110.00",AP RENTAL INC LTD,LANDLORDS,Adult Social Care & Health,Housing Benefit - Rent Allowances -Private Tenants Only,A62009
Royal Borough of Kingston,03/07/2023,70049345,"1,060.00",AP RENTAL INC LTD,LANDLORDS,Adult Social Care & Health,Housing Benefit - Rent Allowances -Private Tenants Only,A62009
Royal Borough of Kingston,03/07/2023,70049346,900.00,AP RENTAL INC LTD,LANDLORDS,Adult Social Care & Health,Housing Benefit - Rent Allowances -Private Tenants Only,A62009
Royal Borough of Kingston,03/07/2023,70049350,"1,260.00",AP RENTAL INC LTD,LANDLORDS,Adult Social Care & Health,Housing Benefit - Rent Allowances -Private Tenants Only,A62009
Royal Borough of Kingston,03/07/2023,70049351,"1,225.00",AP RENTAL INC LTD,LANDLORDS,Adult Social Care & Health,Housing Benefit - Rent Allowances -Private Tenants Only,A62009
Royal Borough of Kingston,30/06/2023,70050020,"1,320.00",APEX HOUSING SOLUTIONS LTD,ACCOMMODATION BED & BREAKFAST,Place,Bed & Breakfast,A56000
Royal Borough of Kingston,30/06/2023,70050021,"1,740.00",APEX HOUSING SOLUTIONS LTD,ACCOMMODATION BED & BREAKFAST,Place,Bed & Breakfast,A56000
Royal Borough of Kingston,30/06/2023,70050022,"1,617.00",APEX HOUSING SOLUTIONS LTD,ACCOMMODATION BED & BREAKFAST,Place,Bed & Breakfast,A56000
Royal Borough of Kingston,30/06/2023,70050023,"1,650.00",APEX HOUSING SOLUTIONS LTD,ACCOMMODATION BED & BREAKFAST,Place,Bed & Breakfast,A56000
Royal Borough of Kingston,30/06/2023,70050024,"1,650.00",APEX HOUSING SOLUTIONS LTD,ACCOMMODATION BED & BREAKFAST,Place,Bed & Breakfast,A56000
Royal Borough of Kingston,30/06/2023,70050025,"1,617.00",APEX HOUSING SOLUTIONS LTD,ACCOMMODATION BED & BREAKFAST,Place,Bed & Breakfast,A56000
Royal Borough of Kingston,30/06/2023,70050026,"2,100.00",APEX HOUSING SOLUTIONS LTD,ACCOMMODATION BED & BREAKFAST,Place,Bed & Breakfast,A56000
Royal Borough of Kingston,30/06/2023,70050027,"2,070.00",APEX HOUSING SOLUTIONS LTD,ACCOMMODATION BED & BREAKFAST,Place,Bed & Breakfast,A56000
Royal Borough of Kingston,30/06/2023,70050028,"1,650.00",APEX HOUSING SOLUTIONS LTD,ACCOMMODATION BED & BREAKFAST,Place,Bed & Breakfast,A56000
Royal Borough of Kingston,30/06/2023,70050029,"1,650.00",APEX HOUSING SOLUTIONS LTD,ACCOMMODATION BED & BREAKFAST,Place,Bed & Breakfast,A56000
Royal Borough of Kingston,30/06/2023,70050030,"1,557.00",APEX HOUSING SOLUTIONS LTD,ACCOMMODATION BED & BREAKFAST,Place,Bed & Breakfast,A56000
Royal Borough of Kingston,30/06/2023,70050033,"1,740.00",APEX HOUSING SOLUTIONS LTD,ACCOMMODATION BED & BREAKFAST,Place,Bed & Breakfast,A56000
Royal Borough of Kingston,30/06/2023,70050034,"1,497.00",APEX HOUSING SOLUTIONS LTD,ACCOMMODATION BED & BREAKFAST,Place,Bed & Breakfast,A56000
Royal Borough of Kingston,30/06/2023,70050035,"1,740.00",APEX HOUSING SOLUTIONS LTD,ACCOMMODATION BED & BREAKFAST,Place,Bed & Breakfast,A56000
Royal Borough of Kingston,30/06/2023,70050036,"1,740.00",APEX HOUSING SOLUTIONS LTD,ACCOMMODATION BED & BREAKFAST,Place,Bed & Breakfast,A56000
Royal Borough of Kingston,30/06/2023,70050037,"1,617.00",APEX HOUSING SOLUTIONS LTD,ACCOMMODATION BED & BREAKFAST,Place,Bed & Breakfast,A56000
Royal Borough of Kingston,30/06/2023,70050038,"2,280.00",APEX HOUSING SOLUTIONS LTD,ACCOMMODATION BED & BREAKFAST,Place,Bed & Breakfast,A56000
Royal Borough of Kingston,30/06/2023,70050039,"1,350.00",APEX HOUSING SOLUTIONS LTD,ACCOMMODATION BED & BREAKFAST,Place,Bed & Breakfast,A56000
Royal Borough of Kingston,30/06/2023,70050040,"2,100.00",APEX HOUSING SOLUTIONS LTD,ACCOMMODATION BED & BREAKFAST,Place,Bed & Breakfast,A56000
Royal Borough of Kingston,30/06/2023,70050052,"1,200.00",APEX HOUSING SOLUTIONS LTD,ACCOMMODATION BED & BREAKFAST,Place,Bed & Breakfast,A56000
Royal Borough of Kingston,30/06/2023,70050055,"1,557.00",APEX HOUSING SOLUTIONS LTD,ACCOMMODATION BED & BREAKFAST,Place,Bed & Breakfast,A56000
Royal Borough of Kingston,30/06/2023,70050058,"1,650.00",APEX HOUSING SOLUTIONS LTD,ACCOMMODATION BED & BREAKFAST,Place,Bed & Breakfast,A56000
Royal Borough of Kingston,30/06/2023,70050092,"1,497.00",APEX HOUSING SOLUTIONS LTD,ACCOMMODATION BED & BREAKFAST,Place,Bed & Breakfast,A56000
Royal Borough of Kingston,30/06/2023,70050093,"3,150.00",APEX HOUSING SOLUTIONS LTD,ACCOMMODATION BED & BREAKFAST,Place,Bed & Breakfast,A56000
Royal Borough of Kingston,28/02/2023,70049287,"10,937.00",AQUAVENT LIMITED,BUILDING MNTCE - SERVICES,Housing Revenue Account,Water Testing & Treatment,A20037
Royal Borough of Kingston,01/07/2023,90252775,"6,618.94",ASHCROFT CARE SERVICES LIMITED,SOCIAL SERVICES RESIDENTIAL,Adult Social Care & Health,Independent Placements,A56006
Royal Borough of Kingston,01/07/2023,90254160,-534.97,ASHCROFT CARE SERVICES LIMITED,SOCIAL SERVICES RESIDENTIAL,Adult Social Care & Health,Financially Assessed Contributions clients � Non VAT,A92047
Royal Borough of Kingston,01/07/2023,90253987,"1,000.06",ASHINGTON HOUSE LTD,SOCIAL SERVICES RESIDENTIAL,Adult Social Care & Health,Personal Budget - Third Party,A61019
Royal Borough of Kingston,30/06/2023,70050872,"6,967.70",ASHPRI LIMITED,SOCIAL SERVICES - OTHER,Adult Social Care & Health,Other Private Contractors - Third Party,A56080
Royal Borough of Kingston,01/07/2023,90253928,"1,416.70",ASHPRIME PROPERTIES LTD,SOCIAL SERVICES RESIDENTIAL,Adult Social Care & Health,Personal Budget - Third Party,A61019
Royal Borough of Kingston,28/06/2023,70049278,"4,500.00",REDACTED - PERSONAL DATA,PLS LANDLORDS,Place,Housing Incentives,A62025
Royal Borough of Kingston,25/07/2023,90254463,"1,595.92",REDACTED - PERSONAL DATA,PLS LANDLORDS,Place,PSL Payments To Landlords,A22031
Royal Borough of Kingston,01/07/2023,90253973,"2,788.27",Aspirations Care Ltd,SOCIAL SERVICES - OTHER,Adult Social Care & Health,Personal Budget - Third Party,A61019
Royal Borough of Kingston,01/07/2023,90252605,"4,098.20",ASPREY HEALTHCARE LTD,SOCIAL SERVICES RESIDENTIAL,Adult Social Care & Health,Independent Placements,A56006
Royal Borough of Kingston,26/06/2023,70050489,"1,000.00",Assessment and Services Innovation Ltd,TEMP STAFF & CONSULTANCY,Adult Social Care & Health,Other Private Contractors - Third Party,A56080
Royal Borough of Kingston,01/07/2023,90252465,"4,852.08",ASTORIA HEALTHCARE LTD,SOCIAL SERVICES RESIDENTIAL,Adult Social Care & Health,Independent Placements,A56006
Royal Borough of Kingston,14/06/2023,70048660,"28,766.72",ATKINS  LTD,FM SERVICES,Place,Buildings - Design & Planning,C14001
Royal Borough of Kingston,25/07/2023,90254397,"1,094.34",AUMKARA INVESTMENTS LTD,PLS LANDLORDS,Place,PSL Payments To Landlords,A22031
Royal Borough of Kingston,25/07/2023,90254398,"1,094.34",AUMKARA INVESTMENTS LTD,PLS LANDLORDS,Place,PSL Payments To Landlords,A22031
Royal Borough of Kingston,25/07/2023,90254399,"1,094.34",AUMKARA INVESTMENTS LTD,PLS LANDLORDS,Place,PSL Payments To Landlords,A22031
Royal Borough of Kingston,01/07/2023,90252711,"11,912.28",AUTISM CONSULTANTS LTD,SOCIAL SERVICES RESIDENTIAL,Adult Social Care & Health,Independent Placements,A56006
Royal Borough of Kingston,16/06/2023,70049115,892.45,AVICENNA PSYCHIATRY,SOCIAL SERVICES - OTHER,Adult Social Care & Health,Other Private Contractors - Third Party,A56080
Royal Borough of Kingston,06/06/2023,70049116,"1,253.60",AVICENNA PSYCHIATRY,SOCIAL SERVICES - OTHER,Adult Social Care & Health,Other Private Contractors - Third Party,A56080
Royal Borough of Kingston,22/02/2023,70041138,"7,208.83",AXIS EUROPE PLC,CONSTRUCTION INDUSTRY,Housing Revenue Account,Council Dwellings - Capitalised Voids,C10001
Royal Borough of Kingston,17/04/2023,70044756,"11,468.10",AXIS EUROPE PLC,CONSTRUCTION INDUSTRY,Housing Revenue Account,Property Repairs & Maintenance & Alterations - Responsive,A20011
Royal Borough of Kingston,30/04/2023,70046088,"26,989.66",AXIS EUROPE PLC,CONSTRUCTION INDUSTRY,Place,Void Property Repairs,A20036
Royal Borough of Kingston,30/04/2023,70046089,"8,724.29",AXIS EUROPE PLC,CONSTRUCTION INDUSTRY,Housing Revenue Account,Void Property Repairs,A20036
Royal Borough of Kingston,30/04/2023,70046090,"38,782.56",AXIS EUROPE PLC,CONSTRUCTION INDUSTRY,Housing Revenue Account,Void Property Repairs,A20036
Royal Borough of Kingston,30/04/2023,70046091,"51,193.78",AXIS EUROPE PLC,CONSTRUCTION INDUSTRY,Housing Revenue Account,Electrical Repairs,A20002
Royal Borough of Kingston,30/04/2023,70046092,"122,773.10",AXIS EUROPE PLC,CONSTRUCTION INDUSTRY,Housing Revenue Account,Housing - Heating & Ventilation,A20045
Royal Borough of Kingston,30/04/2023,70046094,"250,104.77",AXIS EUROPE PLC,CONSTRUCTION INDUSTRY,Housing Revenue Account,Property Repairs & Maintenance & Alterations - Responsive,A20011
Royal Borough of Kingston,31/05/2023,70047381,"51,193.78",AXIS EUROPE PLC,CONSTRUCTION INDUSTRY,Housing Revenue Account,Electrical Repairs,A20002
Royal Borough of Kingston,31/05/2023,70047382,"8,724.29",AXIS EUROPE PLC,CONSTRUCTION INDUSTRY,Housing Revenue Account,Void Property Repairs,A20036
Royal Borough of Kingston,31/05/2023,70047383,"38,782.56",AXIS EUROPE PLC,CONSTRUCTION INDUSTRY,Housing Revenue Account,Void Property Repairs,A20036
Royal Borough of Kingston,31/05/2023,70047384,"26,989.66",AXIS EUROPE PLC,CONSTRUCTION INDUSTRY,Place,Void Property Repairs,A20036
Royal Borough of Kingston,31/05/2023,70047385,"250,104.77",AXIS EUROPE PLC,CONSTRUCTION INDUSTRY,Housing Revenue Account,Property Repairs & Maintenance & Alterations - Responsive,A20011
Royal Borough of Kingston,06/06/2023,70047784,638.44,AXIS EUROPE PLC,CONSTRUCTION INDUSTRY,Housing Revenue Account,Council Dwellings - Capitalised Voids,C10001
Royal Borough of Kingston,06/06/2023,70047785,"12,760.81",AXIS EUROPE PLC,CONSTRUCTION INDUSTRY,Housing Revenue Account,Council Dwellings - Capitalised Voids,C10001
Royal Borough of Kingston,06/06/2023,70047786,"3,926.25",AXIS EUROPE PLC,CONSTRUCTION INDUSTRY,Housing Revenue Account,Council Dwellings - Capitalised Voids,C10001
Royal Borough of Kingston,06/06/2023,70047787,"1,119.78",AXIS EUROPE PLC,CONSTRUCTION INDUSTRY,Housing Revenue Account,Council Dwellings - Capitalised Voids,C10001
Royal Borough of Kingston,06/06/2023,70047788,700.41,AXIS EUROPE PLC,CONSTRUCTION INDUSTRY,Housing Revenue Account,Council Dwellings - Capitalised Voids,C10001
Royal Borough of Kingston,06/06/2023,70047789,625.21,AXIS EUROPE PLC,CONSTRUCTION INDUSTRY,Housing Revenue Account,Council Dwellings - Capitalised Voids,C10001
Royal Borough of Kingston,06/06/2023,70047790,"1,024.13",AXIS EUROPE PLC,CONSTRUCTION INDUSTRY,Housing Revenue Account,Council Dwellings - Capitalised Voids,C10001
Royal Borough of Kingston,06/06/2023,70047792,"2,013.95",AXIS EUROPE PLC,CONSTRUCTION INDUSTRY,Housing Revenue Account,Council Dwellings - Capitalised Voids,C10001
Royal Borough of Kingston,06/06/2023,70047793,"6,150.71",AXIS EUROPE PLC,CONSTRUCTION INDUSTRY,Housing Revenue Account,Council Dwellings - Capitalised Voids,C10001
Royal Borough of Kingston,06/06/2023,70047794,"7,182.92",AXIS EUROPE PLC,CONSTRUCTION INDUSTRY,Housing Revenue Account,Council Dwellings - Capitalised Voids,C10001
Royal Borough of Kingston,06/06/2023,70047800,"2,091.19",AXIS EUROPE PLC,CONSTRUCTION INDUSTRY,Housing Revenue Account,Council Dwellings - Capitalised Voids,C10001
Royal Borough of Kingston,06/06/2023,70047803,"1,911.17",AXIS EUROPE PLC,CONSTRUCTION INDUSTRY,Housing Revenue Account,Council Dwellings - Capitalised Voids,C10001
Royal Borough of Kingston,06/06/2023,70047805,"2,491.70",AXIS EUROPE PLC,CONSTRUCTION INDUSTRY,Housing Revenue Account,Council Dwellings - Capitalised Voids,C10001
Royal Borough of Kingston,06/06/2023,70047806,478.80,AXIS EUROPE PLC,CONSTRUCTION INDUSTRY,Housing Revenue Account,Council Dwellings - Capitalised Voids,C10001
Royal Borough of Kingston,06/06/2023,70047807,758.23,AXIS EUROPE PLC,CONSTRUCTION INDUSTRY,Housing Revenue Account,Council Dwellings - Capitalised Voids,C10001
Royal Borough of Kingston,06/06/2023,70047808,"1,018.52",AXIS EUROPE PLC,CONSTRUCTION INDUSTRY,Housing Revenue Account,Council Dwellings - Capitalised Voids,C10001
Royal Borough of Kingston,06/06/2023,70047809,"17,953.57",AXIS EUROPE PLC,CONSTRUCTION INDUSTRY,Housing Revenue Account,Council Dwellings - Capitalised Voids,C10001
Royal Borough of Kingston,06/06/2023,70047810,"9,833.80",AXIS EUROPE PLC,CONSTRUCTION INDUSTRY,Housing Revenue Account,Council Dwellings - Capitalised Voids,C10001
Royal Borough of Kingston,06/06/2023,70047811,"1,977.89",AXIS EUROPE PLC,CONSTRUCTION INDUSTRY,Housing Revenue Account,Council Dwellings - Capitalised Voids,C10001
Royal Borough of Kingston,06/06/2023,70047813,"1,965.48",AXIS EUROPE PLC,CONSTRUCTION INDUSTRY,Housing Revenue Account,Council Dwellings - Capitalised Voids,C10001
Royal Borough of Kingston,06/06/2023,70047814,"1,928.94",AXIS EUROPE PLC,CONSTRUCTION INDUSTRY,Housing Revenue Account,Council Dwellings - Capitalised Voids,C10001
Royal Borough of Kingston,06/06/2023,70047816,483.33,AXIS EUROPE PLC,CONSTRUCTION INDUSTRY,Housing Revenue Account,Council Dwellings - Capitalised Voids,C10001
Royal Borough of Kingston,31/05/2023,70047828,"122,773.10",AXIS EUROPE PLC,CONSTRUCTION INDUSTRY,Housing Revenue Account,Housing - Heating & Ventilation,A20045
Royal Borough of Kingston,19/06/2023,70048842,"9,849.12",AXIS EUROPE PLC,CONSTRUCTION INDUSTRY,Housing Revenue Account,Council Dwellings - Capitalised Voids,C10001
Royal Borough of Kingston,26/06/2023,70049104,"1,517.06",AXIS EUROPE PLC,CONSTRUCTION INDUSTRY,Place,Property Repairs & Maintenance & Alterations - Responsive,A20011
Royal Borough of Kingston,29/06/2023,70049299,"2,954.65",AXIS EUROPE PLC,CONSTRUCTION INDUSTRY,Housing Revenue Account,Council Dwellings - Construction & Renovation,C10002
Royal Borough of Kingston,29/06/2023,70049300,"2,169.14",AXIS EUROPE PLC,CONSTRUCTION INDUSTRY,Housing Revenue Account,Council Dwellings - Construction & Renovation,C10002
Royal Borough of Kingston,29/06/2023,70049301,"2,203.43",AXIS EUROPE PLC,CONSTRUCTION INDUSTRY,Housing Revenue Account,Council Dwellings - Construction & Renovation,C10002
Royal Borough of Kingston,29/06/2023,70049302,"2,237.61",AXIS EUROPE PLC,CONSTRUCTION INDUSTRY,Housing Revenue Account,Council Dwellings - Construction & Renovation,C10002
Royal Borough of Kingston,29/06/2023,70049303,"2,014.25",AXIS EUROPE PLC,CONSTRUCTION INDUSTRY,Housing Revenue Account,Council Dwellings - Construction & Renovation,C10002
Royal Borough of Kingston,29/06/2023,70049304,"2,496.25",AXIS EUROPE PLC,CONSTRUCTION INDUSTRY,Housing Revenue Account,Council Dwellings - Construction & Renovation,C10002
Royal Borough of Kingston,29/06/2023,70049305,"2,450.68",AXIS EUROPE PLC,CONSTRUCTION INDUSTRY,Housing Revenue Account,Council Dwellings - Construction & Renovation,C10002
Royal Borough of Kingston,29/06/2023,70049306,"2,625.20",AXIS EUROPE PLC,CONSTRUCTION INDUSTRY,Housing Revenue Account,Council Dwellings - Construction & Renovation,C10002
Royal Borough of Kingston,29/06/2023,70049307,"2,568.44",AXIS EUROPE PLC,CONSTRUCTION INDUSTRY,Housing Revenue Account,Council Dwellings - Construction & Renovation,C10002
Royal Borough of Kingston,29/06/2023,70049308,"2,455.53",AXIS EUROPE PLC,CONSTRUCTION INDUSTRY,Housing Revenue Account,Council Dwellings - Construction & Renovation,C10002
Royal Borough of Kingston,29/06/2023,70049309,"2,639.36",AXIS EUROPE PLC,CONSTRUCTION INDUSTRY,Housing Revenue Account,Council Dwellings - Construction & Renovation,C10002
Royal Borough of Kingston,29/06/2023,70049310,"2,069.00",AXIS EUROPE PLC,CONSTRUCTION INDUSTRY,Housing Revenue Account,Council Dwellings - Construction & Renovation,C10002
Royal Borough of Kingston,30/06/2023,70049368,"4,033.11",AXIS EUROPE PLC,CONSTRUCTION INDUSTRY,Housing Revenue Account,Council Dwellings - Construction & Renovation,C10002
Royal Borough of Kingston,30/06/2023,70049369,"2,349.72",AXIS EUROPE PLC,CONSTRUCTION INDUSTRY,Housing Revenue Account,Council Dwellings - Construction & Renovation,C10002
Royal Borough of Kingston,30/06/2023,70049370,"2,168.81",AXIS EUROPE PLC,CONSTRUCTION INDUSTRY,Housing Revenue Account,Council Dwellings - Construction & Renovation,C10002
Royal Borough of Kingston,30/06/2023,70049371,"2,376.28",AXIS EUROPE PLC,CONSTRUCTION INDUSTRY,Housing Revenue Account,Council Dwellings - Construction & Renovation,C10002
Royal Borough of Kingston,30/06/2023,70049372,"3,372.40",AXIS EUROPE PLC,CONSTRUCTION INDUSTRY,Housing Revenue Account,Council Dwellings - Construction & Renovation,C10002
Royal Borough of Kingston,30/06/2023,70049373,"2,322.50",AXIS EUROPE PLC,CONSTRUCTION INDUSTRY,Housing Revenue Account,Council Dwellings - Construction & Renovation,C10002
Royal Borough of Kingston,30/06/2023,70049374,"2,043.60",AXIS EUROPE PLC,CONSTRUCTION INDUSTRY,Housing Revenue Account,Council Dwellings - Construction & Renovation,C10002
Royal Borough of Kingston,30/06/2023,70049375,"2,183.45",AXIS EUROPE PLC,CONSTRUCTION INDUSTRY,Housing Revenue Account,Council Dwellings - Construction & Renovation,C10002
Royal Borough of Kingston,30/06/2023,70049376,"2,546.90",AXIS EUROPE PLC,CONSTRUCTION INDUSTRY,Housing Revenue Account,Council Dwellings - Construction & Renovation,C10002
Royal Borough of Kingston,30/06/2023,70049377,"2,340.82",AXIS EUROPE PLC,CONSTRUCTION INDUSTRY,Housing Revenue Account,Council Dwellings - Construction & Renovation,C10002
Royal Borough of Kingston,30/06/2023,70049378,"4,784.20",AXIS EUROPE PLC,CONSTRUCTION INDUSTRY,Housing Revenue Account,Council Dwellings - Construction & Renovation,C10002
Royal Borough of Kingston,30/06/2023,70049413,574.23,AXIS EUROPE PLC,CONSTRUCTION INDUSTRY,Housing Revenue Account,Asbestos Removal,C10000
Royal Borough of Kingston,30/06/2023,70049414,"10,521.17",AXIS EUROPE PLC,CONSTRUCTION INDUSTRY,Housing Revenue Account,Council Dwellings - Capitalised Voids,C10001
Royal Borough of Kingston,30/06/2023,70049415,"2,953.10",AXIS EUROPE PLC,CONSTRUCTION INDUSTRY,Housing Revenue Account,Council Dwellings - Construction & Renovation,C10002
Royal Borough of Kingston,30/06/2023,70049416,"1,459.46",AXIS EUROPE PLC,CONSTRUCTION INDUSTRY,Housing Revenue Account,Council Dwellings - Construction & Renovation,C10002
Royal Borough of Kingston,22/06/2023,70049562,"52,613.00",AXIS EUROPE PLC,CONSTRUCTION INDUSTRY,Housing Revenue Account,Council Dwellings - Construction & Renovation,C10002
Royal Borough of Kingston,30/06/2023,70049575,"67,986.00",AXIS EUROPE PLC,CONSTRUCTION INDUSTRY,Housing Revenue Account,Council Dwellings - Construction & Renovation,C10002
Royal Borough of Kingston,30/06/2023,70049576,"2,595.79",AXIS EUROPE PLC,CONSTRUCTION INDUSTRY,Housing Revenue Account,Council Dwellings - Capitalised Voids,C10001
Royal Borough of Kingston,30/05/2023,70050096,"4,062.02",AXIS EUROPE PLC,CONSTRUCTION INDUSTRY,Housing Revenue Account,Council Dwellings - Construction & Renovation,C10002
Royal Borough of Kingston,25/07/2023,90254396,"1,314.00",REDACTED - PERSONAL DATA,PLS LANDLORDS,Place,PSL Payments To Landlords,A22031
Royal Borough of Kingston,25/07/2023,90254511,"1,094.00",REDACTED - PERSONAL DATA,PLS LANDLORDS,Place,PSL Payments To Landlords,A22031
Royal Borough of Kingston,25/07/2023,90254183,758.33,REDACTED - PERSONAL DATA,PLS LANDLORDS,Place,PSL Payments To Landlords,A22031
Royal Borough of Kingston,28/05/2023,70047768,"29,199.65",BALANCE (SUPPORT) C.I.C,SOCIAL SERVICES - OTHER,Adult Social Care & Health,Professional Fees,A44066
Royal Borough of Kingston,04/07/2023,70049512,"18,110.00",BALANCE (SUPPORT) C.I.C,SOCIAL SERVICES - OTHER,Corporate & Communities,Payments to Voluntary Organisations,A54005
Royal Borough of Kingston,01/07/2023,90252857,"2,486.20",BALANCE (SUPPORT) C.I.C,SOCIAL SERVICES - OTHER,Adult Social Care & Health,Supported Living - new framework,A56126
Royal Borough of Kingston,01/07/2023,90252858,618.28,BALANCE (SUPPORT) C.I.C,SOCIAL SERVICES - OTHER,Adult Social Care & Health,Supported Living - new framework,A56126
Royal Borough of Kingston,01/07/2023,90252862,"1,864.64",BALANCE (SUPPORT) C.I.C,SOCIAL SERVICES - OTHER,Adult Social Care & Health,Supported Living - new framework,A56126
Royal Borough of Kingston,01/07/2023,90252867,"1,675.67",BALANCE (SUPPORT) C.I.C,SOCIAL SERVICES - OTHER,Adult Social Care & Health,Supported Living - new framework,A56126
Royal Borough of Kingston,01/07/2023,90252876,930.93,BALANCE (SUPPORT) C.I.C,SOCIAL SERVICES - OTHER,Adult Social Care & Health,Supported Living - new framework,A56126
Royal Borough of Kingston,01/07/2023,90252877,"1,780.40",BALANCE (SUPPORT) C.I.C,SOCIAL SERVICES - OTHER,Adult Social Care & Health,Supported Living - new framework,A56126
Royal Borough of Kingston,01/07/2023,90252885,930.93,BALANCE (SUPPORT) C.I.C,SOCIAL SERVICES - OTHER,Adult Social Care & Health,Supported Living - new framework,A56126
Royal Borough of Kingston,01/07/2023,90252886,"2,373.87",BALANCE (SUPPORT) C.I.C,SOCIAL SERVICES - OTHER,Adult Social Care & Health,Supported Living - new framework,A56126
Royal Borough of Kingston,01/07/2023,90252887,583.83,BALANCE (SUPPORT) C.I.C,SOCIAL SERVICES - OTHER,Adult Social Care & Health,Supported Living - new framework,A56126
Royal Borough of Kingston,01/07/2023,90252894,"1,210.21",BALANCE (SUPPORT) C.I.C,SOCIAL SERVICES - OTHER,Adult Social Care & Health,Supported Living - new framework,A56126
Royal Borough of Kingston,01/07/2023,90252895,"2,373.87",BALANCE (SUPPORT) C.I.C,SOCIAL SERVICES - OTHER,Adult Social Care & Health,Supported Living - new framework,A56126
Royal Borough of Kingston,01/07/2023,90252896,583.83,BALANCE (SUPPORT) C.I.C,SOCIAL SERVICES - OTHER,Adult Social Care & Health,Supported Living - new framework,A56126
Royal Borough of Kingston,01/07/2023,90252897,"1,864.64",BALANCE (SUPPORT) C.I.C,SOCIAL SERVICES - OTHER,Adult Social Care & Health,Supported Living - new framework,A56126
Royal Borough of Kingston,01/07/2023,90252898,701.98,BALANCE (SUPPORT) C.I.C,SOCIAL SERVICES - OTHER,Adult Social Care & Health,Supported Living - new framework,A56126
Royal Borough of Kingston,01/07/2023,90252900,"2,373.87",BALANCE (SUPPORT) C.I.C,SOCIAL SERVICES - OTHER,Adult Social Care & Health,Supported Living - new framework,A56126
Royal Borough of Kingston,01/07/2023,90252901,583.83,BALANCE (SUPPORT) C.I.C,SOCIAL SERVICES - OTHER,Adult Social Care & Health,Supported Living - new framework,A56126
Royal Borough of Kingston,01/07/2023,90252902,651.65,BALANCE (SUPPORT) C.I.C,SOCIAL SERVICES - OTHER,Adult Social Care & Health,Supported Living - new framework,A56126
Royal Borough of Kingston,01/07/2023,90252911,"1,024.02",BALANCE (SUPPORT) C.I.C,SOCIAL SERVICES - OTHER,Adult Social Care & Health,Supported Living - new framework,A56126
Royal Borough of Kingston,01/07/2023,90252912,"1,780.40",BALANCE (SUPPORT) C.I.C,SOCIAL SERVICES - OTHER,Adult Social Care & Health,Supported Living - new framework,A56126
Royal Borough of Kingston,01/07/2023,90252919,"1,780.40",BALANCE (SUPPORT) C.I.C,SOCIAL SERVICES - OTHER,Adult Social Care & Health,Supported Living - new framework,A56126
Royal Borough of Kingston,01/07/2023,90252924,837.84,BALANCE (SUPPORT) C.I.C,SOCIAL SERVICES - OTHER,Adult Social Care & Health,Supported Living - new framework,A56126
Royal Borough of Kingston,26/06/2023,90252933,630.60,BALANCE (SUPPORT) C.I.C,SOCIAL SERVICES - OTHER,Adult Social Care & Health,Supported Living - new framework,A56126
Royal Borough of Kingston,26/06/2023,90252934,504.48,BALANCE (SUPPORT) C.I.C,SOCIAL SERVICES - OTHER,Adult Social Care & Health,Supported Living - new framework,A56126
Royal Borough of Kingston,26/06/2023,90252938,567.54,BALANCE (SUPPORT) C.I.C,SOCIAL SERVICES - OTHER,Adult Social Care & Health,Supported Living - new framework,A56126
Royal Borough of Kingston,26/06/2023,90252940,924.88,BALANCE (SUPPORT) C.I.C,SOCIAL SERVICES - OTHER,Adult Social Care & Health,Supported Living - new framework,A56126
Royal Borough of Kingston,26/06/2023,90252943,"1,261.20",BALANCE (SUPPORT) C.I.C,SOCIAL SERVICES - OTHER,Adult Social Care & Health,Supported Living - new framework,A56126
Royal Borough of Kingston,26/06/2023,90252945,672.64,BALANCE (SUPPORT) C.I.C,SOCIAL SERVICES - OTHER,Adult Social Care & Health,Supported Living - new framework,A56126
Royal Borough of Kingston,26/06/2023,90252948,504.48,BALANCE (SUPPORT) C.I.C,SOCIAL SERVICES - OTHER,Adult Social Care & Health,Supported Living - new framework,A56126
Royal Borough of Kingston,26/06/2023,90252949,504.48,BALANCE (SUPPORT) C.I.C,SOCIAL SERVICES - OTHER,Adult Social Care & Health,Supported Living - new framework,A56126
Royal Borough of Kingston,26/06/2023,90252951,"1,345.28",BALANCE (SUPPORT) C.I.C,SOCIAL SERVICES - OTHER,Adult Social Care & Health,Supported Living - new framework,A56126
Royal Borough of Kingston,26/06/2023,90252953,588.56,BALANCE (SUPPORT) C.I.C,SOCIAL SERVICES - OTHER,Adult Social Care & Health,Supported Living - new framework,A56126
Royal Borough of Kingston,26/06/2023,90252954,672.64,BALANCE (SUPPORT) C.I.C,SOCIAL SERVICES - OTHER,Adult Social Care & Health,Supported Living - new framework,A56126
Royal Borough of Kingston,26/06/2023,90252955,"1,429.36",BALANCE (SUPPORT) C.I.C,SOCIAL SERVICES - OTHER,Adult Social Care & Health,Supported Living - new framework,A56126
Royal Borough of Kingston,26/06/2023,90252957,504.48,BALANCE (SUPPORT) C.I.C,SOCIAL SERVICES - OTHER,Adult Social Care & Health,Supported Living - new framework,A56126
Royal Borough of Kingston,26/06/2023,90252958,504.48,BALANCE (SUPPORT) C.I.C,SOCIAL SERVICES - OTHER,Adult Social Care & Health,Supported Living - new framework,A56126
Royal Borough of Kingston,26/06/2023,90252962,840.80,BALANCE (SUPPORT) C.I.C,SOCIAL SERVICES - OTHER,Adult Social Care & Health,Supported Living - new framework,A56126
Royal Borough of Kingston,26/06/2023,90252963,756.72,BALANCE (SUPPORT) C.I.C,SOCIAL SERVICES - OTHER,Adult Social Care & Health,Supported Living - new framework,A56126
Royal Borough of Kingston,26/06/2023,90252965,"1,429.36",BALANCE (SUPPORT) C.I.C,SOCIAL SERVICES - OTHER,Adult Social Care & Health,Supported Living - new framework,A56126
Royal Borough of Kingston,26/06/2023,90252966,504.48,BALANCE (SUPPORT) C.I.C,SOCIAL SERVICES - OTHER,Adult Social Care & Health,Supported Living - new framework,A56126
Royal Borough of Kingston,26/06/2023,90252969,672.64,BALANCE (SUPPORT) C.I.C,SOCIAL SERVICES - OTHER,Adult Social Care & Health,Supported Living - new framework,A56126
Royal Borough of Kingston,26/06/2023,90252970,504.48,BALANCE (SUPPORT) C.I.C,SOCIAL SERVICES - OTHER,Adult Social Care & Health,Supported Living - new framework,A56126
Royal Borough of Kingston,26/06/2023,90252972,936.89,BALANCE (SUPPORT) C.I.C,SOCIAL SERVICES - OTHER,Adult Social Care & Health,Supported Living - new framework,A56126
Royal Borough of Kingston,26/06/2023,90252974,"1,513.44",BALANCE (SUPPORT) C.I.C,SOCIAL SERVICES - OTHER,Adult Social Care & Health,Supported Living - new framework,A56126
Royal Borough of Kingston,26/06/2023,90252977,"1,177.12",BALANCE (SUPPORT) C.I.C,SOCIAL SERVICES - OTHER,Adult Social Care & Health,Supported Living - new framework,A56126
Royal Borough of Kingston,26/06/2023,90253039,504.48,BALANCE (SUPPORT) C.I.C,SOCIAL SERVICES - OTHER,Adult Social Care & Health,Supported Living - new framework,A56126
Royal Borough of Kingston,26/06/2023,90253053,504.48,BALANCE (SUPPORT) C.I.C,SOCIAL SERVICES - OTHER,Adult Social Care & Health,Supported Living - new framework,A56126
Royal Borough of Kingston,26/06/2023,90253057,"1,008.96",BALANCE (SUPPORT) C.I.C,SOCIAL SERVICES - OTHER,Adult Social Care & Health,Supported Living - new framework,A56126
Royal Borough of Kingston,26/06/2023,90253060,672.64,BALANCE (SUPPORT) C.I.C,SOCIAL SERVICES - OTHER,Adult Social Care & Health,Supported Living - new framework,A56126
Royal Borough of Kingston,01/07/2023,90253680,548.27,BALANCE (SUPPORT) C.I.C,SOCIAL SERVICES - OTHER,Adult Social Care & Health,Personal Budget - Third Party,A61019
Royal Borough of Kingston,01/07/2023,90253681,548.27,BALANCE (SUPPORT) C.I.C,SOCIAL SERVICES - OTHER,Adult Social Care & Health,Personal Budget - Third Party,A61019
Royal Borough of Kingston,01/07/2023,90253682,"12,933.64",BALANCE (SUPPORT) C.I.C,SOCIAL SERVICES - OTHER,Adult Social Care & Health,Personal Budget - Third Party,A61019
Royal Borough of Kingston,19/06/2023,90253739,832.00,BALANCE (SUPPORT) C.I.C,SOCIAL SERVICES - OTHER,Adult Social Care & Health,Personal Budget - Third Party,A61019
Royal Borough of Kingston,19/06/2023,90253794,"1,040.00",BALANCE (SUPPORT) C.I.C,SOCIAL SERVICES - OTHER,Adult Social Care & Health,Personal Budget - Third Party,A61019
Royal Borough of Kingston,19/06/2023,90253795,832.00,BALANCE (SUPPORT) C.I.C,SOCIAL SERVICES - OTHER,Adult Social Care & Health,Personal Budget - Third Party,A61019
Royal Borough of Kingston,19/06/2023,90253801,"1,040.00",BALANCE (SUPPORT) C.I.C,SOCIAL SERVICES - OTHER,Adult Social Care & Health,Personal Budget - Third Party,A61019
Royal Borough of Kingston,01/07/2023,90253816,604.23,BALANCE (SUPPORT) C.I.C,SOCIAL SERVICES - OTHER,Adult Social Care & Health,Personal Budget - Third Party,A61019
Royal Borough of Kingston,01/07/2023,90253848,"1,007.06",BALANCE (SUPPORT) C.I.C,SOCIAL SERVICES - OTHER,Adult Social Care & Health,Personal Budget - Third Party,A61019
Royal Borough of Kingston,01/07/2023,90253850,"1,409.84",BALANCE (SUPPORT) C.I.C,SOCIAL SERVICES - OTHER,Adult Social Care & Health,Personal Budget - Third Party,A61019
Royal Borough of Kingston,01/07/2023,90253851,"1,007.06",BALANCE (SUPPORT) C.I.C,SOCIAL SERVICES - OTHER,Adult Social Care & Health,Personal Budget - Third Party,A61019
Royal Borough of Kingston,01/07/2023,90253852,553.88,BALANCE (SUPPORT) C.I.C,SOCIAL SERVICES - OTHER,Adult Social Care & Health,Personal Budget - Third Party,A61019
Royal Borough of Kingston,01/07/2023,90253856,"1,359.53",BALANCE (SUPPORT) C.I.C,SOCIAL SERVICES - OTHER,Adult Social Care & Health,Personal Budget - Third Party,A61019
Royal Borough of Kingston,01/07/2023,90253858,604.23,BALANCE (SUPPORT) C.I.C,SOCIAL SERVICES - OTHER,Adult Social Care & Health,Personal Budget - Third Party,A61019
Royal Borough of Kingston,01/07/2023,90253866,"2,316.19",BALANCE (SUPPORT) C.I.C,SOCIAL SERVICES - OTHER,Adult Social Care & Health,Personal Budget - Third Party,A61019
Royal Borough of Kingston,01/07/2023,90253867,"1,510.54",BALANCE (SUPPORT) C.I.C,SOCIAL SERVICES - OTHER,Adult Social Care & Health,Personal Budget - Third Party,A61019
Royal Borough of Kingston,01/07/2023,90253888,604.23,BALANCE (SUPPORT) C.I.C,SOCIAL SERVICES - OTHER,Adult Social Care & Health,Personal Budget - Third Party,A61019
Royal Borough of Kingston,01/07/2023,90253893,503.48,BALANCE (SUPPORT) C.I.C,SOCIAL SERVICES - OTHER,Adult Social Care & Health,Personal Budget - Third Party,A61019
Royal Borough of Kingston,01/07/2023,90253894,503.48,BALANCE (SUPPORT) C.I.C,SOCIAL SERVICES - OTHER,Adult Social Care & Health,Personal Budget - Third Party,A61019
Royal Borough of Kingston,01/07/2023,90253897,"2,776.98",BALANCE (SUPPORT) C.I.C,SOCIAL SERVICES - OTHER,Adult Social Care & Health,Personal Budget - Third Party,A61019
Royal Borough of Kingston,01/07/2023,90253906,"1,510.54",BALANCE (SUPPORT) C.I.C,SOCIAL SERVICES - OTHER,Adult Social Care & Health,Personal Budget - Third Party,A61019
Royal Borough of Kingston,01/07/2023,90253912,906.35,BALANCE (SUPPORT) C.I.C,SOCIAL SERVICES - OTHER,Adult Social Care & Health,Personal Budget - Third Party,A61019
Royal Borough of Kingston,01/07/2023,90253914,"1,286.68",BALANCE (SUPPORT) C.I.C,SOCIAL SERVICES - OTHER,Adult Social Care & Health,Personal Budget - Third Party,A61019
Royal Borough of Kingston,01/07/2023,90253917,604.23,BALANCE (SUPPORT) C.I.C,SOCIAL SERVICES - OTHER,Adult Social Care & Health,Personal Budget - Third Party,A61019
Royal Borough of Kingston,01/07/2023,90253925,503.48,BALANCE (SUPPORT) C.I.C,SOCIAL SERVICES - OTHER,Adult Social Care & Health,Personal Budget - Third Party,A61019
Royal Borough of Kingston,01/07/2023,90253949,805.60,BALANCE (SUPPORT) C.I.C,SOCIAL SERVICES - OTHER,Adult Social Care & Health,Personal Budget - Third Party,A61019
Royal Borough of Kingston,01/07/2023,90253952,"1,711.95",BALANCE (SUPPORT) C.I.C,SOCIAL SERVICES - OTHER,Adult Social Care & Health,Personal Budget - Third Party,A61019
Royal Borough of Kingston,01/07/2023,90253956,570.49,BALANCE (SUPPORT) C.I.C,SOCIAL SERVICES - OTHER,Adult Social Care & Health,Personal Budget - Third Party,A61019
Royal Borough of Kingston,01/07/2023,90253975,"1,409.84",BALANCE (SUPPORT) C.I.C,SOCIAL SERVICES - OTHER,Adult Social Care & Health,Personal Budget - Third Party,A61019
Royal Borough of Kingston,01/07/2023,90253977,604.23,BALANCE (SUPPORT) C.I.C,SOCIAL SERVICES - OTHER,Adult Social Care & Health,Personal Budget - Third Party,A61019
Royal Borough of Kingston,01/07/2023,90253978,"1,812.66",BALANCE (SUPPORT) C.I.C,SOCIAL SERVICES - OTHER,Adult Social Care & Health,Personal Budget - Third Party,A61019
Royal Borough of Kingston,01/07/2023,90253985,503.48,BALANCE (SUPPORT) C.I.C,SOCIAL SERVICES - OTHER,Adult Social Care & Health,Personal Budget - Third Party,A61019
Royal Borough of Kingston,29/06/2023,70049551,958.98,Banner Group Ltd,OFFICE SUPPLIES,Corporate & Communities,Stationery,A43015
Royal Borough of Kingston,01/07/2023,90252372,"3,768.94",BARCHESTER HEALTHCARE ,SOCIAL SERVICES RESIDENTIAL,Adult Social Care & Health,Independent Placements,A56006
Royal Borough of Kingston,01/07/2023,90252607,"4,486.28",BAVANI CARE HOME LIMITED,SOCIAL SERVICES RESIDENTIAL,Adult Social Care & Health,Independent Placements,A56006
Royal Borough of Kingston,01/07/2023,90252624,"3,985.71",BAVANI CARE HOME LIMITED,SOCIAL SERVICES RESIDENTIAL,Adult Social Care & Health,Independent Placements,A56006
Royal Borough of Kingston,18/06/2023,70048823,"1,404.02",BDT HEALTHCARE LTD,SOCIAL SERVICES - OTHER,Adult Social Care & Health,Other Private Contractors - Third Party,A56080
Royal Borough of Kingston,25/07/2023,90254168,"1,317.76",REDACTED - PERSONAL DATA,PLS LANDLORDS,Place,PSL Payments To Landlords,A22031
Royal Borough of Kingston,31/07/2023,70050639,"1,100.00",Bikeworks CIC,TRAINING,Corporate & Communities,Staff Development And Training,A15022
Royal Borough of Kingston,30/06/2023,70049489,"1,200.00",BLAZIE ENGINEERING LTD,BUSINESS & COMPUTER SYSTEMS,Adult Social Care & Health,Equipment And Materials Purchase,A40000
Royal Borough of Kingston,12/06/2023,90249240,559.02,BLUE ARROW CARE LTD,SOCIAL SERVICES-HOME CARE,Adult Social Care & Health,Personal Budget - Third Party,A61019
Royal Borough of Kingston,19/06/2023,90251238,559.02,BLUE ARROW CARE LTD,SOCIAL SERVICES-HOME CARE,Adult Social Care & Health,Personal Budget - Third Party,A61019
Royal Borough of Kingston,26/06/2023,90252149,559.02,BLUE ARROW CARE LTD,SOCIAL SERVICES-HOME CARE,Adult Social Care & Health,Personal Budget - Third Party,A61019
Royal Borough of Kingston,03/07/2023,90254051,559.02,BLUE ARROW CARE LTD,SOCIAL SERVICES-HOME CARE,Adult Social Care & Health,Personal Budget - Third Party,A61019
Royal Borough of Kingston,01/07/2023,90252355,"3,394.06",BONDCARE (LONDON) LTD BROOK HOUSE,SOCIAL SERVICES RESIDENTIAL,Adult Social Care & Health,Independent Placements,A56006
Royal Borough of Kingston,25/07/2023,90254348,916.66,BONSOR PENNINGTONS LTD,PLS LANDLORDS,Place,PSL Payments To Landlords,A22031
Royal Borough of Kingston,22/06/2023,70049719,"1,113.19",BOTTOMLINE TECHNOLOGIES LIMITED,BUSINESS & COMPUTER SYSTEMS,Corporate & Communities,IT Software Maintenance,A45045
Royal Borough of Kingston,01/07/2023,90252787,"6,510.00",Boulters Lock Residential Home,SOCIAL SERVICES RESIDENTIAL,Adult Social Care & Health,Independent Placements,A56006
Royal Borough of Kingston,25/07/2023,90254349,900.00,BR INVESTMENTS LIMITED,PLS LANDLORDS,Place,PSL Payments To Landlords,A22031
Royal Borough of Kingston,13/06/2023,70049277,871.90,BRITISH GAS,UTILITIES,Place,Gas,A21003
Royal Borough of Kingston,29/06/2023,70049747,802.33,BRITISH GAS,UTILITIES,Housing Revenue Account,Gas,A21003
Royal Borough of Kingston,17/05/2023,70048104,"3,708.00",BRITISH TELECOMMUNICATIONS PLC,TELECOMS,Corporate & Communities,Telephones,A45020
Royal Borough of Kingston,06/05/2023,70048427,"1,165.72",BRITISH TELECOMMUNICATIONS PLC,TELECOMS,Corporate & Communities,Telephones,A45020
Royal Borough of Kingston,25/05/2023,70048966,"4,605.25",BRITISH TELECOMMUNICATIONS PLC,TELECOMS,Corporate & Communities,Telephones,A45020
Royal Borough of Kingston,03/07/2023,70050198,"1,620.00",Buildvantage Limited,ACCOMMODATION BED & BREAKFAST,Place,Bed & Breakfast,A56000
Royal Borough of Kingston,03/07/2023,70050199,"1,620.00",Buildvantage Limited,ACCOMMODATION BED & BREAKFAST,Place,Bed & Breakfast,A56000
Royal Borough of Kingston,03/07/2023,70050200,"1,620.00",Buildvantage Limited,ACCOMMODATION BED & BREAKFAST,Place,Bed & Breakfast,A56000
Royal Borough of Kingston,03/07/2023,70050201,"1,620.00",Buildvantage Limited,ACCOMMODATION BED & BREAKFAST,Place,Bed & Breakfast,A56000
Royal Borough of Kingston,03/07/2023,70050202,"1,620.00",Buildvantage Limited,ACCOMMODATION BED & BREAKFAST,Place,Bed & Breakfast,A56000
Royal Borough of Kingston,03/07/2023,70050203,"1,620.00",Buildvantage Limited,ACCOMMODATION BED & BREAKFAST,Place,Bed & Breakfast,A56000
Royal Borough of Kingston,03/07/2023,70050204,"1,620.00",Buildvantage Limited,ACCOMMODATION BED & BREAKFAST,Place,Bed & Breakfast,A56000
Royal Borough of Kingston,03/07/2023,70050205,"1,620.00",Buildvantage Limited,ACCOMMODATION BED & BREAKFAST,Place,Bed & Breakfast,A56000
Royal Borough of Kingston,03/07/2023,70050206,"2,100.00",Buildvantage Limited,ACCOMMODATION BED & BREAKFAST,Place,Bed & Breakfast,A56000
Royal Borough of Kingston,03/07/2023,70050207,"1,620.00",Buildvantage Limited,ACCOMMODATION BED & BREAKFAST,Place,Bed & Breakfast,A56000
Royal Borough of Kingston,03/07/2023,70050208,"1,620.00",Buildvantage Limited,ACCOMMODATION BED & BREAKFAST,Place,Bed & Breakfast,A56000
Royal Borough of Kingston,03/07/2023,70050209,"2,250.00",Buildvantage Limited,ACCOMMODATION BED & BREAKFAST,Place,Bed & Breakfast,A56000
Royal Borough of Kingston,03/07/2023,70050210,"1,470.00",Buildvantage Limited,ACCOMMODATION BED & BREAKFAST,Place,Bed & Breakfast,A56000
Royal Borough of Kingston,03/07/2023,70050211,"1,620.00",Buildvantage Limited,ACCOMMODATION BED & BREAKFAST,Place,Bed & Breakfast,A56000
Royal Borough of Kingston,03/07/2023,70050212,"1,470.00",Buildvantage Limited,ACCOMMODATION BED & BREAKFAST,Place,Bed & Breakfast,A56000
Royal Borough of Kingston,03/07/2023,70050213,"1,470.00",Buildvantage Limited,ACCOMMODATION BED & BREAKFAST,Place,Bed & Breakfast,A56000
Royal Borough of Kingston,03/07/2023,70050214,"1,470.00",Buildvantage Limited,ACCOMMODATION BED & BREAKFAST,Place,Bed & Breakfast,A56000
Royal Borough of Kingston,03/07/2023,70050216,"1,620.00",Buildvantage Limited,ACCOMMODATION BED & BREAKFAST,Place,Bed & Breakfast,A56000
Royal Borough of Kingston,03/07/2023,70050217,"1,620.00",Buildvantage Limited,ACCOMMODATION BED & BREAKFAST,Place,Bed & Breakfast,A56000
Royal Borough of Kingston,03/07/2023,70050218,"1,620.00",Buildvantage Limited,ACCOMMODATION BED & BREAKFAST,Place,Bed & Breakfast,A56000
Royal Borough of Kingston,03/07/2023,70050219,"1,620.00",Buildvantage Limited,ACCOMMODATION BED & BREAKFAST,Place,Bed & Breakfast,A56000
Royal Borough of Kingston,03/07/2023,70050309,"1,620.00",Buildvantage Limited,ACCOMMODATION BED & BREAKFAST,Place,Bed & Breakfast,A56000
Royal Borough of Kingston,22/05/2023,70049339,"1,062.47",BUNZL OUTSOURCING SVS UK LTD,CLOTHING & UNIFORMS,Housing Revenue Account,Equipment And Materials Purchase,A40000
Royal Borough of Kingston,01/07/2023,90252453,"3,780.80",BUPA CARE  HOME (CFH CARE ) LTD,SOCIAL SERVICES RESIDENTIAL,Adult Social Care & Health,Independent Placements,A56006
Royal Borough of Kingston,01/07/2023,90252469,"9,007.98",BUPA CARE HOMES (AKW) LIMITED,SOCIAL SERVICES RESIDENTIAL,Adult Social Care & Health,Independent Placements,A56006
Royal Borough of Kingston,01/07/2023,90252587,"3,945.02",BUPA CARE HOMES (AKW) LIMITED,SOCIAL SERVICES RESIDENTIAL,Adult Social Care & Health,Independent Placements,A56006
Royal Borough of Kingston,01/07/2023,90252781,"5,591.43",BUPA CARE HOMES (AKW) LIMITED,SOCIAL SERVICES RESIDENTIAL,Adult Social Care & Health,Independent Placements,A56006
Royal Borough of Kingston,06/07/2023,90249341,"152,546.80",BURLINGTON INFANT AND NURSERY SCHOOL,SCHOOL FUNDS,Schools,Miscellaneous Expenses,A49000
Royal Borough of Kingston,06/07/2023,90249342,"185,933.75",BURLINGTON JUNIOR SCHOOL,SCHOOL FUNDS,Schools,Miscellaneous Expenses,A49000
Royal Borough of Kingston,31/05/2023,70047890,"52,726.80",BYTES SOFTWARE SERVICES LTD,BUSINESS & COMPUTER SYSTEMS,Corporate & Communities,IT Software Maintenance,A45045
Royal Borough of Kingston,08/06/2023,70048123,"1,549,885.95",BYTES SOFTWARE SERVICES LTD,BUSINESS & COMPUTER SYSTEMS,Corporate & Communities,Purchase of IT Hardware,C16001
Royal Borough of Kingston,07/06/2023,70048170,"7,482.93",BYTES SOFTWARE SERVICES LTD,BUSINESS & COMPUTER SYSTEMS,Corporate & Communities,IT Hardware Purchase,A45005
Royal Borough of Kingston,30/06/2023,70049477,586.20,BYTES SOFTWARE SERVICES LTD,BUSINESS & COMPUTER SYSTEMS,Corporate & Communities,IT Hardware Purchase,A45005
Royal Borough of Kingston,30/06/2023,70049511,514.07,BYTES SOFTWARE SERVICES LTD,BUSINESS & COMPUTER SYSTEMS,Corporate & Communities,IT Software Purchase,A45040
Royal Borough of Kingston,05/07/2023,70049646,515.86,BYTES SOFTWARE SERVICES LTD,BUSINESS & COMPUTER SYSTEMS,Place,IT Software Purchase,A45040
Royal Borough of Kingston,06/07/2023,70049712,"3,288.82",BYTES SOFTWARE SERVICES LTD,BUSINESS & COMPUTER SYSTEMS,Place,IT Software Purchase,A45040
Royal Borough of Kingston,12/07/2023,70050149,479.25,BYTES SOFTWARE SERVICES LTD,BUSINESS & COMPUTER SYSTEMS,Corporate & Communities,IT Hardware Purchase,A45005
Royal Borough of Kingston,12/07/2023,70050543,479.25,BYTES SOFTWARE SERVICES LTD,BUSINESS & COMPUTER SYSTEMS,Corporate & Communities,IT Hardware Purchase,A45005
Royal Borough of Kingston,25/07/2023,90254291,"1,314.08",REDACTED - PERSONAL DATA,PLS LANDLORDS,Place,PSL Payments To Landlords,A22031
Royal Borough of Kingston,25/07/2023,90254293,"1,094.00",REDACTED - PERSONAL DATA,PLS LANDLORDS,Place,PSL Payments To Landlords,A22031
Royal Borough of Kingston,25/07/2023,90254416,"1,314.08",REDACTED - PERSONAL DATA,PLS LANDLORDS,Place,PSL Payments To Landlords,A22031
Royal Borough of Kingston,25/07/2023,90254417,"1,314.08",REDACTED - PERSONAL DATA,PLS LANDLORDS,Place,PSL Payments To Landlords,A22031
Royal Borough of Kingston,25/07/2023,90254418,"1,314.08",REDACTED - PERSONAL DATA,PLS LANDLORDS,Place,PSL Payments To Landlords,A22031
Royal Borough of Kingston,25/07/2023,90254419,"1,314.08",REDACTED - PERSONAL DATA,PLS LANDLORDS,Place,PSL Payments To Landlords,A22031
Royal Borough of Kingston,07/07/2023,70049889,650.00,REDACTED - PERSONAL DATA,PLS LANDLORDS,Place,Housing Incentives,A62025
Royal Borough of Kingston,25/07/2023,90254377,"1,317.76",REDACTED - PERSONAL DATA,PLS LANDLORDS,Place,PSL Payments To Landlords,A22031
Royal Borough of Kingston,25/07/2023,90254360,"1,025.00",REDACTED - PERSONAL DATA,PLS LANDLORDS,Place,PSL Payments To Landlords,A22031
Royal Borough of Kingston,25/07/2023,90254501,"1,679.75",REDACTED - PERSONAL DATA,PLS LANDLORDS,Place,PSL Payments To Landlords,A22031
Royal Borough of Kingston,07/07/2023,70049674,"134,214.69",Cambridge Road Estate (RBK) LLP,LEGAL & PROFESSIONAL SERVICES,Housing Revenue Account,Council Dwellings - Acquisition,C10006
Royal Borough of Kingston,07/07/2023,70049675,"7,992,522.00",Cambridge Road Estate (RBK) LLP,LEGAL & PROFESSIONAL SERVICES,Housing Revenue Account,Council Dwellings - Acquisition,C10006
Royal Borough of Kingston,10/05/2023,70048080,"2,526.09",CAPITA,SUNDRY SUPPLIER - FINANCE,Corporate & Communities,Miscellaneous Expenses,A49000
Royal Borough of Kingston,01/07/2023,90253910,"5,697.09",CARE MANAGEMENT GROUP LTD,SOCIAL SERVICES RESIDENTIAL,Adult Social Care & Health,Personal Budget - Third Party,A61019
Royal Borough of Kingston,01/07/2023,90252381,"8,700.00",CARE UK COMMUNITY PARTNERSHIPS LTD,SOCIAL SERVICES RESIDENTIAL,Adult Social Care & Health,Independent Placements,A56006
Royal Borough of Kingston,01/07/2023,90252382,"6,214.29",CARE UK COMMUNITY PARTNERSHIPS LTD,SOCIAL SERVICES RESIDENTIAL,Adult Social Care & Health,Independent Placements,A56006
Royal Borough of Kingston,01/07/2023,90252383,"1,657.14",CARE UK COMMUNITY PARTNERSHIPS LTD,SOCIAL SERVICES RESIDENTIAL,Adult Social Care & Health,Independent Placements,A56006
Royal Borough of Kingston,01/07/2023,90252582,"3,387.86",CARE UK COMMUNITY PARTNERSHIPS LTD,SOCIAL SERVICES RESIDENTIAL,Adult Social Care & Health,Independent Placements,A56006
Royal Borough of Kingston,01/07/2023,90252601,"8,492.86",CARE UK COMMUNITY PARTNERSHIPS LTD,SOCIAL SERVICES RESIDENTIAL,Adult Social Care & Health,Independent Placements,A56006
Royal Borough of Kingston,01/07/2023,90252645,"4,423.74",CARE UK COMMUNITY PARTNERSHIPS LTD,SOCIAL SERVICES RESIDENTIAL,Adult Social Care & Health,Independent Placements,A56006
Royal Borough of Kingston,01/07/2023,90252662,"2,927.77",CARE UK COMMUNITY PARTNERSHIPS LTD,SOCIAL SERVICES RESIDENTIAL,Adult Social Care & Health,Independent Placements,A56006
Royal Borough of Kingston,03/07/2023,70050549,"1,450.00",CAZFIT,TEMP STAFF & CONSULTANCY,Adult Social Care & Health,Hire of Rooms,A22010
Royal Borough of Kingston,01/07/2023,90252390,"1,964.57",Caring Homes Healthcare Group Limited,SOCIAL SERVICES RESIDENTIAL,Adult Social Care & Health,Independent Placements,A56006
Royal Borough of Kingston,12/06/2023,90248324,756.32,CARLCARE LTD ,SOCIAL SERVICES-HOME CARE,Adult Social Care & Health,Homecare - new framework,A56127
Royal Borough of Kingston,12/06/2023,90248375,504.21,CARLCARE LTD ,SOCIAL SERVICES-HOME CARE,Adult Social Care & Health,Homecare - new framework,A56127
Royal Borough of Kingston,12/06/2023,90248662,612.26,CARLCARE LTD ,SOCIAL SERVICES-HOME CARE,Adult Social Care & Health,Homecare - new framework,A56127
Royal Borough of Kingston,19/06/2023,90250683,756.32,CARLCARE LTD ,SOCIAL SERVICES-HOME CARE,Adult Social Care & Health,Homecare - new framework,A56127
Royal Borough of Kingston,19/06/2023,90250735,504.21,CARLCARE LTD ,SOCIAL SERVICES-HOME CARE,Adult Social Care & Health,Homecare - new framework,A56127
Royal Borough of Kingston,19/06/2023,90251061,612.26,CARLCARE LTD ,SOCIAL SERVICES-HOME CARE,Adult Social Care & Health,Homecare - new framework,A56127
Royal Borough of Kingston,26/06/2023,90251586,756.32,CARLCARE LTD ,SOCIAL SERVICES-HOME CARE,Adult Social Care & Health,Homecare - new framework,A56127
Royal Borough of Kingston,26/06/2023,90251660,504.21,CARLCARE LTD ,SOCIAL SERVICES-HOME CARE,Adult Social Care & Health,Homecare - new framework,A56127
Royal Borough of Kingston,26/06/2023,90251965,612.26,CARLCARE LTD ,SOCIAL SERVICES-HOME CARE,Adult Social Care & Health,Homecare - new framework,A56127
Royal Borough of Kingston,03/07/2023,90253168,756.32,CARLCARE LTD ,SOCIAL SERVICES-HOME CARE,Adult Social Care & Health,Homecare - new framework,A56127
Royal Borough of Kingston,03/07/2023,90253216,504.21,CARLCARE LTD ,SOCIAL SERVICES-HOME CARE,Adult Social Care & Health,Homecare - new framework,A56127
Royal Borough of Kingston,03/07/2023,90253496,612.26,CARLCARE LTD ,SOCIAL SERVICES-HOME CARE,Adult Social Care & Health,Homecare - new framework,A56127
Royal Borough of Kingston,25/07/2023,90254392,"1,550.00",CARLISLE SECURITIES LTD,PLS LANDLORDS,Place,PSL Payments To Landlords,A22031
Royal Borough of Kingston,25/07/2023,90254204,"1,094.00",REDACTED - PERSONAL DATA,PLS LANDLORDS,Place,PSL Payments To Landlords,A22031
Royal Borough of Kingston,01/07/2023,90252741,"9,943.96",CARTREF HOMES,SOCIAL SERVICES RESIDENTIAL,Adult Social Care & Health,Independent Placements,A56006
Royal Borough of Kingston,01/07/2023,90252713,"14,724.87",CAS CARE SERVICES LTD,SOCIAL SERVICES - OTHER,Adult Social Care & Health,Independent Placements,A56006
Royal Borough of Kingston,01/07/2023,90252758,"14,724.87",CAS CARE SERVICES LTD,SOCIAL SERVICES - OTHER,Adult Social Care & Health,Independent Placements,A56006
Royal Borough of Kingston,25/07/2023,90254176,"2,149.00",CASTLE RESIDENTIAL PROPERTIES LTD,PLS LANDLORDS,Place,PSL Payments To Landlords,A22031
Royal Borough of Kingston,25/07/2023,90254292,"1,321.00",CASTLE RESIDENTIAL PROPERTIES LTD,PLS LANDLORDS,Place,PSL Payments To Landlords,A22031
Royal Borough of Kingston,25/07/2023,90254294,"1,049.98",CASTLE RESIDENTIAL PROPERTIES LTD,PLS LANDLORDS,Place,PSL Payments To Landlords,A22031
Royal Borough of Kingston,25/07/2023,90254462,"2,144.09",CASTLE RESIDENTIAL PROPERTIES LTD,PLS LANDLORDS,Place,PSL Payments To Landlords,A22031
Royal Borough of Kingston,25/07/2023,90254529,"2,144.09",CASTLE RESIDENTIAL PROPERTIES LTD,PLS LANDLORDS,Place,PSL Payments To Landlords,A22031
Royal Borough of Kingston,25/07/2023,90254174,"1,094.34",CASTLE WILDISH RESI LTD,PLS LANDLORDS,Place,PSL Payments To Landlords,A22031
Royal Borough of Kingston,25/07/2023,90254175,"1,094.34",CASTLE WILDISH RESI LTD,PLS LANDLORDS,Place,PSL Payments To Landlords,A22031
Royal Borough of Kingston,25/07/2023,90254516,"2,100.00",CASTLE WILDISH RESI LTD,PLS LANDLORDS,Place,PSL Payments To Landlords,A22031
Royal Borough of Kingston,25/07/2023,90254517,"2,100.00",CASTLE WILDISH RESI LTD,PLS LANDLORDS,Place,PSL Payments To Landlords,A22031
Royal Borough of Kingston,25/07/2023,90254337,867.00,REDACTED - PERSONAL DATA,PLS LANDLORDS,Place,PSL Payments To Landlords,A22031
Royal Borough of Kingston,01/07/2023,90252732,"11,709.72",Gresham Care Operations Limited,SOCIAL SERVICES RESIDENTIAL,Adult Social Care & Health,Independent Placements,A56006
Royal Borough of Kingston,25/07/2023,90254321,850.00,REDACTED - PERSONAL DATA,PLS LANDLORDS,Place,PSL Payments To Landlords,A22031
Royal Borough of Kingston,26/05/2023,70050532,"2,000.00",CENTRE FOR COMMUNITY DEVELOPMENT,OPERATIONAL EQUIPMENT/MATERIAL,Adult Social Care & Health,Payments to Voluntary Organisations,A54005
Royal Borough of Kingston,30/04/2023,70046816,"6,341.61",CHAWTON HILL ASSOCIATES LIMITED,LEGAL & PROFESSIONAL SERVICES,Place,Buildings - Design & Planning,C14001
Royal Borough of Kingston,30/04/2023,70048284,750.00,CHAWTON HILL ASSOCIATES LIMITED,LEGAL & PROFESSIONAL SERVICES,Place,Payments to Contractors,C14000
Royal Borough of Kingston,31/05/2023,70048635,"5,620.70",CHAWTON HILL ASSOCIATES LIMITED,LEGAL & PROFESSIONAL SERVICES,Place,Buildings - Design & Planning,C14001
Royal Borough of Kingston,01/07/2023,90252552,"3,681.03",CHD (CARE HOMES) LTD,SOCIAL SERVICES RESIDENTIAL,Adult Social Care & Health,Independent Placements,A56006
Royal Borough of Kingston,01/07/2023,90252492,"1,714.29",CHD CARE LTD,SOCIAL SERVICES RESIDENTIAL,Adult Social Care & Health,Independent Placements,A56006
Royal Borough of Kingston,01/07/2023,90252493,"5,142.86",CHD CARE LTD,SOCIAL SERVICES RESIDENTIAL,Adult Social Care & Health,Independent Placements,A56006
Royal Borough of Kingston,01/07/2023,90252494,"5,314.29",CHD CARE LTD,SOCIAL SERVICES RESIDENTIAL,Adult Social Care & Health,Independent Placements,A56006
Royal Borough of Kingston,01/07/2023,90252495,"5,142.86",CHD CARE LTD,SOCIAL SERVICES RESIDENTIAL,Adult Social Care & Health,Independent Placements,A56006
Royal Borough of Kingston,01/07/2023,90252496,"1,371.43",CHD CARE LTD,SOCIAL SERVICES RESIDENTIAL,Adult Social Care & Health,Independent Placements,A56006
Royal Borough of Kingston,01/07/2023,90252629,"1,781.14",CHD CARE LTD,SOCIAL SERVICES RESIDENTIAL,Adult Social Care & Health,Independent Placements,A56006
Royal Borough of Kingston,01/07/2023,90252631,"5,176.47",CHD CARE LTD,SOCIAL SERVICES RESIDENTIAL,Adult Social Care & Health,Independent Placements,A56006
Royal Borough of Kingston,01/07/2023,90252560,"1,104.31",CHD LIVING,SOCIAL SERVICES RESIDENTIAL,Adult Social Care & Health,Independent Placements,A56006
Royal Borough of Kingston,01/07/2023,90252558,"3,755.03",CHISWICK NURSING CENTRE,SOCIAL SERVICES RESIDENTIAL,Adult Social Care & Health,Independent Placements,A56006
Royal Borough of Kingston,01/07/2023,90252598,"3,434.40",CHISWICK NURSING CENTRE,SOCIAL SERVICES RESIDENTIAL,Adult Social Care & Health,Independent Placements,A56006
Royal Borough of Kingston,01/07/2023,90252753,"8,539.39",CHOICE LTD,SOCIAL SERVICES RESIDENTIAL,Adult Social Care & Health,Independent Placements,A56006
Royal Borough of Kingston,01/07/2023,90252759,"7,545.49",CHOICE LTD,SOCIAL SERVICES RESIDENTIAL,Adult Social Care & Health,Independent Placements,A56006
Royal Borough of Kingston,06/07/2023,90249344,"167,164.50",CHRIST CHURCH  C. OF E.  PRIMARY SCHOOL (NEW MALDEN),SCHOOL FUNDS,Schools,Miscellaneous Expenses,A49000
Royal Borough of Kingston,28/06/2023,70049317,"1,105.00",CHRIST CHURCH C.OF E. PRIMARY SCHOOL - (SURBITON),ACADEMIC INSTNS - OTHER,Childrens Services,MSF Claims Support Staff - Internal Trading,A46108
Royal Borough of Kingston,28/06/2023,70049318,"2,392.00",CHRIST CHURCH C.OF E. PRIMARY SCHOOL - (SURBITON),ACADEMIC INSTNS - OTHER,Childrens Services,MSF Claims Teaching Staff - Internal Trading,A46107
Royal Borough of Kingston,06/07/2023,90249343,"172,686.54",CHRIST CHURCH C.OF E. PRIMARY SCHOOL - (SURBITON),ACADEMIC INSTNS - OTHER,Schools,Miscellaneous Expenses,A49000
Royal Borough of Kingston,03/07/2023,70049736,550.00,REDACTED - PERSONAL DATA,SUNDRY SUPPLIER - FINANCE,Housing Revenue Account,Miscellaneous Expenses,A49000
Royal Borough of Kingston,01/07/2023,90253815,"6,236.27",CHRISTIES CARE LTD,SOCIAL SERVICES RESIDENTIAL,Adult Social Care & Health,Personal Budget - Third Party,A61019
Royal Borough of Kingston,01/07/2023,90253902,"5,829.77",CHRISTIES CARE LTD,SOCIAL SERVICES RESIDENTIAL,Adult Social Care & Health,Personal Budget - Third Party,A61019
Royal Borough of Kingston,01/07/2023,90253904,"6,065.81",CHRISTIES CARE LTD,SOCIAL SERVICES RESIDENTIAL,Adult Social Care & Health,Personal Budget - Third Party,A61019
Royal Borough of Kingston,01/07/2023,90253936,"5,853.02",CHRISTIES CARE LTD,SOCIAL SERVICES RESIDENTIAL,Adult Social Care & Health,Personal Budget - Third Party,A61019
Royal Borough of Kingston,13/07/2023,70050386,"20,250.00",REDACTED - PERSONAL DATA,SUNDRY SUPPLIER - FINANCE,Place,Property-Related Professional Fees,A20035
Royal Borough of Kingston,06/07/2023,70049904,"1,304.40",CITY & GUILDS INSTITUTE,ACADEMIC INSTNS - OTHER,Corporate & Communities,Examination Fees,A44200
Royal Borough of Kingston,29/06/2023,70050899,"128,091.00",CIVICA UK LTD,BUSINESS & COMPUTER SYSTEMS,Corporate & Communities,IT Software Maintenance,A45045
Royal Borough of Kingston,01/07/2023,90252762,"9,252.04",CLEARWATER CARE (HACKNEY) LTD,SOCIAL SERVICES RESIDENTIAL,Adult Social Care & Health,Independent Placements,A56006
Royal Borough of Kingston,03/07/2023,70049565,"9,000.00",CLEMENTS ENVIRONMENTAL SERVICES LTD,PEST CONTROL SERVICES,Corporate & Communities,Other Private Contractors - Third Party,A56080
Royal Borough of Kingston,20/07/2023,70051082,"8,833.00",CLEMLEC GROUP LTD,SUNDRY SUPPLIER - FINANCE,Corporate & Communities,Grants Given For Capital Purposes,C20004
Royal Borough of Kingston,01/07/2023,90254129,"6,632.85",CLIA Care Ltd,ACCOMMODATION - OTHER,Adult Social Care & Health,Personal Budget - Third Party,A61019
Royal Borough of Kingston,25/07/2023,90254415,"1,094.00",REDACTED - PERSONAL DATA,PLS LANDLORDS,Place,PSL Payments To Landlords,A22031
Royal Borough of Kingston,25/07/2023,90254236,"1,435.50",CLIQUE 187 LTD,PLS LANDLORDS,Place,PSL Payments To Landlords,A22031
Royal Borough of Kingston,01/07/2023,90253900,"3,202.70",CMG LIMITED,SOCIAL SERVICES - OTHER,Adult Social Care & Health,Personal Budget - Third Party,A61019
Royal Borough of Kingston,01/07/2023,90253918,"5,810.73",CMG LIMITED,SOCIAL SERVICES - OTHER,Adult Social Care & Health,Personal Budget - Third Party,A61019
Royal Borough of Kingston,01/07/2023,90253919,"5,776.27",CMG LIMITED,SOCIAL SERVICES - OTHER,Adult Social Care & Health,Personal Budget - Third Party,A61019
Royal Borough of Kingston,01/07/2023,90253927,"6,342.56",CMG LIMITED,SOCIAL SERVICES - OTHER,Adult Social Care & Health,Personal Budget - Third Party,A61019
Royal Borough of Kingston,01/07/2023,90253938,976.77,CMG LIMITED,SOCIAL SERVICES - OTHER,Adult Social Care & Health,Personal Budget - Third Party,A61019
Royal Borough of Kingston,01/07/2023,90253939,"4,219.99",CMG LIMITED,SOCIAL SERVICES - OTHER,Adult Social Care & Health,Personal Budget - Third Party,A61019
Royal Borough of Kingston,01/07/2023,90253988,"5,033.96",CMG LIMITED,SOCIAL SERVICES - OTHER,Adult Social Care & Health,Personal Budget - Third Party,A61019
Royal Borough of Kingston,12/06/2023,90248302,567.24,CN Healthcare,SOCIAL SERVICES - OTHER,Adult Social Care & Health,Homecare - new framework,A56127
Royal Borough of Kingston,12/06/2023,90248377,945.40,CN Healthcare,SOCIAL SERVICES - OTHER,Adult Social Care & Health,Homecare - new framework,A56127
Royal Borough of Kingston,12/06/2023,90248494,630.27,CN Healthcare,SOCIAL SERVICES - OTHER,Adult Social Care & Health,Homecare - new framework,A56127
Royal Borough of Kingston,12/06/2023,90248699,693.29,CN Healthcare,SOCIAL SERVICES - OTHER,Adult Social Care & Health,Homecare - new framework,A56127
Royal Borough of Kingston,12/06/2023,90248784,"1,226.53",CN Healthcare,SOCIAL SERVICES - OTHER,Adult Social Care & Health,Homecare - new framework,A56127
Royal Borough of Kingston,12/06/2023,90248785,"2,861.90",CN Healthcare,SOCIAL SERVICES - OTHER,Adult Social Care & Health,Homecare - new framework,A56127
Royal Borough of Kingston,12/06/2023,90248786,"2,861.90",CN Healthcare,SOCIAL SERVICES - OTHER,Adult Social Care & Health,Homecare - new framework,A56127
Royal Borough of Kingston,12/06/2023,90248787,"1,635.37",CN Healthcare,SOCIAL SERVICES - OTHER,Adult Social Care & Health,Homecare - new framework,A56127
Royal Borough of Kingston,19/06/2023,90250662,567.24,CN Healthcare,SOCIAL SERVICES - OTHER,Adult Social Care & Health,Homecare - new framework,A56127
Royal Borough of Kingston,19/06/2023,90250737,945.40,CN Healthcare,SOCIAL SERVICES - OTHER,Adult Social Care & Health,Homecare - new framework,A56127
Royal Borough of Kingston,19/06/2023,90251099,693.29,CN Healthcare,SOCIAL SERVICES - OTHER,Adult Social Care & Health,Homecare - new framework,A56127
Royal Borough of Kingston,19/06/2023,90251121,549.23,CN Healthcare,SOCIAL SERVICES - OTHER,Adult Social Care & Health,Homecare - new framework,A56127
Royal Borough of Kingston,26/06/2023,90251564,567.24,CN Healthcare,SOCIAL SERVICES - OTHER,Adult Social Care & Health,Homecare - new framework,A56127
Royal Borough of Kingston,26/06/2023,90251661,945.40,CN Healthcare,SOCIAL SERVICES - OTHER,Adult Social Care & Health,Homecare - new framework,A56127
Royal Borough of Kingston,26/06/2023,90252003,693.29,CN Healthcare,SOCIAL SERVICES - OTHER,Adult Social Care & Health,Homecare - new framework,A56127
Royal Borough of Kingston,26/06/2023,90252028,567.24,CN Healthcare,SOCIAL SERVICES - OTHER,Adult Social Care & Health,Homecare - new framework,A56127
Royal Borough of Kingston,03/07/2023,90253148,567.24,CN Healthcare,SOCIAL SERVICES - OTHER,Adult Social Care & Health,Homecare - new framework,A56127
Royal Borough of Kingston,03/07/2023,90253217,945.40,CN Healthcare,SOCIAL SERVICES - OTHER,Adult Social Care & Health,Homecare - new framework,A56127
Royal Borough of Kingston,03/07/2023,90253535,693.29,CN Healthcare,SOCIAL SERVICES - OTHER,Adult Social Care & Health,Homecare - new framework,A56127
Royal Borough of Kingston,03/07/2023,90253560,567.24,CN Healthcare,SOCIAL SERVICES - OTHER,Adult Social Care & Health,Homecare - new framework,A56127
Royal Borough of Kingston,20/07/2023,70050819,"4,607.15",COBHAM RENTALS LTD,PLS LANDLORDS,Place,Compensation (In Lieu Of Works),A20039
Royal Borough of Kingston,27/07/2023,70051059,"2,232.00",COBHAM RENTALS LTD,PLS LANDLORDS,Place,PSL Payments To Landlords,A22031
Royal Borough of Kingston,25/07/2023,90254455,"1,116.00",COBHAM RENTALS LTD,PLS LANDLORDS,Place,PSL Payments To Landlords,A22031
Royal Borough of Kingston,01/07/2023,90252785,"14,723.14",COGNITHAN,SOCIAL SERVICES RESIDENTIAL,Adult Social Care & Health,Independent Placements,A56006
Royal Borough of Kingston,01/06/2023,70049687,"13,455.00",COGNUS LIMITED,TEMP STAFF & CONSULTANCY,Place,Professional Fees,A44066
Royal Borough of Kingston,25/07/2023,90254277,"1,215.00",REDACTED - PERSONAL DATA,PLS LANDLORDS,Place,PSL Payments To Landlords,A22031
Royal Borough of Kingston,25/07/2023,90254296,"1,094.00",REDACTED - PERSONAL DATA,PLS LANDLORDS,Place,PSL Payments To Landlords,A22031
Royal Borough of Kingston,31/07/2023,70049423,514.39,COMETT LIMITED,ENTERTAINMENTS INDUSTRY,Adult Social Care & Health,Consultancy Services - Other,A44065
Royal Borough of Kingston,01/07/2023,90252831,"1,976.25",COMFORT CARE SERVICES UK LTD,SOCIAL SERVICES-HOME CARE,Adult Social Care & Health,Supported Living - new framework,A56126
Royal Borough of Kingston,01/07/2023,90252832,"3,163.98",COMFORT CARE SERVICES UK LTD,SOCIAL SERVICES-HOME CARE,Adult Social Care & Health,Supported Living - new framework,A56126
Royal Borough of Kingston,01/07/2023,90252835,"1,843.84",COMFORT CARE SERVICES UK LTD,SOCIAL SERVICES-HOME CARE,Adult Social Care & Health,Supported Living - new framework,A56126
Royal Borough of Kingston,01/07/2023,90252836,921.92,COMFORT CARE SERVICES UK LTD,SOCIAL SERVICES-HOME CARE,Adult Social Care & Health,Supported Living - new framework,A56126
Royal Borough of Kingston,01/07/2023,90252838,"1,843.84",COMFORT CARE SERVICES UK LTD,SOCIAL SERVICES-HOME CARE,Adult Social Care & Health,Supported Living - new framework,A56126
Royal Borough of Kingston,01/07/2023,90252839,921.92,COMFORT CARE SERVICES UK LTD,SOCIAL SERVICES-HOME CARE,Adult Social Care & Health,Supported Living - new framework,A56126
Royal Borough of Kingston,01/07/2023,90252979,"-2,142.00",COMFORT CARE SERVICES UK LTD,SOCIAL SERVICES-HOME CARE,Adult Social Care & Health,Supported Living - new framework,A56126
Royal Borough of Kingston,01/07/2023,90252980,-535.50,COMFORT CARE SERVICES UK LTD,SOCIAL SERVICES-HOME CARE,Adult Social Care & Health,Supported Living - new framework,A56126
Royal Borough of Kingston,01/07/2023,90252982,"-2,142.00",COMFORT CARE SERVICES UK LTD,SOCIAL SERVICES-HOME CARE,Adult Social Care & Health,Supported Living - new framework,A56126
Royal Borough of Kingston,01/07/2023,90252983,-535.50,COMFORT CARE SERVICES UK LTD,SOCIAL SERVICES-HOME CARE,Adult Social Care & Health,Supported Living - new framework,A56126
Royal Borough of Kingston,01/07/2023,90252985,"1,976.25",COMFORT CARE SERVICES UK LTD,SOCIAL SERVICES-HOME CARE,Adult Social Care & Health,Supported Living - new framework,A56126
Royal Borough of Kingston,01/07/2023,90252986,790.50,COMFORT CARE SERVICES UK LTD,SOCIAL SERVICES-HOME CARE,Adult Social Care & Health,Supported Living - new framework,A56126
Royal Borough of Kingston,01/07/2023,90252988,933.72,COMFORT CARE SERVICES UK LTD,SOCIAL SERVICES-HOME CARE,Adult Social Care & Health,Supported Living - new framework,A56126
Royal Borough of Kingston,01/07/2023,90252990,"1,843.84",COMFORT CARE SERVICES UK LTD,SOCIAL SERVICES-HOME CARE,Adult Social Care & Health,Supported Living - new framework,A56126
Royal Borough of Kingston,01/07/2023,90252991,921.92,COMFORT CARE SERVICES UK LTD,SOCIAL SERVICES-HOME CARE,Adult Social Care & Health,Supported Living - new framework,A56126
Royal Borough of Kingston,01/07/2023,90252992,592.81,COMFORT CARE SERVICES UK LTD,SOCIAL SERVICES-HOME CARE,Adult Social Care & Health,Supported Living - new framework,A56126
Royal Borough of Kingston,01/07/2023,90252993,"1,185.75",COMFORT CARE SERVICES UK LTD,SOCIAL SERVICES-HOME CARE,Adult Social Care & Health,Supported Living - new framework,A56126
Royal Borough of Kingston,01/07/2023,90252997,"1,843.84",COMFORT CARE SERVICES UK LTD,SOCIAL SERVICES-HOME CARE,Adult Social Care & Health,Supported Living - new framework,A56126
Royal Borough of Kingston,01/07/2023,90252998,921.92,COMFORT CARE SERVICES UK LTD,SOCIAL SERVICES-HOME CARE,Adult Social Care & Health,Supported Living - new framework,A56126
Royal Borough of Kingston,01/07/2023,90253000,"2,213.40",COMFORT CARE SERVICES UK LTD,SOCIAL SERVICES-HOME CARE,Adult Social Care & Health,Supported Living - new framework,A56126
Royal Borough of Kingston,01/07/2023,90253001,553.35,COMFORT CARE SERVICES UK LTD,SOCIAL SERVICES-HOME CARE,Adult Social Care & Health,Supported Living - new framework,A56126
Royal Borough of Kingston,01/07/2023,90253003,"1,843.84",COMFORT CARE SERVICES UK LTD,SOCIAL SERVICES-HOME CARE,Adult Social Care & Health,Supported Living - new framework,A56126
Royal Borough of Kingston,01/07/2023,90253004,921.92,COMFORT CARE SERVICES UK LTD,SOCIAL SERVICES-HOME CARE,Adult Social Care & Health,Supported Living - new framework,A56126
Royal Borough of Kingston,01/07/2023,90253007,883.50,COMFORT CARE SERVICES UK LTD,SOCIAL SERVICES-HOME CARE,Adult Social Care & Health,Supported Living - new framework,A56126
Royal Borough of Kingston,01/07/2023,90253008,"2,213.40",COMFORT CARE SERVICES UK LTD,SOCIAL SERVICES-HOME CARE,Adult Social Care & Health,Supported Living - new framework,A56126
Royal Borough of Kingston,01/07/2023,90253009,553.35,COMFORT CARE SERVICES UK LTD,SOCIAL SERVICES-HOME CARE,Adult Social Care & Health,Supported Living - new framework,A56126
Royal Borough of Kingston,01/07/2023,90253010,"1,976.25",COMFORT CARE SERVICES UK LTD,SOCIAL SERVICES-HOME CARE,Adult Social Care & Health,Supported Living - new framework,A56126
Royal Borough of Kingston,01/07/2023,90253011,"2,074.83",COMFORT CARE SERVICES UK LTD,SOCIAL SERVICES-HOME CARE,Adult Social Care & Health,Supported Living - new framework,A56126
Royal Borough of Kingston,01/07/2023,90253012,691.61,COMFORT CARE SERVICES UK LTD,SOCIAL SERVICES-HOME CARE,Adult Social Care & Health,Supported Living - new framework,A56126
Royal Borough of Kingston,01/07/2023,90253014,933.72,COMFORT CARE SERVICES UK LTD,SOCIAL SERVICES-HOME CARE,Adult Social Care & Health,Supported Living - new framework,A56126
Royal Borough of Kingston,01/07/2023,90253016,"1,843.84",COMFORT CARE SERVICES UK LTD,SOCIAL SERVICES-HOME CARE,Adult Social Care & Health,Supported Living - new framework,A56126
Royal Borough of Kingston,01/07/2023,90253017,921.92,COMFORT CARE SERVICES UK LTD,SOCIAL SERVICES-HOME CARE,Adult Social Care & Health,Supported Living - new framework,A56126
Royal Borough of Kingston,01/07/2023,90253019,"1,843.84",COMFORT CARE SERVICES UK LTD,SOCIAL SERVICES-HOME CARE,Adult Social Care & Health,Supported Living - new framework,A56126
Royal Borough of Kingston,01/07/2023,90253020,921.92,COMFORT CARE SERVICES UK LTD,SOCIAL SERVICES-HOME CARE,Adult Social Care & Health,Supported Living - new framework,A56126
Royal Borough of Kingston,01/07/2023,90253022,"1,843.84",COMFORT CARE SERVICES UK LTD,SOCIAL SERVICES-HOME CARE,Adult Social Care & Health,Supported Living - new framework,A56126
Royal Borough of Kingston,01/07/2023,90253023,921.92,COMFORT CARE SERVICES UK LTD,SOCIAL SERVICES-HOME CARE,Adult Social Care & Health,Supported Living - new framework,A56126
Royal Borough of Kingston,01/07/2023,90253025,"1,843.84",COMFORT CARE SERVICES UK LTD,SOCIAL SERVICES-HOME CARE,Adult Social Care & Health,Supported Living - new framework,A56126
Royal Borough of Kingston,01/07/2023,90253026,921.92,COMFORT CARE SERVICES UK LTD,SOCIAL SERVICES-HOME CARE,Adult Social Care & Health,Supported Living - new framework,A56126
Royal Borough of Kingston,01/07/2023,90253031,"1,843.84",COMFORT CARE SERVICES UK LTD,SOCIAL SERVICES-HOME CARE,Adult Social Care & Health,Supported Living - new framework,A56126
Royal Borough of Kingston,01/07/2023,90253032,921.92,COMFORT CARE SERVICES UK LTD,SOCIAL SERVICES-HOME CARE,Adult Social Care & Health,Supported Living - new framework,A56126
Royal Borough of Kingston,01/07/2023,90253034,"2,213.40",COMFORT CARE SERVICES UK LTD,SOCIAL SERVICES-HOME CARE,Adult Social Care & Health,Supported Living - new framework,A56126
Royal Borough of Kingston,01/07/2023,90253035,553.35,COMFORT CARE SERVICES UK LTD,SOCIAL SERVICES-HOME CARE,Adult Social Care & Health,Supported Living - new framework,A56126
Royal Borough of Kingston,01/07/2023,90253037,"2,213.40",COMFORT CARE SERVICES UK LTD,SOCIAL SERVICES-HOME CARE,Adult Social Care & Health,Supported Living - new framework,A56126
Royal Borough of Kingston,01/07/2023,90253038,553.35,COMFORT CARE SERVICES UK LTD,SOCIAL SERVICES-HOME CARE,Adult Social Care & Health,Supported Living - new framework,A56126
Royal Borough of Kingston,01/07/2023,90253040,592.81,COMFORT CARE SERVICES UK LTD,SOCIAL SERVICES-HOME CARE,Adult Social Care & Health,Supported Living - new framework,A56126
Royal Borough of Kingston,01/07/2023,90253041,"1,185.75",COMFORT CARE SERVICES UK LTD,SOCIAL SERVICES-HOME CARE,Adult Social Care & Health,Supported Living - new framework,A56126
Royal Borough of Kingston,01/07/2023,90253048,"1,843.84",COMFORT CARE SERVICES UK LTD,SOCIAL SERVICES-HOME CARE,Adult Social Care & Health,Supported Living - new framework,A56126
Royal Borough of Kingston,01/07/2023,90253049,921.92,COMFORT CARE SERVICES UK LTD,SOCIAL SERVICES-HOME CARE,Adult Social Care & Health,Supported Living - new framework,A56126
Royal Borough of Kingston,01/07/2023,90253051,"1,843.84",COMFORT CARE SERVICES UK LTD,SOCIAL SERVICES-HOME CARE,Adult Social Care & Health,Supported Living - new framework,A56126
Royal Borough of Kingston,01/07/2023,90253052,921.92,COMFORT CARE SERVICES UK LTD,SOCIAL SERVICES-HOME CARE,Adult Social Care & Health,Supported Living - new framework,A56126
Royal Borough of Kingston,01/07/2023,90253811,"1,132.00",COMFORT CARE SERVICES UK LTD,SOCIAL SERVICES-HOME CARE,Adult Social Care & Health,Personal Budget - Third Party,A61019
Royal Borough of Kingston,01/07/2023,90253812,"4,509.52",COMFORT CARE SERVICES UK LTD,SOCIAL SERVICES-HOME CARE,Adult Social Care & Health,Personal Budget - Third Party,A61019
Royal Borough of Kingston,01/07/2023,90253814,"1,095.17",COMFORT CARE SERVICES UK LTD,SOCIAL SERVICES-HOME CARE,Adult Social Care & Health,Personal Budget - Third Party,A61019
Royal Borough of Kingston,01/07/2023,90253841,966.32,COMFORT CARE SERVICES UK LTD,SOCIAL SERVICES-HOME CARE,Adult Social Care & Health,Personal Budget - Third Party,A61019
Royal Borough of Kingston,01/07/2023,90253842,"4,509.52",COMFORT CARE SERVICES UK LTD,SOCIAL SERVICES-HOME CARE,Adult Social Care & Health,Personal Budget - Third Party,A61019
Royal Borough of Kingston,01/07/2023,90253844,"1,095.17",COMFORT CARE SERVICES UK LTD,SOCIAL SERVICES-HOME CARE,Adult Social Care & Health,Personal Budget - Third Party,A61019
Royal Borough of Kingston,01/07/2023,90253862,"1,132.00",COMFORT CARE SERVICES UK LTD,SOCIAL SERVICES-HOME CARE,Adult Social Care & Health,Personal Budget - Third Party,A61019
Royal Borough of Kingston,01/07/2023,90253863,"4,509.52",COMFORT CARE SERVICES UK LTD,SOCIAL SERVICES-HOME CARE,Adult Social Care & Health,Personal Budget - Third Party,A61019
Royal Borough of Kingston,01/07/2023,90253865,"1,095.17",COMFORT CARE SERVICES UK LTD,SOCIAL SERVICES-HOME CARE,Adult Social Care & Health,Personal Budget - Third Party,A61019
Royal Borough of Kingston,01/07/2023,90253942,"4,198.91",COMFORT CARE SERVICES UK LTD,SOCIAL SERVICES-HOME CARE,Adult Social Care & Health,Personal Budget - Third Party,A61019
Royal Borough of Kingston,01/07/2023,90253944,"1,490.93",COMFORT CARE SERVICES UK LTD,SOCIAL SERVICES-HOME CARE,Adult Social Care & Health,Personal Budget - Third Party,A61019
Royal Borough of Kingston,01/07/2023,90253945,"4,509.52",COMFORT CARE SERVICES UK LTD,SOCIAL SERVICES-HOME CARE,Adult Social Care & Health,Personal Budget - Third Party,A61019
Royal Borough of Kingston,01/07/2023,90253947,"1,095.17",COMFORT CARE SERVICES UK LTD,SOCIAL SERVICES-HOME CARE,Adult Social Care & Health,Personal Budget - Third Party,A61019
Royal Borough of Kingston,01/07/2023,90253963,"1,518.50",COMFORT CARE SERVICES UK LTD,SOCIAL SERVICES-HOME CARE,Adult Social Care & Health,Personal Budget - Third Party,A61019
Royal Borough of Kingston,01/07/2023,90253964,"4,509.52",COMFORT CARE SERVICES UK LTD,SOCIAL SERVICES-HOME CARE,Adult Social Care & Health,Personal Budget - Third Party,A61019
Royal Borough of Kingston,01/07/2023,90253966,"1,095.17",COMFORT CARE SERVICES UK LTD,SOCIAL SERVICES-HOME CARE,Adult Social Care & Health,Personal Budget - Third Party,A61019
Royal Borough of Kingston,01/07/2023,90253981,"1,601.32",COMFORT CARE SERVICES UK LTD,SOCIAL SERVICES-HOME CARE,Adult Social Care & Health,Personal Budget - Third Party,A61019
Royal Borough of Kingston,01/07/2023,90253982,"4,509.52",COMFORT CARE SERVICES UK LTD,SOCIAL SERVICES-HOME CARE,Adult Social Care & Health,Personal Budget - Third Party,A61019
Royal Borough of Kingston,01/07/2023,90253984,"1,095.17",COMFORT CARE SERVICES UK LTD,SOCIAL SERVICES-HOME CARE,Adult Social Care & Health,Personal Budget - Third Party,A61019
Royal Borough of Kingston,01/07/2023,90254110,"3,084.77",COMFORT CARE SERVICES UK LTD,SOCIAL SERVICES-HOME CARE,Adult Social Care & Health,Personal Budget - Third Party,A61019
Royal Borough of Kingston,01/07/2023,90252740,"8,507.99",COMMUNITY CARE SOLUTIONS LTD,SOCIAL SERVICES RESIDENTIAL,Adult Social Care & Health,Independent Placements,A56006
Royal Borough of Kingston,01/07/2023,90252743,"8,781.64",CONGRESS HOUSE LIMITED,SOCIAL SERVICES RESIDENTIAL,Adult Social Care & Health,Independent Placements,A56006
Royal Borough of Kingston,25/07/2023,90254568,842.00,REDACTED - PERSONAL DATA,PLS LANDLORDS,Place,PSL Payments To Landlords,A22031
Royal Borough of Kingston,18/07/2023,90251454,"3,944.00",COOMBE ACADEMY TRUST,ACADEMIC INSTNS - OTHER,Schools,Miscellaneous Expenses,A49000
Royal Borough of Kingston,24/03/2023,90252283,777.60,COOMBE ACADEMY TRUST,ACADEMIC INSTNS - OTHER,Schools,Miscellaneous Expenses,A49000
Royal Borough of Kingston,18/07/2023,90251457,"6,000.00",Coombe Boys School,SCHOOL FUNDS,Schools,Miscellaneous Expenses,A49000
Royal Borough of Kingston,18/07/2023,70050681,782.00,COOMBE HILL INFANTS SCHOOL,SCHOOL FUNDS,Childrens Services,MSF Claims Support Staff - Internal Trading,A46108
Royal Borough of Kingston,06/07/2023,90249345,"115,549.93",COOMBE HILL INFANTS SCHOOL,SCHOOL FUNDS,Schools,Miscellaneous Expenses,A49000
Royal Borough of Kingston,06/07/2023,90249346,"152,594.06",COOMBE HILL JUNIOR SCHOOL,SCHOOL FUNDS,Schools,Miscellaneous Expenses,A49000
Royal Borough of Kingston,29/06/2023,70049522,540.00,CORPUS CHRISTI CATHOLIC PRIMARY SCHOOL ,SCHOOL FUNDS,Childrens Services,MSF Claims Support Staff - Internal Trading,A46108
Royal Borough of Kingston,29/06/2023,70049525,557.81,CORPUS CHRISTI CATHOLIC PRIMARY SCHOOL ,SCHOOL FUNDS,Childrens Services,MSF Claims Support Staff - Internal Trading,A46108
Royal Borough of Kingston,06/07/2023,90249347,"153,762.37",CORPUS CHRISTI CATHOLIC PRIMARY SCHOOL ,SCHOOL FUNDS,Schools,Miscellaneous Expenses,A49000
Royal Borough of Kingston,01/07/2023,90252369,"3,706.71",COUNTRY COURT CARE HOMES 2 LTD,SOCIAL SERVICES RESIDENTIAL,Adult Social Care & Health,Independent Placements,A56006
Royal Borough of Kingston,01/07/2023,90252419,"3,872.79",COUNTRY COURT CARE HOMES 2 LTD,SOCIAL SERVICES RESIDENTIAL,Adult Social Care & Health,Independent Placements,A56006
Royal Borough of Kingston,01/07/2023,90252491,"3,705.34",COUNTRY COURT CARE HOMES 2 LTD,SOCIAL SERVICES RESIDENTIAL,Adult Social Care & Health,Independent Placements,A56006
Royal Borough of Kingston,01/07/2023,90252500,"3,952.50",COUNTRY COURT CARE HOMES 2 LTD,SOCIAL SERVICES RESIDENTIAL,Adult Social Care & Health,Independent Placements,A56006
Royal Borough of Kingston,01/07/2023,90252669,"3,764.29",COUNTRY COURT CARE HOMES 2 LTD,SOCIAL SERVICES RESIDENTIAL,Adult Social Care & Health,Independent Placements,A56006
Royal Borough of Kingston,01/07/2023,90252820,"1,800.00",COUNTRY COURT CARE HOMES 2 LTD,SOCIAL SERVICES RESIDENTIAL,Adult Social Care & Health,Other Private Contractors - Third Party,A56080
Royal Borough of Kingston,01/07/2023,90252822,897.96,COUNTRY COURT CARE HOMES 2 LTD,SOCIAL SERVICES RESIDENTIAL,Adult Social Care & Health,Other Private Contractors - Third Party,A56080
Royal Borough of Kingston,30/06/2023,70049774,"939,213.59",COUNTRYSIDE PROPERTIES (UK) LTD,CONSTRUCTION INDUSTRY,Housing Revenue Account,Payments to Contractors,C14000
Royal Borough of Kingston,30/06/2023,70049795,"266,440.44",COUNTRYSIDE PROPERTIES (UK) LTD,CONSTRUCTION INDUSTRY,Housing Revenue Account,Payments to Contractors,C14000
Royal Borough of Kingston,30/06/2023,70049796,"333,776.43",COUNTRYSIDE PROPERTIES (UK) LTD,CONSTRUCTION INDUSTRY,Housing Revenue Account,Payments to Contractors,C14000
Royal Borough of Kingston,31/05/2023,70047956,"1,599.00",CPG EXECUTIVE CONSULTING LTD,MANAGEMENT & TRAINING SERVICES,Place,Consultancy Services,A56007
Royal Borough of Kingston,30/06/2023,70050500,"15,753.16",CRAVENCROFT LTD,CONSTRUCTION INDUSTRY,Place,Payments to Contractors,C14000
Royal Borough of Kingston,16/06/2023,70048861,"1,549.50",Credence Direct Limited,TEMP STAFF & CONSULTANCY,Adult Social Care & Health,Other Private Contractors - Third Party,A56080
Royal Borough of Kingston,20/07/2023,70050871,"1,299.50",Credence Direct Limited,TEMP STAFF & CONSULTANCY,Adult Social Care & Health,Other Private Contractors - Third Party,A56080
Royal Borough of Kingston,25/07/2023,90254317,"1,807.09",CROMWOOD LIMITED,PLS LANDLORDS,Place,PSL Payments To Landlords,A22031
Royal Borough of Kingston,23/06/2023,70049183,"2,750.00",Crosthwaite Ltd,SUNDRY SUPPLIER - FINANCE,Place,Property-Related Professional Fees,A20035
Royal Borough of Kingston,15/06/2023,70048996,"239,420.11",LONDON BOROUGH OF CROYDON,CENTRAL & LOCAL GOVERNMENT,Corporate & Communities,Waste Disposal Contract,A56074
Royal Borough of Kingston,22/06/2023,70049102,"7,088.86",LONDON BOROUGH OF CROYDON,CENTRAL & LOCAL GOVERNMENT,Corporate & Communities,Consultancy Services - Other,A44065
Royal Borough of Kingston,01/07/2023,70050951,"2,010.00",CRYSTAL & CO,ACCOMMODATION BED & BREAKFAST,Place,Bed & Breakfast,A56000
Royal Borough of Kingston,01/07/2023,70050952,"1,770.00",CRYSTAL & CO,ACCOMMODATION BED & BREAKFAST,Place,Bed & Breakfast,A56000
Royal Borough of Kingston,01/07/2023,70050953,"1,770.00",CRYSTAL & CO,ACCOMMODATION BED & BREAKFAST,Place,Bed & Breakfast,A56000
Royal Borough of Kingston,01/07/2023,70050954,"2,400.00",CRYSTAL & CO,ACCOMMODATION BED & BREAKFAST,Place,Bed & Breakfast,A56000
Royal Borough of Kingston,01/07/2023,70050955,"2,010.00",CRYSTAL & CO,ACCOMMODATION BED & BREAKFAST,Place,Bed & Breakfast,A56000
Royal Borough of Kingston,01/07/2023,70050956,"1,680.00",CRYSTAL & CO,ACCOMMODATION BED & BREAKFAST,Place,Bed & Breakfast,A56000
Royal Borough of Kingston,01/07/2023,70050957,"1,740.00",CRYSTAL & CO,ACCOMMODATION BED & BREAKFAST,Place,Bed & Breakfast,A56000
Royal Borough of Kingston,28/07/2023,70050958,"1,740.00",CRYSTAL & CO,ACCOMMODATION BED & BREAKFAST,Place,Bed & Breakfast,A56000
Royal Borough of Kingston,01/07/2023,70050959,"2,250.00",CRYSTAL & CO,ACCOMMODATION BED & BREAKFAST,Place,Bed & Breakfast,A56000
Royal Borough of Kingston,01/07/2023,70050960,"2,160.00",CRYSTAL & CO,ACCOMMODATION BED & BREAKFAST,Place,Bed & Breakfast,A56000
Royal Borough of Kingston,28/07/2023,70050961,"1,350.00",CRYSTAL & CO,ACCOMMODATION BED & BREAKFAST,Place,Bed & Breakfast,A56000
Royal Borough of Kingston,01/07/2023,70050962,"2,010.00",CRYSTAL & CO,ACCOMMODATION BED & BREAKFAST,Place,Bed & Breakfast,A56000
Royal Borough of Kingston,01/07/2023,70050963,"1,680.00",CRYSTAL & CO,ACCOMMODATION BED & BREAKFAST,Place,Bed & Breakfast,A56000
Royal Borough of Kingston,01/07/2023,70050964,"2,250.00",CRYSTAL & CO,ACCOMMODATION BED & BREAKFAST,Place,Bed & Breakfast,A56000
Royal Borough of Kingston,25/07/2023,90254404,"1,317.00",REDACTED - PERSONAL DATA,PLS LANDLORDS,Place,PSL Payments To Landlords,A22031
Royal Borough of Kingston,19/06/2023,70049046,"2,185.00",D & L House Clearance Limited,BUILDING MNTCE - SERVICES,Corporate & Communities,Grants Given For Capital Purposes,C20004
Royal Borough of Kingston,08/06/2023,70049554,"1,485.00",D & L House Clearance Limited,BUILDING MNTCE - SERVICES,Adult Social Care & Health,Other Cleaning And Waste-Related Third Party Payment,A56064
Royal Borough of Kingston,25/07/2023,90254476,"1,321.66",REDACTED - PERSONAL DATA,PLS LANDLORDS,Place,PSL Payments To Landlords,A22031
Royal Borough of Kingston,25/07/2023,90254509,"1,094.00",REDACTED - PERSONAL DATA,PLS LANDLORDS,Place,PSL Payments To Landlords,A22031
Royal Borough of Kingston,01/07/2023,90254132,"3,203.85",Darethealthcare UK Limited,ACCOMMODATION - OTHER,Adult Social Care & Health,Personal Budget - Third Party,A61019
Royal Borough of Kingston,01/07/2023,90254140,"3,518.37",Darethealthcare UK Limited,ACCOMMODATION - OTHER,Adult Social Care & Health,Personal Budget - Third Party,A61019
Royal Borough of Kingston,06/06/2023,90248188,500.00,REDACTED - PERSONAL DATA,GRANTS & EX GRATIA PAYMENTS,Adult Social Care & Health,"Grants, Contributions & Donations",A47005
Royal Borough of Kingston,25/07/2023,90254541,"1,400.00",REDACTED - PERSONAL DATA,PLS LANDLORDS,Place,PSL Payments To Landlords,A22031
Royal Borough of Kingston,06/06/2023,90248177,500.00,REDACTED - PERSONAL DATA,GRANTS & EX GRATIA PAYMENTS,Adult Social Care & Health,"Grants, Contributions & Donations",A47005
Royal Borough of Kingston,25/07/2023,90254473,"1,094.00",REDACTED - PERSONAL DATA,PLS LANDLORDS,Place,PSL Payments To Landlords,A22031
Royal Borough of Kingston,25/07/2023,90254562,"1,000.00",REDACTED - PERSONAL DATA,PLS LANDLORDS,Place,PSL Payments To Landlords,A22031
Royal Borough of Kingston,06/06/2023,90248145,500.00,REDACTED - PERSONAL DATA,GRANTS & EX GRATIA PAYMENTS,Adult Social Care & Health,"Grants, Contributions & Donations",A47005
Royal Borough of Kingston,25/07/2023,90254493,"1,094.00",REDACTED - PERSONAL DATA,PLS LANDLORDS,Place,PSL Payments To Landlords,A22031
Royal Borough of Kingston,30/06/2023,70049515,"2,550.00",Delta Wise Limited,ACCOMMODATION BED & BREAKFAST,Place,Bed & Breakfast,A56000
Royal Borough of Kingston,29/06/2023,70049517,"2,010.00",Delta Wise Limited,ACCOMMODATION BED & BREAKFAST,Place,Bed & Breakfast,A56000
Royal Borough of Kingston,30/06/2023,70049519,"1,890.00",Delta Wise Limited,ACCOMMODATION BED & BREAKFAST,Place,Bed & Breakfast,A56000
Royal Borough of Kingston,30/06/2023,70049528,"3,960.00",Delta Wise Limited,ACCOMMODATION BED & BREAKFAST,Place,Bed & Breakfast,A56000
Royal Borough of Kingston,30/06/2023,70049534,"4,950.00",Delta Wise Limited,ACCOMMODATION BED & BREAKFAST,Place,Bed & Breakfast,A56000
Royal Borough of Kingston,30/06/2023,70049538,"4,260.00",Delta Wise Limited,ACCOMMODATION BED & BREAKFAST,Place,Bed & Breakfast,A56000
Royal Borough of Kingston,30/06/2023,70049540,850.00,Delta Wise Limited,ACCOMMODATION BED & BREAKFAST,Place,Bed & Breakfast,A56000
Royal Borough of Kingston,30/06/2023,70049541,"3,960.00",Delta Wise Limited,ACCOMMODATION BED & BREAKFAST,Place,Bed & Breakfast,A56000
Royal Borough of Kingston,30/06/2023,70049546,"2,550.00",Delta Wise Limited,ACCOMMODATION BED & BREAKFAST,Place,Bed & Breakfast,A56000
Royal Borough of Kingston,30/06/2023,70049547,"2,970.00",Delta Wise Limited,ACCOMMODATION BED & BREAKFAST,Place,Bed & Breakfast,A56000
Royal Borough of Kingston,30/06/2023,70049548,"3,450.00",Delta Wise Limited,ACCOMMODATION BED & BREAKFAST,Place,Bed & Breakfast,A56000
Royal Borough of Kingston,30/06/2023,70049577,"1,800.00",Delta Wise Limited,ACCOMMODATION BED & BREAKFAST,Place,Bed & Breakfast,A56000
Royal Borough of Kingston,01/07/2023,90253994,"6,521.34",Dephinus Healthcare Ltd,ACCOMMODATION - OTHER,Adult Social Care & Health,Personal Budget - Third Party,A61019
Royal Borough of Kingston,01/07/2023,90254106,"6,998.25",Dephinus Healthcare Ltd,ACCOMMODATION - OTHER,Adult Social Care & Health,Personal Budget - Third Party,A61019
Royal Borough of Kingston,01/07/2023,90254124,"13,487.35",Dephinus Healthcare Ltd,ACCOMMODATION - OTHER,Adult Social Care & Health,Personal Budget - Third Party,A61019
Royal Borough of Kingston,01/07/2023,90254126,"7,207.50",Dephinus Healthcare Ltd,ACCOMMODATION - OTHER,Adult Social Care & Health,Personal Budget - Third Party,A61019
Royal Borough of Kingston,12/07/2023,70050878,"15,000.00",DEPT for EDUCATION,SUNDRY SUPPLIER - FINANCE,Childrens Services,Extended Role of Virtual School Head,A91143
Royal Borough of Kingston,03/07/2023,70049347,"1,150.00",DEXTERS LIMITED,LANDLORDS,Adult Social Care & Health,Building Rents,A22005
Royal Borough of Kingston,18/06/2023,70049600,"5,007.00",DEXTERS LIMITED,LANDLORDS,Place,Prevention Of Homelessness,A44141
Royal Borough of Kingston,25/07/2023,90254200,"1,321.00",REDACTED - PERSONAL DATA,PLS LANDLORDS,Place,PSL Payments To Landlords,A22031
Royal Borough of Kingston,06/06/2023,90248146,500.00,REDACTED - PERSONAL DATA,GRANTS & EX GRATIA PAYMENTS,Adult Social Care & Health,"Grants, Contributions & Donations",A47005
Royal Borough of Kingston,31/05/2023,70050970,"26,854.00",DISCLOSURE AND BARRING SERVICE,LEGAL & PROFESSIONAL SERVICES,Corporate & Communities,DBS Checks,A15029
Royal Borough of Kingston,30/04/2023,70050971,"15,586.00",DISCLOSURE AND BARRING SERVICE,LEGAL & PROFESSIONAL SERVICES,Corporate & Communities,DBS Checks,A15029
Royal Borough of Kingston,31/03/2023,70050972,"22,142.00",DISCLOSURE AND BARRING SERVICE,LEGAL & PROFESSIONAL SERVICES,Corporate & Communities,DBS Checks,A15029
Royal Borough of Kingston,30/06/2023,70050973,"26,664.00",DISCLOSURE AND BARRING SERVICE,LEGAL & PROFESSIONAL SERVICES,Corporate & Communities,DBS Checks,A15029
Royal Borough of Kingston,25/07/2023,90254538,"1,094.33",REDACTED - PERSONAL DATA,PLS LANDLORDS,Place,PSL Payments To Landlords,A22031
Royal Borough of Kingston,25/07/2023,90254539,867.83,REDACTED - PERSONAL DATA,PLS LANDLORDS,Place,PSL Payments To Landlords,A22031
Royal Borough of Kingston,17/07/2023,70050535,"6,081.58",DMA SIGNS LTD,BUILDING MNTCE - SERVICES,Housing Revenue Account,Lighting and Signs,A25006
Royal Borough of Kingston,30/06/2023,70049572,"6,140.00",DOLPHIN MOBILITY LIMITED,CONSTRUCTION INDUSTRY,Corporate & Communities,Grants Given For Capital Purposes,C20004
Royal Borough of Kingston,21/06/2023,70049602,"7,638.00",DOLPHIN MOBILITY LIMITED,CONSTRUCTION INDUSTRY,Corporate & Communities,Grants Given For Capital Purposes,C20004
Royal Borough of Kingston,04/07/2023,70050380,"6,803.00",DOLPHIN MOBILITY LIMITED,CONSTRUCTION INDUSTRY,Corporate & Communities,Grants Given For Capital Purposes,C20004
Royal Borough of Kingston,01/07/2023,90252769,"5,811.57",DOWNING (CHERTSEY ROAD) LTD,SOCIAL SERVICES RESIDENTIAL,Adult Social Care & Health,Independent Placements,A56006
Royal Borough of Kingston,01/07/2023,90254157,-748.87,DOWNING (CHERTSEY ROAD) LTD,SOCIAL SERVICES RESIDENTIAL,Adult Social Care & Health,Financially Assessed Contributions clients � Non VAT,A92047
Royal Borough of Kingston,25/07/2023,90254206,"1,675.00",REDACTED - PERSONAL DATA,PLS LANDLORDS,Place,PSL Payments To Landlords,A22031
Royal Borough of Kingston,25/07/2023,90254515,"1,314.00",REDACTED - PERSONAL DATA,PLS LANDLORDS,Place,PSL Payments To Landlords,A22031
Royal Borough of Kingston,06/06/2023,90248154,500.00,REDACTED - PERSONAL DATA,GRANTS & EX GRATIA PAYMENTS,Adult Social Care & Health,"Grants, Contributions & Donations",A47005
Royal Borough of Kingston,25/07/2023,90254345,"1,090.00",REDACTED - PERSONAL DATA,PLS LANDLORDS,Place,PSL Payments To Landlords,A22031
Royal Borough of Kingston,25/07/2023,90254186,"1,314.00",REDACTED - PERSONAL DATA,PLS LANDLORDS,Place,PSL Payments To Landlords,A22031
Royal Borough of Kingston,25/07/2023,90254503,"1,094.00",REDACTED - PERSONAL DATA,PLS LANDLORDS,Place,PSL Payments To Landlords,A22031
Royal Borough of Kingston,27/07/2023,70051034,"1,050.00",Driscoll Kingston,SUNDRY SUPPLIER - FINANCE,Housing Revenue Account,Compensation (In Lieu Of Works),A20039
Royal Borough of Kingston,27/03/2023,70051035,"9,000.00",Driscoll Kingston,SUNDRY SUPPLIER - FINANCE,Housing Revenue Account,Legal Services,A44025
Royal Borough of Kingston,25/07/2023,90254364,"1,094.00",EARLSFIELD PROPERTIES,PLS LANDLORDS,Place,PSL Payments To Landlords,A22031
Royal Borough of Kingston,25/07/2023,90254365,"1,094.00",EARLSFIELD PROPERTIES,PLS LANDLORDS,Place,PSL Payments To Landlords,A22031
Royal Borough of Kingston,25/07/2023,90254589,"1,047.00",EARLSFIELD PROPERTIES,PLS LANDLORDS,Place,PSL Payments To Landlords,A22031
Royal Borough of Kingston,16/06/2023,70049697,"-1,234.80",EDF ENERGY CUSTOMER PLC,UTILITIES,Housing Revenue Account,Electricity,A21000
Royal Borough of Kingston,27/06/2023,70050697,"1,087.05",EDF ENERGY CUSTOMER PLC,UTILITIES,Housing Revenue Account,Electricity,A21000
Royal Borough of Kingston,25/07/2023,90254222,"1,050.00",REDACTED - PERSONAL DATA,PLS LANDLORDS,Place,PSL Payments To Landlords,A22031
Royal Borough of Kingston,25/07/2023,90254241,"1,200.00",REDACTED - PERSONAL DATA,PLS LANDLORDS,Place,PSL Payments To Landlords,A22031
Royal Borough of Kingston,06/07/2023,90249357,"10,569.15",ELLINGHAM PRIMARY SCHOOL,ACADEMIC INSTNS - OTHER,Schools,Miscellaneous Expenses,A49000
Royal Borough of Kingston,01/07/2023,90252707,"10,378.80",ELYSIUM HEALTHCARE LTD,SOCIAL SERVICES - OTHER,Adult Social Care & Health,Independent Placements,A56006
Royal Borough of Kingston,01/07/2023,90252715,"10,013.62",ELYSIUM HEALTHCARE LTD,SOCIAL SERVICES - OTHER,Adult Social Care & Health,Independent Placements,A56006
Royal Borough of Kingston,01/07/2023,90252718,"11,914.36",ELYSIUM HEALTHCARE LTD,SOCIAL SERVICES - OTHER,Adult Social Care & Health,Independent Placements,A56006
Royal Borough of Kingston,01/07/2023,90252722,"10,257.81",ELYSIUM HEALTHCARE LTD,SOCIAL SERVICES - OTHER,Adult Social Care & Health,Independent Placements,A56006
Royal Borough of Kingston,01/07/2023,90252725,"10,588.89",ELYSIUM HEALTHCARE LTD,SOCIAL SERVICES - OTHER,Adult Social Care & Health,Independent Placements,A56006
Royal Borough of Kingston,01/07/2023,90252748,"10,378.80",ELYSIUM HEALTHCARE LTD,SOCIAL SERVICES - OTHER,Adult Social Care & Health,Independent Placements,A56006
Royal Borough of Kingston,01/07/2023,90252865,"5,239.25",EMEZZIONS LIMITED,SOCIAL SERVICES - OTHER,Adult Social Care & Health,Supported Living - new framework,A56126
Royal Borough of Kingston,01/07/2023,90252866,"2,806.74",EMEZZIONS LIMITED,SOCIAL SERVICES - OTHER,Adult Social Care & Health,Supported Living - new framework,A56126
Royal Borough of Kingston,26/06/2023,90252964,800.40,EMEZZIONS LIMITED,SOCIAL SERVICES - OTHER,Adult Social Care & Health,Supported Living - new framework,A56126
Royal Borough of Kingston,01/07/2023,90253027,"2,649.86",EMEZZIONS LIMITED,SOCIAL SERVICES - OTHER,Adult Social Care & Health,Supported Living - new framework,A56126
Royal Borough of Kingston,01/07/2023,90253028,"3,534.56",EMEZZIONS LIMITED,SOCIAL SERVICES - OTHER,Adult Social Care & Health,Supported Living - new framework,A56126
Royal Borough of Kingston,01/07/2023,90253029,"1,683.95",EMEZZIONS LIMITED,SOCIAL SERVICES - OTHER,Adult Social Care & Health,Supported Living - new framework,A56126
Royal Borough of Kingston,01/07/2023,90253043,"14,182.13",EMEZZIONS LIMITED,SOCIAL SERVICES - OTHER,Adult Social Care & Health,Supported Living - new framework,A56126
Royal Borough of Kingston,01/07/2023,90253045,"3,651.05",EMEZZIONS LIMITED,SOCIAL SERVICES - OTHER,Adult Social Care & Health,Supported Living - new framework,A56126
Royal Borough of Kingston,01/07/2023,90253046,"2,232.37",EMEZZIONS LIMITED,SOCIAL SERVICES - OTHER,Adult Social Care & Health,Supported Living - new framework,A56126
Royal Borough of Kingston,01/07/2023,90253657,"5,317.74",EMEZZIONS LIMITED,SOCIAL SERVICES - OTHER,Adult Social Care & Health,Personal Budget - Third Party,A61019
Royal Borough of Kingston,27/03/2023,70049002,"1,771.00",ENGLISH SPEAKING (INTERNATIONAL) BOARD,TRAINING,Corporate & Communities,Examination Fees,A44200
Royal Borough of Kingston,01/07/2023,90252551,"3,349.68",ENHAM,SOCIAL SERVICES - OTHER,Adult Social Care & Health,Independent Placements,A56006
Royal Borough of Kingston,01/07/2023,90254143,-534.97,ENHAM,SOCIAL SERVICES - OTHER,Adult Social Care & Health,Financially Assessed Contributions clients � Non VAT,A92047
Royal Borough of Kingston,30/06/2023,70050490,"1,236.00",ENHANCEABLE,SOCIAL SERVICES - OTHER,Adult Social Care & Health,Other Private Contractors - Third Party,A56080
Royal Borough of Kingston,01/07/2023,90252823,"32,788.79",ENHANCEABLE,SOCIAL SERVICES - OTHER,Adult Social Care & Health,Other Private Contractors - Third Party,A56080
Royal Borough of Kingston,01/07/2023,90252828,551.27,ENHANCEABLE,SOCIAL SERVICES - OTHER,Adult Social Care & Health,Other Private Contractors - Third Party,A56080
Royal Borough of Kingston,01/07/2023,90253923,"1,772.76",ENHANCEABLE,SOCIAL SERVICES - OTHER,Adult Social Care & Health,Personal Budget - Third Party,A61019
Royal Borough of Kingston,01/07/2023,90254085,"1,576.53",ENHANCEABLE,SOCIAL SERVICES - OTHER,Adult Social Care & Health,Personal Budget - Third Party,A61019
Royal Borough of Kingston,01/07/2023,90254162,984.87,ENHANCEABLE,SOCIAL SERVICES - OTHER,Adult Social Care & Health,Personal Budget - Third Party,A61019
Royal Borough of Kingston,01/07/2023,90254163,"1,083.36",ENHANCEABLE,SOCIAL SERVICES - OTHER,Adult Social Care & Health,Personal Budget - Third Party,A61019
Royal Borough of Kingston,25/07/2023,90254327,871.22,REDACTED - PERSONAL DATA,PLS LANDLORDS,Place,PSL Payments To Landlords,A22031
Royal Borough of Kingston,30/06/2023,70049285,"1,500.00",Eversheds Sutherland (International) LLP,SUNDRY SUPPLIER - FINANCE,Housing Revenue Account,Internal Fees - Legal,C20009
Royal Borough of Kingston,13/07/2023,70050948,"8,995.00",EVOLVE AMS UK Ltd,SUNDRY SUPPLIER - HOUSING,Corporate & Communities,Grants Given For Capital Purposes,C20004
Royal Borough of Kingston,30/06/2023,70049484,650.00,EVOLVE CONSULTING ENGINEERS LTD,LEGAL & PROFESSIONAL SERVICES,Place,Buildings - Design & Planning,C14001
Royal Borough of Kingston,06/07/2023,70050378,"7,980.00",EVOLVE UK LTD,SUNDRY SUPPLIER - HOUSING,Corporate & Communities,Grants Given For Capital Purposes,C20004
Royal Borough of Kingston,20/06/2023,70049312,"3,895.00",Ewell Window Co,SUNDRY SUPPLIER - FINANCE,Place,Compensation (In Lieu Of Works),A20039
Royal Borough of Kingston,01/07/2023,70050677,"4,500.00",EXCLUSIVE FINE HOMES LTD,ACCOMMODATION BED & BREAKFAST,Place,Bed & Breakfast,A56000
Royal Borough of Kingston,25/07/2023,90254472,823.33,REDACTED - PERSONAL DATA,PLS LANDLORDS,Place,PSL Payments To Landlords,A22031
Royal Borough of Kingston,25/07/2023,90254444,"1,551.00",REDACTED - PERSONAL DATA,PLS LANDLORDS,Place,PSL Payments To Landlords,A22031
Royal Borough of Kingston,25/07/2023,90254212,918.33,REDACTED - PERSONAL DATA,PLS LANDLORDS,Place,PSL Payments To Landlords,A22031
Royal Borough of Kingston,16/06/2023,70048683,"3,250.00",F H & G LIMITED,LEGAL & PROFESSIONAL SERVICES,Housing Revenue Account,Professional Fees,A44066
Royal Borough of Kingston,16/06/2023,70048684,650.00,F H & G LIMITED,LEGAL & PROFESSIONAL SERVICES,Housing Revenue Account,Professional Fees,A44066
Royal Borough of Kingston,23/06/2023,70048961,"1,970.00",F H & G LIMITED,LEGAL & PROFESSIONAL SERVICES,Housing Revenue Account,Professional Fees,A44066
Royal Borough of Kingston,23/06/2023,70048962,"1,300.00",F H & G LIMITED,LEGAL & PROFESSIONAL SERVICES,Housing Revenue Account,Professional Fees,A44066
Royal Borough of Kingston,07/07/2023,70049753,650.00,F H & G LIMITED,LEGAL & PROFESSIONAL SERVICES,Housing Revenue Account,Professional Fees,A44066
Royal Borough of Kingston,07/07/2023,70049754,"1,300.00",F H & G LIMITED,LEGAL & PROFESSIONAL SERVICES,Housing Revenue Account,Professional Fees,A44066
Royal Borough of Kingston,25/07/2023,90254484,"1,675.00",F.C. GOGARTY,PLS LANDLORDS,Place,PSL Payments To Landlords,A22031
Royal Borough of Kingston,02/06/2023,70048221,"5,549.93",F.M. CONWAY LTD,CONSTRUCTION INDUSTRY,Corporate & Communities,Vehicle Crossings,A56043
Royal Borough of Kingston,08/06/2023,70048222,"1,000.00",F.M. CONWAY LTD,CONSTRUCTION INDUSTRY,Corporate & Communities,Vehicle Crossings,A56043
Royal Borough of Kingston,09/06/2023,70048622,"4,073.85",F.M. CONWAY LTD,CONSTRUCTION INDUSTRY,Corporate & Communities,Vehicle Crossings,A56043
Royal Borough of Kingston,26/06/2023,70049227,"1,772.66",F.M. CONWAY LTD,CONSTRUCTION INDUSTRY,Corporate & Communities,Infrastructure Assets - Purchase & Enhancement,C12001
Royal Borough of Kingston,28/06/2023,70049564,"6,038.47",F.M. CONWAY LTD,CONSTRUCTION INDUSTRY,Corporate & Communities,Vehicle Crossings,A56043
Royal Borough of Kingston,31/12/2022,70049549,"8,625.00",Faithorn Farrell Timms LLP,TEMP STAFF & CONSULTANCY,Housing Revenue Account,Consultancy Services - Other,A44065
Royal Borough of Kingston,31/03/2023,70049550,"6,000.00",Faithorn Farrell Timms LLP,TEMP STAFF & CONSULTANCY,Housing Revenue Account,Consultancy Services - Other,A44065
Royal Borough of Kingston,30/06/2023,70050966,"6,000.00",Faithorn Farrell Timms LLP,TEMP STAFF & CONSULTANCY,Housing Revenue Account,Consultancy Services - Other,A44065
Royal Borough of Kingston,31/05/2023,70050967,"12,000.00",Faithorn Farrell Timms LLP,TEMP STAFF & CONSULTANCY,Housing Revenue Account,Consultancy Services - Other,A44065
Royal Borough of Kingston,01/06/2023,90252764,"5,064.90",FAMILY INVESTMENT (THREE) LIMITED,SOCIAL SERVICES RESIDENTIAL,Adult Social Care & Health,Independent Placements,A56006
Royal Borough of Kingston,25/07/2023,90254191,"1,094.00",REDACTED - PERSONAL DATA,PLS LANDLORDS,Place,PSL Payments To Landlords,A22031
Royal Borough of Kingston,24/03/2023,90252280,777.60,Fern Hill Primary School,SCHOOL FUNDS,Schools,Miscellaneous Expenses,A49000
Royal Borough of Kingston,01/06/2023,90252485,"8,192.57",Fircroft Services Limited,SOCIAL SERVICES RESIDENTIAL,Adult Social Care & Health,Independent Placements,A56006
Royal Borough of Kingston,01/06/2023,90252650,"4,391.43",Fircroft Services Limited,SOCIAL SERVICES RESIDENTIAL,Adult Social Care & Health,Independent Placements,A56006
Royal Borough of Kingston,10/07/2023,70049873,"65,467.87",Travelodge,SUNDRY SUPPLIER - FINANCE,Housing Revenue Account,Bed & Breakfast,A56000
Royal Borough of Kingston,24/07/2023,70050814,"54,803.51",Travelodge,SUNDRY SUPPLIER - FINANCE,Place,Bed & Breakfast,A56000
Royal Borough of Kingston,01/07/2023,90252771,"7,998.22",FitzRoy Support,SOCIAL SERVICES - OTHER,Adult Social Care & Health,Independent Placements,A56006
Royal Borough of Kingston,01/07/2023,90250562,"2,796.86",FOUR SEASONS HEALTHCARE,SOCIAL SERVICES RESIDENTIAL,Adult Social Care & Health,Independent Placements,A56006
Royal Borough of Kingston,01/07/2023,90250563,"3,334.71",FOUR SEASONS HEALTHCARE,SOCIAL SERVICES RESIDENTIAL,Adult Social Care & Health,Independent Placements,A56006
Royal Borough of Kingston,01/07/2023,90250564,"3,012.00",FOUR SEASONS HEALTHCARE,SOCIAL SERVICES RESIDENTIAL,Adult Social Care & Health,Independent Placements,A56006
Royal Borough of Kingston,01/07/2023,90250565,"3,334.71",FOUR SEASONS HEALTHCARE,SOCIAL SERVICES RESIDENTIAL,Adult Social Care & Health,Independent Placements,A56006
Royal Borough of Kingston,01/07/2023,90250566,"3,227.14",FOUR SEASONS HEALTHCARE,SOCIAL SERVICES RESIDENTIAL,Adult Social Care & Health,Independent Placements,A56006
Royal Borough of Kingston,01/07/2023,90252358,"4,373.66",FOUR SEASONS HEALTHCARE,SOCIAL SERVICES RESIDENTIAL,Adult Social Care & Health,Independent Placements,A56006
Royal Borough of Kingston,01/07/2023,90252359,"3,689.58",FOUR SEASONS HEALTHCARE,SOCIAL SERVICES RESIDENTIAL,Adult Social Care & Health,Independent Placements,A56006
Royal Borough of Kingston,01/07/2023,90252363,"3,713.22",FOUR SEASONS HEALTHCARE,SOCIAL SERVICES RESIDENTIAL,Adult Social Care & Health,Independent Placements,A56006
Royal Borough of Kingston,01/07/2023,90252375,"3,606.14",FOUR SEASONS HEALTHCARE,SOCIAL SERVICES RESIDENTIAL,Adult Social Care & Health,Independent Placements,A56006
Royal Borough of Kingston,01/07/2023,90252391,"3,712.52",FOUR SEASONS HEALTHCARE,SOCIAL SERVICES RESIDENTIAL,Adult Social Care & Health,Independent Placements,A56006
Royal Borough of Kingston,01/07/2023,90252392,"3,321.43",FOUR SEASONS HEALTHCARE,SOCIAL SERVICES RESIDENTIAL,Adult Social Care & Health,Independent Placements,A56006
Royal Borough of Kingston,01/07/2023,90252393,"3,713.22",FOUR SEASONS HEALTHCARE,SOCIAL SERVICES RESIDENTIAL,Adult Social Care & Health,Independent Placements,A56006
Royal Borough of Kingston,01/07/2023,90252410,"-1,785.28",FOUR SEASONS HEALTHCARE,SOCIAL SERVICES RESIDENTIAL,Adult Social Care & Health,Independent Placements,A56006
Royal Borough of Kingston,01/07/2023,90252411,"-3,570.56",FOUR SEASONS HEALTHCARE,SOCIAL SERVICES RESIDENTIAL,Adult Social Care & Health,Independent Placements,A56006
Royal Borough of Kingston,01/07/2023,90252412,"1,085.71",FOUR SEASONS HEALTHCARE,SOCIAL SERVICES RESIDENTIAL,Adult Social Care & Health,Independent Placements,A56006
Royal Borough of Kingston,01/07/2023,90252413,"2,442.86",FOUR SEASONS HEALTHCARE,SOCIAL SERVICES RESIDENTIAL,Adult Social Care & Health,Independent Placements,A56006
Royal Borough of Kingston,01/07/2023,90252428,"3,713.22",FOUR SEASONS HEALTHCARE,SOCIAL SERVICES RESIDENTIAL,Adult Social Care & Health,Independent Placements,A56006
Royal Borough of Kingston,01/07/2023,90252429,"1,085.71",FOUR SEASONS HEALTHCARE,SOCIAL SERVICES RESIDENTIAL,Adult Social Care & Health,Independent Placements,A56006
Royal Borough of Kingston,01/07/2023,90252430,"2,442.86",FOUR SEASONS HEALTHCARE,SOCIAL SERVICES RESIDENTIAL,Adult Social Care & Health,Independent Placements,A56006
Royal Borough of Kingston,01/07/2023,90252438,"3,713.22",FOUR SEASONS HEALTHCARE,SOCIAL SERVICES RESIDENTIAL,Adult Social Care & Health,Independent Placements,A56006
Royal Borough of Kingston,01/07/2023,90252458,"3,713.22",FOUR SEASONS HEALTHCARE,SOCIAL SERVICES RESIDENTIAL,Adult Social Care & Health,Independent Placements,A56006
Royal Borough of Kingston,01/07/2023,90252559,"3,335.95",FOUR SEASONS HEALTHCARE,SOCIAL SERVICES RESIDENTIAL,Adult Social Care & Health,Independent Placements,A56006
Royal Borough of Kingston,01/07/2023,90252570,"-3,214.29",FOUR SEASONS HEALTHCARE,SOCIAL SERVICES RESIDENTIAL,Adult Social Care & Health,Independent Placements,A56006
Royal Borough of Kingston,01/07/2023,90252576,"3,526.87",FOUR SEASONS HEALTHCARE,SOCIAL SERVICES RESIDENTIAL,Adult Social Care & Health,Independent Placements,A56006
Royal Borough of Kingston,01/07/2023,90252590,"3,229.62",FOUR SEASONS HEALTHCARE,SOCIAL SERVICES RESIDENTIAL,Adult Social Care & Health,Independent Placements,A56006
Royal Borough of Kingston,01/07/2023,90252651,971.43,FOUR SEASONS HEALTHCARE,SOCIAL SERVICES RESIDENTIAL,Adult Social Care & Health,Independent Placements,A56006
Royal Borough of Kingston,01/07/2023,90252652,"3,642.86",FOUR SEASONS HEALTHCARE,SOCIAL SERVICES RESIDENTIAL,Adult Social Care & Health,Independent Placements,A56006
Royal Borough of Kingston,01/07/2023,90252653,"3,764.29",FOUR SEASONS HEALTHCARE,SOCIAL SERVICES RESIDENTIAL,Adult Social Care & Health,Independent Placements,A56006
Royal Borough of Kingston,01/07/2023,90252677,"2,142.86",FOUR SEASONS HEALTHCARE,SOCIAL SERVICES RESIDENTIAL,Adult Social Care & Health,Independent Placements,A56006
Royal Borough of Kingston,01/07/2023,90252687,-971.43,FOUR SEASONS HEALTHCARE,SOCIAL SERVICES RESIDENTIAL,Adult Social Care & Health,Independent Placements,A56006
Royal Borough of Kingston,01/07/2023,90252688,"-3,642.86",FOUR SEASONS HEALTHCARE,SOCIAL SERVICES RESIDENTIAL,Adult Social Care & Health,Independent Placements,A56006
Royal Borough of Kingston,25/07/2023,90254181,"1,950.00",REDACTED - PERSONAL DATA,PLS LANDLORDS,Place,PSL Payments To Landlords,A22031
Royal Borough of Kingston,25/07/2023,90254461,"1,280.67",REDACTED - PERSONAL DATA,PLS LANDLORDS,Place,PSL Payments To Landlords,A22031
Royal Borough of Kingston,01/07/2023,90254122,"18,510.63",Freshstart Care Solutions Ltd,ACCOMMODATION - OTHER,Adult Social Care & Health,Personal Budget - Third Party,A61019
Royal Borough of Kingston,11/07/2023,70050478,750.00,Friends Of Canbuy Bandstand,SUNDRY SUPPLIER - FINANCE,Corporate & Communities,"Grants, Contributions & Donations",A47005
Royal Borough of Kingston,25/07/2023,90254336,"1,053.00",REDACTED - PERSONAL DATA,PLS LANDLORDS,Place,PSL Payments To Landlords,A22031
Royal Borough of Kingston,25/07/2023,90254171,"1,094.34",REDACTED - PERSONAL DATA,PLS LANDLORDS,Place,PSL Payments To Landlords,A22031
Royal Borough of Kingston,25/07/2023,90254466,"1,094.34",REDACTED - PERSONAL DATA,PLS LANDLORDS,Place,PSL Payments To Landlords,A22031
Royal Borough of Kingston,13/07/2023,90251357,500.00,REDACTED - PERSONAL DATA,CHARITIES & VOLUNTARY ORGNS,Adult Social Care & Health,"Grants, Contributions & Donations",A47005
Royal Borough of Kingston,13/07/2023,90251358,500.00,REDACTED - PERSONAL DATA,CHARITIES & VOLUNTARY ORGNS,Adult Social Care & Health,"Grants, Contributions & Donations",A47005
Royal Borough of Kingston,25/07/2023,90254271,"1,240.00",GATES & BRADSHAW (UK) LTD,PLS LANDLORDS,Place,PSL Payments To Landlords,A22031
Royal Borough of Kingston,29/03/2022,70049044,"39,058.00",KINGSTON HOSPITAL NHS FT,CENTRAL & LOCAL GOVERNMENT,Adult Social Care & Health,Other Private Contractors - Third Party,A56080
Royal Borough of Kingston,26/06/2023,90252956,587.16,GENEVA ROAD LIMITED,SOCIAL SERVICES RESIDENTIAL,Adult Social Care & Health,Supported Living - new framework,A56126
Royal Borough of Kingston,26/06/2023,90252975,"1,509.84",GENEVA ROAD LIMITED,SOCIAL SERVICES RESIDENTIAL,Adult Social Care & Health,Supported Living - new framework,A56126
Royal Borough of Kingston,01/07/2023,90253674,885.71,GENEVA ROAD LIMITED,SOCIAL SERVICES RESIDENTIAL,Adult Social Care & Health,Personal Budget - Third Party,A61019
Royal Borough of Kingston,01/07/2023,90253675,"1,161.61",GENEVA ROAD LIMITED,SOCIAL SERVICES RESIDENTIAL,Adult Social Care & Health,Personal Budget - Third Party,A61019
Royal Borough of Kingston,01/07/2023,90253676,"3,282.63",GENEVA ROAD LIMITED,SOCIAL SERVICES RESIDENTIAL,Adult Social Care & Health,Personal Budget - Third Party,A61019
Royal Borough of Kingston,01/07/2023,90253677,"7,750.00",GENEVA ROAD LIMITED,SOCIAL SERVICES RESIDENTIAL,Adult Social Care & Health,Personal Budget - Third Party,A61019
Royal Borough of Kingston,19/06/2023,90253696,864.00,GENEVA ROAD LIMITED,SOCIAL SERVICES RESIDENTIAL,Adult Social Care & Health,Personal Budget - Third Party,A61019
Royal Borough of Kingston,01/07/2023,90253697,442.86,GENEVA ROAD LIMITED,SOCIAL SERVICES RESIDENTIAL,Adult Social Care & Health,Personal Budget - Third Party,A61019
Royal Borough of Kingston,01/07/2023,90253698,442.86,GENEVA ROAD LIMITED,SOCIAL SERVICES RESIDENTIAL,Adult Social Care & Health,Personal Budget - Third Party,A61019
Royal Borough of Kingston,19/06/2023,90253716,"2,054.80",GENEVA ROAD LIMITED,SOCIAL SERVICES RESIDENTIAL,Adult Social Care & Health,Personal Budget - Third Party,A61019
Royal Borough of Kingston,19/06/2023,90253717,"1,080.00",GENEVA ROAD LIMITED,SOCIAL SERVICES RESIDENTIAL,Adult Social Care & Health,Personal Budget - Third Party,A61019
Royal Borough of Kingston,01/07/2023,90253724,442.86,GENEVA ROAD LIMITED,SOCIAL SERVICES RESIDENTIAL,Adult Social Care & Health,Personal Budget - Third Party,A61019
Royal Borough of Kingston,01/07/2023,90253726,664.29,GENEVA ROAD LIMITED,SOCIAL SERVICES RESIDENTIAL,Adult Social Care & Health,Personal Budget - Third Party,A61019
Royal Borough of Kingston,19/06/2023,90253727,672.48,GENEVA ROAD LIMITED,SOCIAL SERVICES RESIDENTIAL,Adult Social Care & Health,Personal Budget - Third Party,A61019
Royal Borough of Kingston,19/06/2023,90253728,648.00,GENEVA ROAD LIMITED,SOCIAL SERVICES RESIDENTIAL,Adult Social Care & Health,Personal Budget - Third Party,A61019
Royal Borough of Kingston,01/07/2023,90253729,"1,107.14",GENEVA ROAD LIMITED,SOCIAL SERVICES RESIDENTIAL,Adult Social Care & Health,Personal Budget - Third Party,A61019
Royal Borough of Kingston,19/06/2023,90253730,"1,868.00",GENEVA ROAD LIMITED,SOCIAL SERVICES RESIDENTIAL,Adult Social Care & Health,Personal Budget - Third Party,A61019
Royal Borough of Kingston,19/06/2023,90253731,"1,080.00",GENEVA ROAD LIMITED,SOCIAL SERVICES RESIDENTIAL,Adult Social Care & Health,Personal Budget - Third Party,A61019
Royal Borough of Kingston,19/06/2023,90253748,864.00,GENEVA ROAD LIMITED,SOCIAL SERVICES RESIDENTIAL,Adult Social Care & Health,Personal Budget - Third Party,A61019
Royal Borough of Kingston,19/06/2023,90253759,971.36,GENEVA ROAD LIMITED,SOCIAL SERVICES RESIDENTIAL,Adult Social Care & Health,Personal Budget - Third Party,A61019
Royal Borough of Kingston,01/07/2023,90253768,885.71,GENEVA ROAD LIMITED,SOCIAL SERVICES RESIDENTIAL,Adult Social Care & Health,Personal Budget - Third Party,A61019
Royal Borough of Kingston,19/06/2023,90253769,864.00,GENEVA ROAD LIMITED,SOCIAL SERVICES RESIDENTIAL,Adult Social Care & Health,Personal Budget - Third Party,A61019
Royal Borough of Kingston,01/07/2023,90253771,664.29,GENEVA ROAD LIMITED,SOCIAL SERVICES RESIDENTIAL,Adult Social Care & Health,Personal Budget - Third Party,A61019
Royal Borough of Kingston,19/06/2023,90253772,648.00,GENEVA ROAD LIMITED,SOCIAL SERVICES RESIDENTIAL,Adult Social Care & Health,Personal Budget - Third Party,A61019
Royal Borough of Kingston,01/07/2023,90253788,506.89,GENEVA ROAD LIMITED,SOCIAL SERVICES RESIDENTIAL,Adult Social Care & Health,Personal Budget - Third Party,A61019
Royal Borough of Kingston,01/07/2023,90253804,664.29,GENEVA ROAD LIMITED,SOCIAL SERVICES RESIDENTIAL,Adult Social Care & Health,Personal Budget - Third Party,A61019
Royal Borough of Kingston,19/06/2023,90253805,540.00,GENEVA ROAD LIMITED,SOCIAL SERVICES RESIDENTIAL,Adult Social Care & Health,Personal Budget - Third Party,A61019
Royal Borough of Kingston,01/07/2023,90252574,"3,623.50",GEORGIAN HOUSE NURSING HOME,SOCIAL SERVICES RESIDENTIAL,Adult Social Care & Health,Independent Placements,A56006
Royal Borough of Kingston,31/05/2023,70047908,596.30,Glendale Countryside Ltd,CONSTRUCTION INDUSTRY,Place,Property Repairs & Maintenance & Alterations - Responsive,A20011
Royal Borough of Kingston,30/06/2023,70049803,"146,691.66",Glendale Countryside Ltd,CONSTRUCTION INDUSTRY,Corporate & Communities,Grounds Maintenance Contract,A28000
Royal Borough of Kingston,02/06/2023,70050174,"2,981.50",Glendale Countryside Ltd,CONSTRUCTION INDUSTRY,Corporate & Communities,Property Repairs & Maintenance & Alterations - Responsive,A20011
Royal Borough of Kingston,31/05/2023,70050175,"6,809.95",Glendale Countryside Ltd,CONSTRUCTION INDUSTRY,Corporate & Communities,Property Repairs & Maintenance & Alterations - Responsive,A20011
Royal Borough of Kingston,19/06/2023,90248289,504.21,Global Homecare,SOCIAL SERVICES-HOME CARE,Adult Social Care & Health,Homecare - new framework,A56127
Royal Borough of Kingston,19/06/2023,90248357,630.27,Global Homecare,SOCIAL SERVICES-HOME CARE,Adult Social Care & Health,Homecare - new framework,A56127
Royal Borough of Kingston,19/06/2023,90248360,756.32,Global Homecare,SOCIAL SERVICES-HOME CARE,Adult Social Care & Health,Homecare - new framework,A56127
Royal Borough of Kingston,26/06/2023,90250648,504.21,Global Homecare,SOCIAL SERVICES-HOME CARE,Adult Social Care & Health,Homecare - new framework,A56127
Royal Borough of Kingston,26/06/2023,90250720,630.27,Global Homecare,SOCIAL SERVICES-HOME CARE,Adult Social Care & Health,Homecare - new framework,A56127
Royal Borough of Kingston,26/06/2023,90250723,756.32,Global Homecare,SOCIAL SERVICES-HOME CARE,Adult Social Care & Health,Homecare - new framework,A56127
Royal Borough of Kingston,26/06/2023,90250845,"1,635.37",Global Homecare,SOCIAL SERVICES-HOME CARE,Adult Social Care & Health,Homecare - new framework,A56127
Royal Borough of Kingston,26/06/2023,90250846,"2,861.90",Global Homecare,SOCIAL SERVICES-HOME CARE,Adult Social Care & Health,Homecare - new framework,A56127
Royal Borough of Kingston,26/06/2023,90250847,"2,861.90",Global Homecare,SOCIAL SERVICES-HOME CARE,Adult Social Care & Health,Homecare - new framework,A56127
Royal Borough of Kingston,26/06/2023,90250848,"2,861.90",Global Homecare,SOCIAL SERVICES-HOME CARE,Adult Social Care & Health,Homecare - new framework,A56127
Royal Borough of Kingston,26/06/2023,90250849,"2,861.90",Global Homecare,SOCIAL SERVICES-HOME CARE,Adult Social Care & Health,Homecare - new framework,A56127
Royal Borough of Kingston,26/06/2023,90250850,"2,861.90",Global Homecare,SOCIAL SERVICES-HOME CARE,Adult Social Care & Health,Homecare - new framework,A56127
Royal Borough of Kingston,26/06/2023,90250851,"2,861.90",Global Homecare,SOCIAL SERVICES-HOME CARE,Adult Social Care & Health,Homecare - new framework,A56127
Royal Borough of Kingston,26/06/2023,90250852,"2,861.90",Global Homecare,SOCIAL SERVICES-HOME CARE,Adult Social Care & Health,Homecare - new framework,A56127
Royal Borough of Kingston,26/06/2023,90250853,"2,861.90",Global Homecare,SOCIAL SERVICES-HOME CARE,Adult Social Care & Health,Homecare - new framework,A56127
Royal Borough of Kingston,26/06/2023,90250854,"2,861.90",Global Homecare,SOCIAL SERVICES-HOME CARE,Adult Social Care & Health,Homecare - new framework,A56127
Royal Borough of Kingston,26/06/2023,90250855,"2,861.90",Global Homecare,SOCIAL SERVICES-HOME CARE,Adult Social Care & Health,Homecare - new framework,A56127
Royal Borough of Kingston,26/06/2023,90250856,"1,226.53",Global Homecare,SOCIAL SERVICES-HOME CARE,Adult Social Care & Health,Homecare - new framework,A56127
Royal Borough of Kingston,03/07/2023,90251551,504.21,Global Homecare,SOCIAL SERVICES-HOME CARE,Adult Social Care & Health,Homecare - new framework,A56127
Royal Borough of Kingston,03/07/2023,90251641,630.27,Global Homecare,SOCIAL SERVICES-HOME CARE,Adult Social Care & Health,Homecare - new framework,A56127
Royal Borough of Kingston,03/07/2023,90251645,540.23,Global Homecare,SOCIAL SERVICES-HOME CARE,Adult Social Care & Health,Homecare - new framework,A56127
Royal Borough of Kingston,10/07/2023,90253134,504.21,Global Homecare,SOCIAL SERVICES-HOME CARE,Adult Social Care & Health,Homecare - new framework,A56127
Royal Borough of Kingston,10/07/2023,90253150,630.27,Global Homecare,SOCIAL SERVICES-HOME CARE,Adult Social Care & Health,Homecare - new framework,A56127
Royal Borough of Kingston,10/07/2023,90253200,630.27,Global Homecare,SOCIAL SERVICES-HOME CARE,Adult Social Care & Health,Homecare - new framework,A56127
Royal Borough of Kingston,10/07/2023,90253203,"1,008.43",Global Homecare,SOCIAL SERVICES-HOME CARE,Adult Social Care & Health,Homecare - new framework,A56127
Royal Borough of Kingston,10/07/2023,90253368,567.24,Global Homecare,SOCIAL SERVICES-HOME CARE,Adult Social Care & Health,Homecare - new framework,A56127
Royal Borough of Kingston,10/07/2023,90253602,"1,071.46",Global Homecare,SOCIAL SERVICES-HOME CARE,Adult Social Care & Health,Homecare - new framework,A56127
Royal Borough of Kingston,10/07/2023,90253603,"1,071.46",Global Homecare,SOCIAL SERVICES-HOME CARE,Adult Social Care & Health,Homecare - new framework,A56127
Royal Borough of Kingston,10/07/2023,90253604,"1,071.46",Global Homecare,SOCIAL SERVICES-HOME CARE,Adult Social Care & Health,Homecare - new framework,A56127
Royal Borough of Kingston,01/07/2023,90252332,"2,092.50",Gold Care Homes,SOCIAL SERVICES RESIDENTIAL,Adult Social Care & Health,Independent Placements,A56006
Royal Borough of Kingston,01/07/2023,90252333,"2,092.50",Gold Care Homes,SOCIAL SERVICES RESIDENTIAL,Adult Social Care & Health,Independent Placements,A56006
Royal Borough of Kingston,01/07/2023,90252477,"4,229.15",Gold Care Homes,SOCIAL SERVICES RESIDENTIAL,Adult Social Care & Health,Independent Placements,A56006
Royal Borough of Kingston,01/07/2023,90252503,"4,030.40",Gold Care Homes,SOCIAL SERVICES RESIDENTIAL,Adult Social Care & Health,Independent Placements,A56006
Royal Borough of Kingston,01/07/2023,90252507,"5,757.14",Gold Care Homes,SOCIAL SERVICES RESIDENTIAL,Adult Social Care & Health,Independent Placements,A56006
Royal Borough of Kingston,01/07/2023,90252509,"2,015.20",Gold Care Homes,SOCIAL SERVICES RESIDENTIAL,Adult Social Care & Health,Independent Placements,A56006
Royal Borough of Kingston,01/07/2023,90252511,"4,318.29",Gold Care Homes,SOCIAL SERVICES RESIDENTIAL,Adult Social Care & Health,Independent Placements,A56006
Royal Borough of Kingston,01/07/2023,90252512,"1,007.60",Gold Care Homes,SOCIAL SERVICES RESIDENTIAL,Adult Social Care & Health,Independent Placements,A56006
Royal Borough of Kingston,01/07/2023,90252519,"4,353.68",Gold Care Homes,SOCIAL SERVICES RESIDENTIAL,Adult Social Care & Health,Independent Placements,A56006
Royal Borough of Kingston,01/07/2023,90252525,"3,909.94",Gold Care Homes,SOCIAL SERVICES RESIDENTIAL,Adult Social Care & Health,Independent Placements,A56006
Royal Borough of Kingston,01/07/2023,90252542,"4,462.23",Gold Care Homes,SOCIAL SERVICES RESIDENTIAL,Adult Social Care & Health,Independent Placements,A56006
Royal Borough of Kingston,01/07/2023,90252562,"-3,454.63",Gold Care Homes,SOCIAL SERVICES RESIDENTIAL,Adult Social Care & Health,Independent Placements,A56006
Royal Borough of Kingston,01/07/2023,90252563,"3,454.63",Gold Care Homes,SOCIAL SERVICES RESIDENTIAL,Adult Social Care & Health,Independent Placements,A56006
Royal Borough of Kingston,01/07/2023,90252564,"-4,318.29",Gold Care Homes,SOCIAL SERVICES RESIDENTIAL,Adult Social Care & Health,Independent Placements,A56006
Royal Borough of Kingston,01/07/2023,90252565,"4,318.29",Gold Care Homes,SOCIAL SERVICES RESIDENTIAL,Adult Social Care & Health,Independent Placements,A56006
Royal Borough of Kingston,01/07/2023,90252566,"-4,462.23",Gold Care Homes,SOCIAL SERVICES RESIDENTIAL,Adult Social Care & Health,Independent Placements,A56006
Royal Borough of Kingston,01/07/2023,90252567,"4,462.23",Gold Care Homes,SOCIAL SERVICES RESIDENTIAL,Adult Social Care & Health,Independent Placements,A56006
Royal Borough of Kingston,01/07/2023,90252568,"-4,318.29",Gold Care Homes,SOCIAL SERVICES RESIDENTIAL,Adult Social Care & Health,Independent Placements,A56006
Royal Borough of Kingston,01/07/2023,90252569,"4,318.29",Gold Care Homes,SOCIAL SERVICES RESIDENTIAL,Adult Social Care & Health,Independent Placements,A56006
Royal Borough of Kingston,01/07/2023,90252612,"1,000.00",Gold Care Homes,SOCIAL SERVICES RESIDENTIAL,Adult Social Care & Health,Independent Placements,A56006
Royal Borough of Kingston,01/07/2023,90252613,"1,600.00",Gold Care Homes,SOCIAL SERVICES RESIDENTIAL,Adult Social Care & Health,Independent Placements,A56006
Royal Borough of Kingston,01/07/2023,90252614,"4,600.00",Gold Care Homes,SOCIAL SERVICES RESIDENTIAL,Adult Social Care & Health,Independent Placements,A56006
Royal Borough of Kingston,01/07/2023,90252615,"6,000.00",Gold Care Homes,SOCIAL SERVICES RESIDENTIAL,Adult Social Care & Health,Independent Placements,A56006
Royal Borough of Kingston,01/07/2023,90252616,"6,200.00",Gold Care Homes,SOCIAL SERVICES RESIDENTIAL,Adult Social Care & Health,Independent Placements,A56006
Royal Borough of Kingston,01/07/2023,90252617,"6,000.00",Gold Care Homes,SOCIAL SERVICES RESIDENTIAL,Adult Social Care & Health,Independent Placements,A56006
Royal Borough of Kingston,01/07/2023,90252618,"6,200.00",Gold Care Homes,SOCIAL SERVICES RESIDENTIAL,Adult Social Care & Health,Independent Placements,A56006
Royal Borough of Kingston,01/07/2023,90252621,"5,646.43",Gold Care Homes,SOCIAL SERVICES RESIDENTIAL,Adult Social Care & Health,Independent Placements,A56006
Royal Borough of Kingston,01/07/2023,90252622,"4,462.23",Gold Care Homes,SOCIAL SERVICES RESIDENTIAL,Adult Social Care & Health,Independent Placements,A56006
Royal Borough of Kingston,01/07/2023,90252623,"4,462.23",Gold Care Homes,SOCIAL SERVICES RESIDENTIAL,Adult Social Care & Health,Independent Placements,A56006
Royal Borough of Kingston,01/07/2023,90252638,"4,328.57",Gold Care Homes,SOCIAL SERVICES RESIDENTIAL,Adult Social Care & Health,Independent Placements,A56006
Royal Borough of Kingston,01/07/2023,90252639,"4,497.17",Gold Care Homes,SOCIAL SERVICES RESIDENTIAL,Adult Social Care & Health,Independent Placements,A56006
Royal Borough of Kingston,01/07/2023,90252640,"4,762.35",Gold Care Homes,SOCIAL SERVICES RESIDENTIAL,Adult Social Care & Health,Independent Placements,A56006
Royal Borough of Kingston,01/07/2023,90252654,"4,462.23",Gold Care Homes,SOCIAL SERVICES RESIDENTIAL,Adult Social Care & Health,Independent Placements,A56006
Royal Borough of Kingston,01/07/2023,90252656,"4,462.23",Gold Care Homes,SOCIAL SERVICES RESIDENTIAL,Adult Social Care & Health,Independent Placements,A56006
Royal Borough of Kingston,01/07/2023,90252657,"4,762.35",Gold Care Homes,SOCIAL SERVICES RESIDENTIAL,Adult Social Care & Health,Independent Placements,A56006
Royal Borough of Kingston,01/07/2023,90252658,"4,328.57",Gold Care Homes,SOCIAL SERVICES RESIDENTIAL,Adult Social Care & Health,Independent Placements,A56006
Royal Borough of Kingston,01/07/2023,90252665,"4,762.35",Gold Care Homes,SOCIAL SERVICES RESIDENTIAL,Adult Social Care & Health,Independent Placements,A56006
Royal Borough of Kingston,01/07/2023,90252666,"4,762.35",Gold Care Homes,SOCIAL SERVICES RESIDENTIAL,Adult Social Care & Health,Independent Placements,A56006
Royal Borough of Kingston,01/07/2023,90252668,"4,462.23",Gold Care Homes,SOCIAL SERVICES RESIDENTIAL,Adult Social Care & Health,Independent Placements,A56006
Royal Borough of Kingston,01/07/2023,90252675,-542.86,Gold Care Homes,SOCIAL SERVICES RESIDENTIAL,Adult Social Care & Health,Independent Placements,A56006
Royal Borough of Kingston,01/07/2023,90252676,542.86,Gold Care Homes,SOCIAL SERVICES RESIDENTIAL,Adult Social Care & Health,Independent Placements,A56006
Royal Borough of Kingston,01/07/2023,90252692,"1,727.31",Gold Care Homes,SOCIAL SERVICES RESIDENTIAL,Adult Social Care & Health,Independent Placements,A56006
Royal Borough of Kingston,01/07/2023,90252816,"2,092.50",Gold Care Homes,SOCIAL SERVICES RESIDENTIAL,Adult Social Care & Health,Other Private Contractors - Third Party,A56080
Royal Borough of Kingston,01/07/2023,90252817,"2,092.50",Gold Care Homes,SOCIAL SERVICES RESIDENTIAL,Adult Social Care & Health,Other Private Contractors - Third Party,A56080
Royal Borough of Kingston,01/07/2023,90252818,"2,092.50",Gold Care Homes,SOCIAL SERVICES RESIDENTIAL,Adult Social Care & Health,Other Private Contractors - Third Party,A56080
Royal Borough of Kingston,01/07/2023,90252819,"2,092.50",Gold Care Homes,SOCIAL SERVICES RESIDENTIAL,Adult Social Care & Health,Other Private Contractors - Third Party,A56080
Royal Borough of Kingston,01/07/2023,90253642,803.57,Gold Care Homes,SOCIAL SERVICES RESIDENTIAL,Adult Social Care & Health,Personal Budget - Third Party,A61019
Royal Borough of Kingston,01/07/2023,90253644,"1,494.82",Gold Care Homes,SOCIAL SERVICES RESIDENTIAL,Adult Social Care & Health,Personal Budget - Third Party,A61019
Royal Borough of Kingston,19/06/2023,90248305,567.24,Goldsmith Personnel Ltd,SOCIAL SERVICES - OTHER,Adult Social Care & Health,Homecare - new framework,A56127
Royal Borough of Kingston,19/06/2023,90248812,504.21,Goldsmith Personnel Ltd,SOCIAL SERVICES - OTHER,Adult Social Care & Health,Homecare - new framework,A56127
Royal Borough of Kingston,26/06/2023,90250664,567.24,Goldsmith Personnel Ltd,SOCIAL SERVICES - OTHER,Adult Social Care & Health,Homecare - new framework,A56127
Royal Borough of Kingston,26/06/2023,90251192,504.21,Goldsmith Personnel Ltd,SOCIAL SERVICES - OTHER,Adult Social Care & Health,Homecare - new framework,A56127
Royal Borough of Kingston,03/07/2023,90251566,567.24,Goldsmith Personnel Ltd,SOCIAL SERVICES - OTHER,Adult Social Care & Health,Homecare - new framework,A56127
Royal Borough of Kingston,03/07/2023,90252101,504.21,Goldsmith Personnel Ltd,SOCIAL SERVICES - OTHER,Adult Social Care & Health,Homecare - new framework,A56127
Royal Borough of Kingston,10/07/2023,90253151,567.24,Goldsmith Personnel Ltd,SOCIAL SERVICES - OTHER,Adult Social Care & Health,Homecare - new framework,A56127
Royal Borough of Kingston,10/07/2023,90253631,504.21,Goldsmith Personnel Ltd,SOCIAL SERVICES - OTHER,Adult Social Care & Health,Homecare - new framework,A56127
Royal Borough of Kingston,03/07/2023,70050105,"1,560.00",GOLFRATE PROPERTY MANAGEMENT LIMITED,ACCOMMODATION BED & BREAKFAST,Place,Bed & Breakfast,A56000
Royal Borough of Kingston,03/07/2023,70050113,"1,605.00",GOLFRATE PROPERTY MANAGEMENT LIMITED,ACCOMMODATION BED & BREAKFAST,Place,Bed & Breakfast,A56000
Royal Borough of Kingston,14/05/2023,70046795,"2,250.00",GP Tech Serv,BUILDING MNTCE - SERVICES,Place,Property Repairs & Maintenance & Alterations - Responsive,A20011
Royal Borough of Kingston,14/05/2023,70046795,"8,250.00",GP Tech Serv,BUILDING MNTCE - SERVICES,Place,Property Repairs & Maintenance & Alterations - Responsive,A20011
Royal Borough of Kingston,29/05/2023,70047332,494.50,GP Tech Serv,BUILDING MNTCE - SERVICES,Place,Property Repairs & Maintenance & Alterations - Responsive,A20011
Royal Borough of Kingston,30/06/2023,70049545,648.68,GRAND AVENUE PRIMARY AND NURSERY SCHOOL,CENTRAL & LOCAL GOVERNMENT,Childrens Services,MSF Claims Support Staff - Internal Trading,A46108
Royal Borough of Kingston,06/07/2023,90249348,"234,458.44",GRAND AVENUE PRIMARY AND NURSERY SCHOOL,CENTRAL & LOCAL GOVERNMENT,Schools,Miscellaneous Expenses,A49000
Royal Borough of Kingston,01/07/2023,90252699,"4,222.69",Grove Care Partnership Limited,SOCIAL SERVICES RESIDENTIAL,Adult Social Care & Health,Independent Placements,A56006
Royal Borough of Kingston,01/07/2023,90252717,"10,858.24",Grove Care Partnership Limited,SOCIAL SERVICES RESIDENTIAL,Adult Social Care & Health,Independent Placements,A56006
Royal Borough of Kingston,01/07/2023,90252736,"15,932.05",Grove Care Partnership Limited,SOCIAL SERVICES RESIDENTIAL,Adult Social Care & Health,Independent Placements,A56006
Royal Borough of Kingston,01/07/2023,90252739,"10,558.42",Grove Care Partnership Limited,SOCIAL SERVICES RESIDENTIAL,Adult Social Care & Health,Independent Placements,A56006
Royal Borough of Kingston,01/07/2023,90252763,"15,772.05",Grove Care Partnership Limited,SOCIAL SERVICES RESIDENTIAL,Adult Social Care & Health,Independent Placements,A56006
Royal Borough of Kingston,01/07/2023,90252773,"12,307.75",Grove Care Partnership Limited,SOCIAL SERVICES RESIDENTIAL,Adult Social Care & Health,Independent Placements,A56006
Royal Borough of Kingston,01/07/2023,90252776,"10,110.03",Grove Care Partnership Limited,SOCIAL SERVICES RESIDENTIAL,Adult Social Care & Health,Independent Placements,A56006
Royal Borough of Kingston,01/07/2023,90252791,"8,140.87",Grove Care Partnership Limited,SOCIAL SERVICES RESIDENTIAL,Adult Social Care & Health,Independent Placements,A56006
Royal Borough of Kingston,01/07/2023,90252800,"12,111.26",Grove Care Partnership Limited,SOCIAL SERVICES RESIDENTIAL,Adult Social Care & Health,Independent Placements,A56006
Royal Borough of Kingston,01/07/2023,90252801,"12,101.65",Grove Care Partnership Limited,SOCIAL SERVICES RESIDENTIAL,Adult Social Care & Health,Independent Placements,A56006
Royal Borough of Kingston,25/07/2023,90254470,"1,245.00",REDACTED - PERSONAL DATA,PLS LANDLORDS,Place,PSL Payments To Landlords,A22031
Royal Borough of Kingston,30/04/2023,70046432,"7,095.60",Gurkha Security Services Ltd,SUNDRY SUPPLIER - HOUSING,Place,Security Services,A44080
Royal Borough of Kingston,31/05/2023,70047753,"10,833.20",Gurkha Security Services Ltd,SUNDRY SUPPLIER - HOUSING,Place,Security Services,A44080
Royal Borough of Kingston,31/05/2023,70047892,"7,332.12",Gurkha Security Services Ltd,SUNDRY SUPPLIER - HOUSING,Place,Security Services,A44080
Royal Borough of Kingston,31/05/2023,70047894,"66,420.78",Gurkha Security Services Ltd,SUNDRY SUPPLIER - HOUSING,Place,Security Services,A44080
Royal Borough of Kingston,31/05/2023,70047895,610.00,Gurkha Security Services Ltd,SUNDRY SUPPLIER - HOUSING,Place,Security Services,A44080
Royal Borough of Kingston,31/05/2023,70047896,"3,339.00",Gurkha Security Services Ltd,SUNDRY SUPPLIER - HOUSING,Place,Security Services,A44080
Royal Borough of Kingston,30/06/2023,70049700,"66,420.78",Gurkha Security Services Ltd,SUNDRY SUPPLIER - HOUSING,Place,Security Services,A44080
Royal Borough of Kingston,30/06/2023,70049706,610.00,Gurkha Security Services Ltd,SUNDRY SUPPLIER - HOUSING,Place,Security Services,A44080
Royal Borough of Kingston,30/06/2023,70049708,"3,561.60",Gurkha Security Services Ltd,SUNDRY SUPPLIER - HOUSING,Place,Security Services,A44080
Royal Borough of Kingston,25/07/2023,90254166,"1,296.67",REDACTED - PERSONAL DATA,PLS LANDLORDS,Place,PSL Payments To Landlords,A22031
Royal Borough of Kingston,06/06/2023,90248161,550.00,REDACTED - PERSONAL DATA,GRANTS & EX GRATIA PAYMENTS,Adult Social Care & Health,"Grants, Contributions & Donations",A47005
Royal Borough of Kingston,06/06/2023,90248150,500.00,REDACTED - PERSONAL DATA,GRANTS & EX GRATIA PAYMENTS,Adult Social Care & Health,"Grants, Contributions & Donations",A47005
Royal Borough of Kingston,01/07/2023,90252596,"4,601.29",HAMPTON CARE LIMITED,SOCIAL SERVICES RESIDENTIAL,Adult Social Care & Health,Independent Placements,A56006
Royal Borough of Kingston,25/07/2023,90254306,"1,550.00",Haycorn Limited,PLS LANDLORDS,Place,PSL Payments To Landlords,A22031
Royal Borough of Kingston,25/07/2023,90254582,"1,150.00",Haycorn Limited,PLS LANDLORDS,Place,PSL Payments To Landlords,A22031
Royal Borough of Kingston,25/07/2023,90254583,"1,150.00",Haycorn Limited,PLS LANDLORDS,Place,PSL Payments To Landlords,A22031
Royal Borough of Kingston,25/07/2023,90254584,"1,150.00",Haycorn Limited,PLS LANDLORDS,Place,PSL Payments To Landlords,A22031
Royal Borough of Kingston,01/07/2023,90253781,947.85,HAZELDENE UK LTD,SOCIAL SERVICES RESIDENTIAL,Adult Social Care & Health,Personal Budget - Third Party,A61019
Royal Borough of Kingston,01/07/2023,90252597,"4,207.14",Hazelgrove Nursing Home,SOCIAL SERVICES RESIDENTIAL,Adult Social Care & Health,Independent Placements,A56006
Royal Borough of Kingston,01/07/2023,90252642,"5,061.41",HAZELWOOD HOUSE,SOCIAL SERVICES RESIDENTIAL,Adult Social Care & Health,Independent Placements,A56006
Royal Borough of Kingston,01/07/2023,90252379,"3,909.54",HC-1 LIMITED ASHGROVE CARE HOME,SOCIAL SERVICES RESIDENTIAL,Adult Social Care & Health,Independent Placements,A56006
Royal Borough of Kingston,01/07/2023,90252706,"14,266.16",HEATHCOTES (SOUTHERN) LTD,SOCIAL SERVICES RESIDENTIAL,Adult Social Care & Health,Independent Placements,A56006
Royal Borough of Kingston,01/07/2023,90252733,"10,628.97",HEATHCOTES (SOUTHERN) LTD,SOCIAL SERVICES RESIDENTIAL,Adult Social Care & Health,Independent Placements,A56006
Royal Borough of Kingston,01/07/2023,90252735,"12,615.76",HEATHCOTES (SOUTHERN) LTD,SOCIAL SERVICES RESIDENTIAL,Adult Social Care & Health,Independent Placements,A56006
Royal Borough of Kingston,25/07/2023,90254467,"1,094.34",REDACTED - PERSONAL DATA,PLS LANDLORDS,Place,PSL Payments To Landlords,A22031
Royal Borough of Kingston,06/06/2023,90248151,500.00,REDACTED - PERSONAL DATA,CHARITIES & VOLUNTARY ORGNS,Adult Social Care & Health,"Grants, Contributions & Donations",A47005
Royal Borough of Kingston,12/06/2023,90248762,648.27,HELMAR CARE AND COMMUNITY SERVICES LTD,SOCIAL SERVICES DAY CARE,Adult Social Care & Health,Homecare - new framework,A56127
Royal Borough of Kingston,12/06/2023,90248763,550.73,HELMAR CARE AND COMMUNITY SERVICES LTD,SOCIAL SERVICES DAY CARE,Adult Social Care & Health,Homecare - new framework,A56127
Royal Borough of Kingston,19/06/2023,90249235,"1,673.93",HELMAR CARE AND COMMUNITY SERVICES LTD,SOCIAL SERVICES DAY CARE,Adult Social Care & Health,Personal Budget - Third Party,A61019
Royal Borough of Kingston,19/06/2023,90251152,648.27,HELMAR CARE AND COMMUNITY SERVICES LTD,SOCIAL SERVICES DAY CARE,Adult Social Care & Health,Homecare - new framework,A56127
Royal Borough of Kingston,19/06/2023,90251153,550.73,HELMAR CARE AND COMMUNITY SERVICES LTD,SOCIAL SERVICES DAY CARE,Adult Social Care & Health,Homecare - new framework,A56127
Royal Borough of Kingston,26/06/2023,90251232,"1,673.93",HELMAR CARE AND COMMUNITY SERVICES LTD,SOCIAL SERVICES DAY CARE,Adult Social Care & Health,Personal Budget - Third Party,A61019
Royal Borough of Kingston,26/06/2023,90252058,648.27,HELMAR CARE AND COMMUNITY SERVICES LTD,SOCIAL SERVICES DAY CARE,Adult Social Care & Health,Homecare - new framework,A56127
Royal Borough of Kingston,26/06/2023,90252059,550.73,HELMAR CARE AND COMMUNITY SERVICES LTD,SOCIAL SERVICES DAY CARE,Adult Social Care & Health,Homecare - new framework,A56127
Royal Borough of Kingston,03/07/2023,90252143,"1,673.93",HELMAR CARE AND COMMUNITY SERVICES LTD,SOCIAL SERVICES DAY CARE,Adult Social Care & Health,Personal Budget - Third Party,A61019
Royal Borough of Kingston,03/07/2023,90253586,648.27,HELMAR CARE AND COMMUNITY SERVICES LTD,SOCIAL SERVICES DAY CARE,Adult Social Care & Health,Homecare - new framework,A56127
Royal Borough of Kingston,03/07/2023,90253587,550.73,HELMAR CARE AND COMMUNITY SERVICES LTD,SOCIAL SERVICES DAY CARE,Adult Social Care & Health,Homecare - new framework,A56127
Royal Borough of Kingston,10/07/2023,90254044,"1,673.93",HELMAR CARE AND COMMUNITY SERVICES LTD,SOCIAL SERVICES DAY CARE,Adult Social Care & Health,Personal Budget - Third Party,A61019
Royal Borough of Kingston,01/07/2023,90252575,"3,357.52",JESYEM MEDICARE LTD,SOCIAL SERVICES RESIDENTIAL,Adult Social Care & Health,Independent Placements,A56006
Royal Borough of Kingston,01/07/2023,90252580,"4,371.22",JESYEM MEDICARE LTD,SOCIAL SERVICES RESIDENTIAL,Adult Social Care & Health,Independent Placements,A56006
Royal Borough of Kingston,01/07/2023,90252589,"4,371.22",JESYEM MEDICARE LTD,SOCIAL SERVICES RESIDENTIAL,Adult Social Care & Health,Independent Placements,A56006
Royal Borough of Kingston,27/06/2023,70050482,"38,395.00",Henshall & Sheehy Support Services Ltd,CONSTRUCTION INDUSTRY,Place,Property Repairs & Maintenance & Alterations - Responsive,A20011
Royal Borough of Kingston,27/06/2023,70051060,"31,200.00",Henshall & Sheehy Support Services Ltd,CONSTRUCTION INDUSTRY,Place,Property Repairs & Maintenance & Alterations - Responsive,A20011
Royal Borough of Kingston,01/07/2023,90253714,558.09,HERTFORDSHIRE COUNTY COUNCIL,CENTRAL & LOCAL GOVERNMENT,Adult Social Care & Health,Personal Budget - Third Party,A61019
Royal Borough of Kingston,01/07/2023,90253672,933.38,HF TRUST LTD ,SOCIAL SERVICES DAY CARE,Adult Social Care & Health,Personal Budget - Third Party,A61019
Royal Borough of Kingston,01/07/2023,90253673,"2,333.46",HF TRUST LTD ,SOCIAL SERVICES DAY CARE,Adult Social Care & Health,Personal Budget - Third Party,A61019
Royal Borough of Kingston,01/07/2023,90253684,664.29,HF TRUST LTD ,SOCIAL SERVICES DAY CARE,Adult Social Care & Health,Personal Budget - Third Party,A61019
Royal Borough of Kingston,01/07/2023,90253687,996.43,HF TRUST LTD ,SOCIAL SERVICES DAY CARE,Adult Social Care & Health,Personal Budget - Third Party,A61019
Royal Borough of Kingston,01/07/2023,90253706,664.29,HF TRUST LTD ,SOCIAL SERVICES DAY CARE,Adult Social Care & Health,Personal Budget - Third Party,A61019
Royal Borough of Kingston,01/07/2023,90253710,885.71,HF TRUST LTD ,SOCIAL SERVICES DAY CARE,Adult Social Care & Health,Personal Budget - Third Party,A61019
Royal Borough of Kingston,01/07/2023,90253712,885.71,HF TRUST LTD ,SOCIAL SERVICES DAY CARE,Adult Social Care & Health,Personal Budget - Third Party,A61019
Royal Borough of Kingston,01/07/2023,90253723,885.71,HF TRUST LTD ,SOCIAL SERVICES DAY CARE,Adult Social Care & Health,Personal Budget - Third Party,A61019
Royal Borough of Kingston,01/07/2023,90253733,"1,107.14",HF TRUST LTD ,SOCIAL SERVICES DAY CARE,Adult Social Care & Health,Personal Budget - Third Party,A61019
Royal Borough of Kingston,01/07/2023,90253743,"1,321.40",HF TRUST LTD ,SOCIAL SERVICES DAY CARE,Adult Social Care & Health,Personal Budget - Third Party,A61019
Royal Borough of Kingston,01/07/2023,90253747,664.29,HF TRUST LTD ,SOCIAL SERVICES DAY CARE,Adult Social Care & Health,Personal Budget - Third Party,A61019
Royal Borough of Kingston,01/07/2023,90253751,"1,833.96",HF TRUST LTD ,SOCIAL SERVICES DAY CARE,Adult Social Care & Health,Personal Budget - Third Party,A61019
Royal Borough of Kingston,01/07/2023,90253752,"1,107.14",HF TRUST LTD ,SOCIAL SERVICES DAY CARE,Adult Social Care & Health,Personal Budget - Third Party,A61019
Royal Borough of Kingston,01/07/2023,90253755,797.47,HF TRUST LTD ,SOCIAL SERVICES DAY CARE,Adult Social Care & Health,Personal Budget - Third Party,A61019
Royal Borough of Kingston,01/07/2023,90253758,621.43,HF TRUST LTD ,SOCIAL SERVICES DAY CARE,Adult Social Care & Health,Personal Budget - Third Party,A61019
Royal Borough of Kingston,01/07/2023,90253761,664.29,HF TRUST LTD ,SOCIAL SERVICES DAY CARE,Adult Social Care & Health,Personal Budget - Third Party,A61019
Royal Borough of Kingston,01/07/2023,90253770,"1,107.14",HF TRUST LTD ,SOCIAL SERVICES DAY CARE,Adult Social Care & Health,Personal Budget - Third Party,A61019
Royal Borough of Kingston,01/07/2023,90253775,885.71,HF TRUST LTD ,SOCIAL SERVICES DAY CARE,Adult Social Care & Health,Personal Budget - Third Party,A61019
Royal Borough of Kingston,01/07/2023,90253776,664.29,HF TRUST LTD ,SOCIAL SERVICES DAY CARE,Adult Social Care & Health,Personal Budget - Third Party,A61019
Royal Borough of Kingston,01/07/2023,90253778,664.29,HF TRUST LTD ,SOCIAL SERVICES DAY CARE,Adult Social Care & Health,Personal Budget - Third Party,A61019
Royal Borough of Kingston,01/07/2023,90253782,"1,107.14",HF TRUST LTD ,SOCIAL SERVICES DAY CARE,Adult Social Care & Health,Personal Budget - Third Party,A61019
Royal Borough of Kingston,01/07/2023,90253783,885.71,HF TRUST LTD ,SOCIAL SERVICES DAY CARE,Adult Social Care & Health,Personal Budget - Third Party,A61019
Royal Borough of Kingston,01/07/2023,90253784,"1,107.14",HF TRUST LTD ,SOCIAL SERVICES DAY CARE,Adult Social Care & Health,Personal Budget - Third Party,A61019
Royal Borough of Kingston,01/07/2023,90253789,"1,107.14",HF TRUST LTD ,SOCIAL SERVICES DAY CARE,Adult Social Care & Health,Personal Budget - Third Party,A61019
Royal Borough of Kingston,01/07/2023,90253792,664.29,HF TRUST LTD ,SOCIAL SERVICES DAY CARE,Adult Social Care & Health,Personal Budget - Third Party,A61019
Royal Borough of Kingston,01/07/2023,90253796,"1,107.14",HF TRUST LTD ,SOCIAL SERVICES DAY CARE,Adult Social Care & Health,Personal Budget - Third Party,A61019
Royal Borough of Kingston,01/07/2023,90253799,"1,107.14",HF TRUST LTD ,SOCIAL SERVICES DAY CARE,Adult Social Care & Health,Personal Budget - Third Party,A61019
Royal Borough of Kingston,01/07/2023,90253803,664.29,HF TRUST LTD ,SOCIAL SERVICES DAY CARE,Adult Social Care & Health,Personal Budget - Third Party,A61019
Royal Borough of Kingston,25/07/2023,90254448,"1,450.00",REDACTED - PERSONAL DATA,PLS LANDLORDS,Place,PSL Payments To Landlords,A22031
Royal Borough of Kingston,25/07/2023,90254209,"1,093.50",REDACTED - PERSONAL DATA,PLS LANDLORDS,Place,PSL Payments To Landlords,A22031
Royal Borough of Kingston,25/07/2023,90254270,"1,314.00",REDACTED - PERSONAL DATA,PLS LANDLORDS,Place,PSL Payments To Landlords,A22031
Royal Borough of Kingston,25/07/2023,90254400,"1,093.50",REDACTED - PERSONAL DATA,PLS LANDLORDS,Place,PSL Payments To Landlords,A22031
Royal Borough of Kingston,25/07/2023,90254401,833.33,REDACTED - PERSONAL DATA,PLS LANDLORDS,Place,PSL Payments To Landlords,A22031
Royal Borough of Kingston,25/07/2023,90254596,"1,047.00",REDACTED - PERSONAL DATA,PLS LANDLORDS,Place,PSL Payments To Landlords,A22031
Royal Borough of Kingston,25/07/2023,90254597,"1,047.00",REDACTED - PERSONAL DATA,PLS LANDLORDS,Place,PSL Payments To Landlords,A22031
Royal Borough of Kingston,01/07/2023,90251337,"51,476.00",Hives Lodges Ltd,SOCIAL SERVICES - OTHER,Adult Social Care & Health,Personal Budget - Third Party,A61019
Royal Borough of Kingston,01/07/2023,90251338,"34,293.00",Hives Lodges Ltd,SOCIAL SERVICES - OTHER,Adult Social Care & Health,Personal Budget - Third Party,A61019
Royal Borough of Kingston,01/07/2023,90253656,"14,973.00",Hives Lodges Ltd,SOCIAL SERVICES - OTHER,Adult Social Care & Health,Personal Budget - Third Party,A61019
Royal Borough of Kingston,30/06/2023,70049664,910.00,HML INDEPENDENT MEDICAL ADVICE LTD,LEGAL & PROFESSIONAL SERVICES,Place,Professional Fees,A44066
Royal Borough of Kingston,31/01/2023,70050977,"8,000.00",HOME CONNECTIONS LETTINGS LTD,ACCOMMODATION - OTHER,Housing Revenue Account,Subscriptions,A47010
Royal Borough of Kingston,31/01/2023,70050977,"-3,600.00",HOME CONNECTIONS LETTINGS LTD,ACCOMMODATION - OTHER,Housing Revenue Account,Subscriptions,A47010
Royal Borough of Kingston,25/07/2023,90254485,"1,314.00",HOMEPATH MANAGEMENT LTD,PLS LANDLORDS,Place,PSL Payments To Landlords,A22031
Royal Borough of Kingston,25/07/2023,90254486,"1,400.00",HOMEPATH MANAGEMENT LTD,PLS LANDLORDS,Place,PSL Payments To Landlords,A22031
Royal Borough of Kingston,01/07/2023,90252545,"5,511.71",ACTIVE NEURO LTD,SOCIAL SERVICES RESIDENTIAL,Adult Social Care & Health,Independent Placements,A56006
Royal Borough of Kingston,25/07/2023,90254405,"1,094.00",REDACTED - PERSONAL DATA,PLS LANDLORDS,Place,PSL Payments To Landlords,A22031
Royal Borough of Kingston,25/07/2023,90254406,870.00,REDACTED - PERSONAL DATA,PLS LANDLORDS,Place,PSL Payments To Landlords,A22031
Royal Borough of Kingston,25/07/2023,90254407,"1,317.00",REDACTED - PERSONAL DATA,PLS LANDLORDS,Place,PSL Payments To Landlords,A22031
Royal Borough of Kingston,25/07/2023,90254526,900.00,REDACTED - PERSONAL DATA,PLS LANDLORDS,Place,PSL Payments To Landlords,A22031
Royal Borough of Kingston,12/06/2023,90248276,756.32,Humble Healthcare Ltd,SOCIAL SERVICES - OTHER,Adult Social Care & Health,Homecare - new framework,A56127
Royal Borough of Kingston,12/06/2023,90248634,819.35,Humble Healthcare Ltd,SOCIAL SERVICES - OTHER,Adult Social Care & Health,Homecare - new framework,A56127
Royal Borough of Kingston,19/06/2023,90250632,756.32,Humble Healthcare Ltd,SOCIAL SERVICES - OTHER,Adult Social Care & Health,Homecare - new framework,A56127
Royal Borough of Kingston,19/06/2023,90251033,819.35,Humble Healthcare Ltd,SOCIAL SERVICES - OTHER,Adult Social Care & Health,Homecare - new framework,A56127
Royal Borough of Kingston,26/06/2023,90251539,756.32,Humble Healthcare Ltd,SOCIAL SERVICES - OTHER,Adult Social Care & Health,Homecare - new framework,A56127
Royal Borough of Kingston,26/06/2023,90251938,819.35,Humble Healthcare Ltd,SOCIAL SERVICES - OTHER,Adult Social Care & Health,Homecare - new framework,A56127
Royal Borough of Kingston,03/07/2023,90253122,756.32,Humble Healthcare Ltd,SOCIAL SERVICES - OTHER,Adult Social Care & Health,Homecare - new framework,A56127
Royal Borough of Kingston,25/07/2023,90254438,"1,094.00",REDACTED - PERSONAL DATA,PLS LANDLORDS,Place,PSL Payments To Landlords,A22031
Royal Borough of Kingston,18/05/2023,70049559,667.34,Ideagen Gael Ltd,FINANCIAL / INSURANCE INSTNS,Place,IT Software Purchase,A45040
Royal Borough of Kingston,01/07/2023,90253655,"7,950.35",INDEPENDENCE HOMES LIMITED,SOCIAL SERVICES RESIDENTIAL,Adult Social Care & Health,Personal Budget - Third Party,A61019
Royal Borough of Kingston,01/07/2023,90253930,"8,983.31",INDEPENDENCE HOMES LIMITED,SOCIAL SERVICES RESIDENTIAL,Adult Social Care & Health,Personal Budget - Third Party,A61019
Royal Borough of Kingston,01/07/2023,90253974,"14,021.92",INDEPENDENCE HOMES LIMITED,SOCIAL SERVICES RESIDENTIAL,Adult Social Care & Health,Personal Budget - Third Party,A61019
Royal Borough of Kingston,06/01/2023,70049214,800.00,INDEPENDENT LIVING LTD,SOCIAL SERVICES - OTHER,Corporate & Communities,Grants Given For Capital Purposes,C20004
Royal Borough of Kingston,22/03/2023,70049356,"4,386.87",INDEPENDENT LIVING LTD,SOCIAL SERVICES - OTHER,Corporate & Communities,Grants Given For Capital Purposes,C20004
Royal Borough of Kingston,10/05/2023,70049359,720.00,INDEPENDENT LIVING LTD,SOCIAL SERVICES - OTHER,Corporate & Communities,Grants Given For Capital Purposes,C20004
Royal Borough of Kingston,22/03/2023,70049360,"3,739.65",INDEPENDENT LIVING LTD,SOCIAL SERVICES - OTHER,Corporate & Communities,Grants Given For Capital Purposes,C20004
Royal Borough of Kingston,22/06/2023,70050142,"1,348.13",INDEPENDENT LIVING LTD,SOCIAL SERVICES - OTHER,Corporate & Communities,Grants Given For Capital Purposes,C20004
Royal Borough of Kingston,09/06/2023,70050388,960.94,INDEPENDENT LIVING LTD,SOCIAL SERVICES - OTHER,Corporate & Communities,Grants Given For Capital Purposes,C20004
Royal Borough of Kingston,19/06/2023,90248349,630.27,INSPIRE MANAGEMENT GROUP LTD,SOCIAL SERVICES DAY CARE,Adult Social Care & Health,Homecare - new framework,A56127
Royal Borough of Kingston,19/06/2023,90248370,567.24,INSPIRE MANAGEMENT GROUP LTD,SOCIAL SERVICES DAY CARE,Adult Social Care & Health,Homecare - new framework,A56127
Royal Borough of Kingston,19/06/2023,90248391,"1,008.43",INSPIRE MANAGEMENT GROUP LTD,SOCIAL SERVICES DAY CARE,Adult Social Care & Health,Homecare - new framework,A56127
Royal Borough of Kingston,19/06/2023,90248671,810.34,INSPIRE MANAGEMENT GROUP LTD,SOCIAL SERVICES DAY CARE,Adult Social Care & Health,Homecare - new framework,A56127
Royal Borough of Kingston,19/06/2023,90248681,567.24,INSPIRE MANAGEMENT GROUP LTD,SOCIAL SERVICES DAY CARE,Adult Social Care & Health,Homecare - new framework,A56127
Royal Borough of Kingston,26/06/2023,90250712,630.27,INSPIRE MANAGEMENT GROUP LTD,SOCIAL SERVICES DAY CARE,Adult Social Care & Health,Homecare - new framework,A56127
Royal Borough of Kingston,26/06/2023,90250730,567.24,INSPIRE MANAGEMENT GROUP LTD,SOCIAL SERVICES DAY CARE,Adult Social Care & Health,Homecare - new framework,A56127
Royal Borough of Kingston,26/06/2023,90250753,"1,008.43",INSPIRE MANAGEMENT GROUP LTD,SOCIAL SERVICES DAY CARE,Adult Social Care & Health,Homecare - new framework,A56127
Royal Borough of Kingston,26/06/2023,90250910,630.27,INSPIRE MANAGEMENT GROUP LTD,SOCIAL SERVICES DAY CARE,Adult Social Care & Health,Homecare - new framework,A56127
Royal Borough of Kingston,26/06/2023,90251069,810.34,INSPIRE MANAGEMENT GROUP LTD,SOCIAL SERVICES DAY CARE,Adult Social Care & Health,Homecare - new framework,A56127
Royal Borough of Kingston,26/06/2023,90251080,567.24,INSPIRE MANAGEMENT GROUP LTD,SOCIAL SERVICES DAY CARE,Adult Social Care & Health,Homecare - new framework,A56127
Royal Borough of Kingston,03/07/2023,90251633,630.27,INSPIRE MANAGEMENT GROUP LTD,SOCIAL SERVICES DAY CARE,Adult Social Care & Health,Homecare - new framework,A56127
Royal Borough of Kingston,03/07/2023,90251655,567.24,INSPIRE MANAGEMENT GROUP LTD,SOCIAL SERVICES DAY CARE,Adult Social Care & Health,Homecare - new framework,A56127
Royal Borough of Kingston,03/07/2023,90251822,630.27,INSPIRE MANAGEMENT GROUP LTD,SOCIAL SERVICES DAY CARE,Adult Social Care & Health,Homecare - new framework,A56127
Royal Borough of Kingston,03/07/2023,90251973,810.34,INSPIRE MANAGEMENT GROUP LTD,SOCIAL SERVICES DAY CARE,Adult Social Care & Health,Homecare - new framework,A56127
Royal Borough of Kingston,03/07/2023,90251985,567.24,INSPIRE MANAGEMENT GROUP LTD,SOCIAL SERVICES DAY CARE,Adult Social Care & Health,Homecare - new framework,A56127
Royal Borough of Kingston,10/07/2023,90253192,630.27,INSPIRE MANAGEMENT GROUP LTD,SOCIAL SERVICES DAY CARE,Adult Social Care & Health,Homecare - new framework,A56127
Royal Borough of Kingston,10/07/2023,90253211,567.24,INSPIRE MANAGEMENT GROUP LTD,SOCIAL SERVICES DAY CARE,Adult Social Care & Health,Homecare - new framework,A56127
Royal Borough of Kingston,10/07/2023,90253364,630.27,INSPIRE MANAGEMENT GROUP LTD,SOCIAL SERVICES DAY CARE,Adult Social Care & Health,Homecare - new framework,A56127
Royal Borough of Kingston,10/07/2023,90253505,810.34,INSPIRE MANAGEMENT GROUP LTD,SOCIAL SERVICES DAY CARE,Adult Social Care & Health,Homecare - new framework,A56127
Royal Borough of Kingston,10/07/2023,90253517,567.24,INSPIRE MANAGEMENT GROUP LTD,SOCIAL SERVICES DAY CARE,Adult Social Care & Health,Homecare - new framework,A56127
Royal Borough of Kingston,06/06/2023,90248187,650.00,REDACTED - PERSONAL DATA,GRANTS & EX GRATIA PAYMENTS,Adult Social Care & Health,"Grants, Contributions & Donations",A47005
Royal Borough of Kingston,06/06/2023,90248178,500.00,REDACTED - PERSONAL DATA,GRANTS & EX GRATIA PAYMENTS,Adult Social Care & Health,"Grants, Contributions & Donations",A47005
Royal Borough of Kingston,25/07/2023,90254243,"1,056.67",REDACTED - PERSONAL DATA,PLS LANDLORDS,Place,PSL Payments To Landlords,A22031
Royal Borough of Kingston,24/07/2023,70050803,720.00,ISCO Metalwork Limited,CONSTRUCTION INDUSTRY,Corporate & Communities,Property Repairs & Maintenance & Alterations - Responsive,A20011
Royal Borough of Kingston,24/07/2023,70050804,599.00,ISCO Metalwork Limited,CONSTRUCTION INDUSTRY,Corporate & Communities,Property Repairs & Maintenance & Alterations - Responsive,A20011
Royal Borough of Kingston,19/06/2023,70049482,"226,761.95",ITC Concepts Limited,CONSTRUCTION INDUSTRY,Place,Payments to Contractors,C14000
Royal Borough of Kingston,11/07/2023,70050150,"366,470.23",ITC Concepts Limited,CONSTRUCTION INDUSTRY,Place,Payments to Contractors,C14000
Royal Borough of Kingston,07/07/2023,90250160,738.43,ITL North East Limited,INTERPRETERS,Corporate & Communities,Translating & Interpreter Services,A44050
Royal Borough of Kingston,07/07/2023,90250164,603.13,ITL North East Limited,INTERPRETERS,Corporate & Communities,Translating & Interpreter Services,A44050
Royal Borough of Kingston,01/07/2023,90252488,"2,508.52",J and LD Hayes Limited,SOCIAL SERVICES RESIDENTIAL,Adult Social Care & Health,Independent Placements,A56006
Royal Borough of Kingston,25/07/2023,90254421,"1,400.00",REDACTED - PERSONAL DATA,PLS LANDLORDS,Place,PSL Payments To Landlords,A22031
Royal Borough of Kingston,25/07/2023,90254246,"1,038.66",REDACTED - PERSONAL DATA,PLS LANDLORDS,Place,PSL Payments To Landlords,A22031
Royal Borough of Kingston,25/07/2023,90254219,"1,314.00",REDACTED - PERSONAL DATA,PLS LANDLORDS,Place,PSL Payments To Landlords,A22031
Royal Borough of Kingston,25/07/2023,90254491,870.30,J.P Stephens and Son London Limited,PLS LANDLORDS,Place,PSL Payments To Landlords,A22031
Royal Borough of Kingston,25/07/2023,90254350,897.00,REDACTED - PERSONAL DATA,PLS LANDLORDS,Place,PSL Payments To Landlords,A22031
Royal Borough of Kingston,31/07/2023,90254010,"2,222.43",REDACTED - PERSONAL DATA,SOCIAL SERVICES - PERSONAL BUDGETS,Adult Social Care & Health,Personal Budget - Third Party,A61019
Royal Borough of Kingston,03/07/2023,70049716,576.00,JCM LOCKSMITHS LTD,BUILDING MNTCE - SERVICES,Adult Social Care & Health,Equipment And Materials Purchase,A40000
Royal Borough of Kingston,01/07/2023,90252361,"4,315.64",JESMUND CARE LIMITED,SOCIAL SERVICES - PERSONAL BUDGETS,Adult Social Care & Health,Independent Placements,A56006
Royal Borough of Kingston,01/07/2023,90252595,"4,827.14",JESMUND CARE LIMITED,SOCIAL SERVICES - PERSONAL BUDGETS,Adult Social Care & Health,Independent Placements,A56006
Royal Borough of Kingston,25/07/2023,90254553,"1,286.17",REDACTED - PERSONAL DATA,PLS LANDLORDS,Place,PSL Payments To Landlords,A22031
Royal Borough of Kingston,25/07/2023,90254450,"1,075.00",JGPG LLP,PLS LANDLORDS,Place,PSL Payments To Landlords,A22031
Royal Borough of Kingston,25/07/2023,90254451,"1,075.00",JGPG LLP,PLS LANDLORDS,Place,PSL Payments To Landlords,A22031
Royal Borough of Kingston,25/07/2023,90254452,"1,075.00",JGPG LLP,PLS LANDLORDS,Place,PSL Payments To Landlords,A22031
Royal Borough of Kingston,25/07/2023,90254453,"1,075.00",JGPG LLP,PLS LANDLORDS,Place,PSL Payments To Landlords,A22031
Royal Borough of Kingston,25/07/2023,90254290,899.86,REDACTED - PERSONAL DATA,PLS LANDLORDS,Place,PSL Payments To Landlords,A22031
Royal Borough of Kingston,25/07/2023,90254182,"1,100.00",REDACTED - PERSONAL DATA,PLS LANDLORDS,Place,PSL Payments To Landlords,A22031
Royal Borough of Kingston,25/07/2023,90254225,"1,200.00",REDACTED - PERSONAL DATA,PLS LANDLORDS,Place,PSL Payments To Landlords,A22031
Royal Borough of Kingston,25/07/2023,90254436,"1,094.00",REDACTED - PERSONAL DATA,PLS LANDLORDS,Place,PSL Payments To Landlords,A22031
Royal Borough of Kingston,06/06/2023,90248171,500.00,REDACTED - PERSONAL DATA,GRANTS & EX GRATIA PAYMENTS,Adult Social Care & Health,"Grants, Contributions & Donations",A47005
Royal Borough of Kingston,06/06/2023,90248153,550.00,REDACTED - PERSONAL DATA,GRANTS & EX GRATIA PAYMENTS,Adult Social Care & Health,"Grants, Contributions & Donations",A47005
Royal Borough of Kingston,25/07/2023,90254560,"1,200.00",JOHN FOWLERS LLP,PLS LANDLORDS,Place,PSL Payments To Landlords,A22031
Royal Borough of Kingston,09/07/2023,70050507,"2,112.33",REDACTED - PERSONAL DATA,,Place,Arts Programme,A44286
Royal Borough of Kingston,06/06/2023,90248182,500.00,REDACTED - PERSONAL DATA,CHARITIES & VOLUNTARY ORGNS,Adult Social Care & Health,"Grants, Contributions & Donations",A47005
Royal Borough of Kingston,25/07/2023,90254414,"1,275.00",REDACTED - PERSONAL DATA,PLS LANDLORDS,Place,PSL Payments To Landlords,A22031
Royal Borough of Kingston,06/06/2023,90248156,500.00,REDACTED - PERSONAL DATA,GRANTS & EX GRATIA PAYMENTS,Adult Social Care & Health,"Grants, Contributions & Donations",A47005
Royal Borough of Kingston,25/07/2023,90254255,"1,675.00",REDACTED - PERSONAL DATA,PLS LANDLORDS,Place,PSL Payments To Landlords,A22031
Royal Borough of Kingston,01/07/2023,90253911,"9,349.42",JOYMAC CARE LTD,SOCIAL SERVICES RESIDENTIAL,Adult Social Care & Health,Personal Budget - Third Party,A61019
Royal Borough of Kingston,25/07/2023,90254374,"1,375.00",REDACTED - PERSONAL DATA,PLS LANDLORDS,Place,PSL Payments To Landlords,A22031
Royal Borough of Kingston,14/07/2023,70050612,"16,800.00",REDACTED - PERSONAL DATA,,Place,Arts Programme,A44286
Royal Borough of Kingston,25/07/2023,90254329,870.00,REDACTED - PERSONAL DATA,PLS LANDLORDS,Place,PSL Payments To Landlords,A22031
Royal Borough of Kingston,06/06/2023,90248183,500.00,REDACTED - PERSONAL DATA,CHARITIES & VOLUNTARY ORGNS,Adult Social Care & Health,"Grants, Contributions & Donations",A47005
Royal Borough of Kingston,01/07/2023,90253875,"7,688.13",REDACTED - PERSONAL DATA,SOCIAL SERVICES RESIDENTIAL,Adult Social Care & Health,Personal Budget - Third Party,A61019
Royal Borough of Kingston,01/07/2023,90253926,"2,337.75",REDACTED - PERSONAL DATA,SOCIAL SERVICES RESIDENTIAL,Adult Social Care & Health,Personal Budget - Third Party,A61019
Royal Borough of Kingston,01/07/2023,90253929,"6,062.95",REDACTED - PERSONAL DATA,SOCIAL SERVICES RESIDENTIAL,Adult Social Care & Health,Personal Budget - Third Party,A61019
Royal Borough of Kingston,01/07/2023,90253992,"2,995.75",REDACTED - PERSONAL DATA,SOCIAL SERVICES RESIDENTIAL,Adult Social Care & Health,Personal Budget - Third Party,A61019
Royal Borough of Kingston,01/07/2023,90254080,"1,035.57",REDACTED - PERSONAL DATA,SOCIAL SERVICES RESIDENTIAL,Adult Social Care & Health,Personal Budget - Third Party,A61019
Royal Borough of Kingston,01/07/2023,90254081,"6,241.15",REDACTED - PERSONAL DATA,SOCIAL SERVICES RESIDENTIAL,Adult Social Care & Health,Personal Budget - Third Party,A61019
Royal Borough of Kingston,01/07/2023,90254090,"9,077.41",REDACTED - PERSONAL DATA,SOCIAL SERVICES RESIDENTIAL,Adult Social Care & Health,Personal Budget - Third Party,A61019
Royal Borough of Kingston,01/07/2023,90254093,"1,004.13",REDACTED - PERSONAL DATA,SOCIAL SERVICES RESIDENTIAL,Adult Social Care & Health,Personal Budget - Third Party,A61019
Royal Borough of Kingston,25/07/2023,90254238,"1,314.12",REDACTED - PERSONAL DATA,PLS LANDLORDS,Place,PSL Payments To Landlords,A22031
Royal Borough of Kingston,25/07/2023,90254571,"1,460.00",REDACTED - PERSONAL DATA,PLS LANDLORDS,Place,PSL Payments To Landlords,A22031
Royal Borough of Kingston,25/07/2023,90254598,"1,047.00",REDACTED - PERSONAL DATA,PLS LANDLORDS,Place,PSL Payments To Landlords,A22031
Royal Borough of Kingston,12/06/2023,90248259,567.24,Kadar Care Service Ltd,SOCIAL SERVICES - OTHER,Adult Social Care & Health,Homecare - new framework,A56127
Royal Borough of Kingston,12/06/2023,90248432,567.24,Kadar Care Service Ltd,SOCIAL SERVICES - OTHER,Adult Social Care & Health,Homecare - new framework,A56127
Royal Borough of Kingston,12/06/2023,90248466,504.21,Kadar Care Service Ltd,SOCIAL SERVICES - OTHER,Adult Social Care & Health,Homecare - new framework,A56127
Royal Borough of Kingston,12/06/2023,90248669,756.32,Kadar Care Service Ltd,SOCIAL SERVICES - OTHER,Adult Social Care & Health,Homecare - new framework,A56127
Royal Borough of Kingston,12/06/2023,90248691,567.24,Kadar Care Service Ltd,SOCIAL SERVICES - OTHER,Adult Social Care & Health,Homecare - new framework,A56127
Royal Borough of Kingston,12/06/2023,90248796,567.24,Kadar Care Service Ltd,SOCIAL SERVICES - OTHER,Adult Social Care & Health,Homecare - new framework,A56127
Royal Borough of Kingston,12/06/2023,90249244,630.27,Kadar Care Service Ltd,SOCIAL SERVICES - OTHER,Adult Social Care & Health,Personal Budget - Third Party,A61019
Royal Borough of Kingston,19/06/2023,90250614,567.24,Kadar Care Service Ltd,SOCIAL SERVICES - OTHER,Adult Social Care & Health,Homecare - new framework,A56127
Royal Borough of Kingston,19/06/2023,90250811,567.24,Kadar Care Service Ltd,SOCIAL SERVICES - OTHER,Adult Social Care & Health,Homecare - new framework,A56127
Royal Borough of Kingston,19/06/2023,90250840,504.21,Kadar Care Service Ltd,SOCIAL SERVICES - OTHER,Adult Social Care & Health,Homecare - new framework,A56127
Royal Borough of Kingston,19/06/2023,90251054,817.69,Kadar Care Service Ltd,SOCIAL SERVICES - OTHER,Adult Social Care & Health,Homecare - new framework,A56127
Royal Borough of Kingston,19/06/2023,90251067,756.32,Kadar Care Service Ltd,SOCIAL SERVICES - OTHER,Adult Social Care & Health,Homecare - new framework,A56127
Royal Borough of Kingston,19/06/2023,90251091,567.24,Kadar Care Service Ltd,SOCIAL SERVICES - OTHER,Adult Social Care & Health,Homecare - new framework,A56127
Royal Borough of Kingston,19/06/2023,90251182,567.24,Kadar Care Service Ltd,SOCIAL SERVICES - OTHER,Adult Social Care & Health,Homecare - new framework,A56127
Royal Borough of Kingston,19/06/2023,90251241,630.27,Kadar Care Service Ltd,SOCIAL SERVICES - OTHER,Adult Social Care & Health,Personal Budget - Third Party,A61019
Royal Borough of Kingston,26/06/2023,90251522,567.24,Kadar Care Service Ltd,SOCIAL SERVICES - OTHER,Adult Social Care & Health,Homecare - new framework,A56127
Royal Borough of Kingston,26/06/2023,90251737,567.24,Kadar Care Service Ltd,SOCIAL SERVICES - OTHER,Adult Social Care & Health,Homecare - new framework,A56127
Royal Borough of Kingston,26/06/2023,90251767,504.21,Kadar Care Service Ltd,SOCIAL SERVICES - OTHER,Adult Social Care & Health,Homecare - new framework,A56127
Royal Borough of Kingston,26/06/2023,90251826,"1,152.49",Kadar Care Service Ltd,SOCIAL SERVICES - OTHER,Adult Social Care & Health,Homecare - new framework,A56127
Royal Borough of Kingston,26/06/2023,90251971,756.32,Kadar Care Service Ltd,SOCIAL SERVICES - OTHER,Adult Social Care & Health,Homecare - new framework,A56127
Royal Borough of Kingston,26/06/2023,90251995,567.24,Kadar Care Service Ltd,SOCIAL SERVICES - OTHER,Adult Social Care & Health,Homecare - new framework,A56127
Royal Borough of Kingston,26/06/2023,90252090,567.24,Kadar Care Service Ltd,SOCIAL SERVICES - OTHER,Adult Social Care & Health,Homecare - new framework,A56127
Royal Borough of Kingston,26/06/2023,90252152,630.27,Kadar Care Service Ltd,SOCIAL SERVICES - OTHER,Adult Social Care & Health,Personal Budget - Third Party,A61019
Royal Borough of Kingston,03/07/2023,90253084,504.21,Kadar Care Service Ltd,SOCIAL SERVICES - OTHER,Adult Social Care & Health,Homecare - new framework,A56127
Royal Borough of Kingston,03/07/2023,90253106,567.24,Kadar Care Service Ltd,SOCIAL SERVICES - OTHER,Adult Social Care & Health,Homecare - new framework,A56127
Royal Borough of Kingston,03/07/2023,90253270,567.24,Kadar Care Service Ltd,SOCIAL SERVICES - OTHER,Adult Social Care & Health,Homecare - new framework,A56127
Royal Borough of Kingston,03/07/2023,90253303,504.21,Kadar Care Service Ltd,SOCIAL SERVICES - OTHER,Adult Social Care & Health,Homecare - new framework,A56127
Royal Borough of Kingston,03/07/2023,90253503,756.32,Kadar Care Service Ltd,SOCIAL SERVICES - OTHER,Adult Social Care & Health,Homecare - new framework,A56127
Royal Borough of Kingston,03/07/2023,90253527,567.24,Kadar Care Service Ltd,SOCIAL SERVICES - OTHER,Adult Social Care & Health,Homecare - new framework,A56127
Royal Borough of Kingston,03/07/2023,90253619,567.24,Kadar Care Service Ltd,SOCIAL SERVICES - OTHER,Adult Social Care & Health,Homecare - new framework,A56127
Royal Borough of Kingston,03/07/2023,90254055,630.27,Kadar Care Service Ltd,SOCIAL SERVICES - OTHER,Adult Social Care & Health,Personal Budget - Third Party,A61019
Royal Borough of Kingston,03/07/2023,70049539,"3,125.00",KAINOS SOFTWARE LTD,BUSINESS & COMPUTER SYSTEMS,Corporate & Communities,IT Software Maintenance,A45045
Royal Borough of Kingston,31/07/2023,90254000,"2,904.52",REDACTED - PERSONAL DATA,SOCIAL SERVICES RESIDENTIAL,Adult Social Care & Health,Personal Budget - Third Party,A61019
Royal Borough of Kingston,25/07/2023,90254314,"1,314.00",REDACTED - PERSONAL DATA,PLS LANDLORDS,Place,PSL Payments To Landlords,A22031
Royal Borough of Kingston,25/07/2023,90254346,"1,094.34",REDACTED - PERSONAL DATA,PLS LANDLORDS,Place,PSL Payments To Landlords,A22031
Royal Borough of Kingston,06/06/2023,90248160,650.00,REDACTED - PERSONAL DATA,CHARITIES & VOLUNTARY ORGNS,Adult Social Care & Health,"Grants, Contributions & Donations",A47005
Royal Borough of Kingston,01/07/2023,90252487,"3,623.50",KATHRYNS HOUSE CARE HOME,SOCIAL SERVICES RESIDENTIAL,Adult Social Care & Health,Independent Placements,A56006
Royal Borough of Kingston,25/07/2023,90254353,"1,314.00",REDACTED - PERSONAL DATA,PLS LANDLORDS,Place,PSL Payments To Landlords,A22031
Royal Borough of Kingston,22/06/2023,70049215,"2,700.00",KC CHESSINGTON LIMITED,OFFICE SERVICES,Corporate & Communities,Transfer (to) Earmarked Reserves,A85001
Royal Borough of Kingston,25/07/2023,90254272,"1,100.00",REDACTED - PERSONAL DATA,PLS LANDLORDS,Place,PSL Payments To Landlords,A22031
Royal Borough of Kingston,16/03/2023,70043978,"2,091.32",KENT COUNTY COUNCIL,UTILITIES,Adult Social Care & Health,Electricity,A21000
Royal Borough of Kingston,15/05/2023,70047448,"4,269.60",KENT COUNTY COUNCIL,UTILITIES,Housing Revenue Account,Gas,A21003
Royal Borough of Kingston,17/05/2023,70047483,"4,676.85",KENT COUNTY COUNCIL,UTILITIES,Housing Revenue Account,Electricity,A21000
Royal Borough of Kingston,17/05/2023,70047495,"1,037.82",KENT COUNTY COUNCIL,UTILITIES,Corporate & Communities,Electricity - Street Lighting,A21002
Royal Borough of Kingston,17/05/2023,70047497,"7,729.32",KENT COUNTY COUNCIL,UTILITIES,Housing Revenue Account,Electricity,A21000
Royal Borough of Kingston,17/05/2023,70047500,"2,240.68",KENT COUNTY COUNCIL,UTILITIES,Housing Revenue Account,Electricity,A21000
Royal Borough of Kingston,17/05/2023,70047501,"1,799.51",KENT COUNTY COUNCIL,UTILITIES,Housing Revenue Account,Electricity,A21000
Royal Borough of Kingston,17/05/2023,70047502,983.64,KENT COUNTY COUNCIL,UTILITIES,Corporate & Communities,Electricity - Street Lighting,A21002
Royal Borough of Kingston,17/05/2023,70047503,"1,959.65",KENT COUNTY COUNCIL,UTILITIES,Housing Revenue Account,Electricity,A21000
Royal Borough of Kingston,17/05/2023,70047524,972.76,KENT COUNTY COUNCIL,UTILITIES,Housing Revenue Account,Electricity,A21000
Royal Borough of Kingston,17/05/2023,70047524,"2,918.27",KENT COUNTY COUNCIL,UTILITIES,Housing Revenue Account,Electricity,A21000
Royal Borough of Kingston,17/05/2023,70047533,"2,142.88",KENT COUNTY COUNCIL,UTILITIES,Housing Revenue Account,Electricity,A21000
Royal Borough of Kingston,17/05/2023,70047533,535.72,KENT COUNTY COUNCIL,UTILITIES,Housing Revenue Account,Electricity,A21000
Royal Borough of Kingston,17/05/2023,70047626,"1,891.48",KENT COUNTY COUNCIL,UTILITIES,Adult Social Care & Health,Electricity,A21000
Royal Borough of Kingston,17/05/2023,70048743,"2,562.58",KENT COUNTY COUNCIL,UTILITIES,Corporate & Communities,Electricity,A21000
Royal Borough of Kingston,17/05/2023,70048743,36.09,KENT COUNTY COUNCIL,UTILITIES,Corporate & Communities,TMS - General,A56085
Royal Borough of Kingston,17/05/2023,70048743,360.93,KENT COUNTY COUNCIL,UTILITIES,Corporate & Communities,Electricity,A21000
Royal Borough of Kingston,17/05/2023,70048743,72.19,KENT COUNTY COUNCIL,UTILITIES,Corporate & Communities,Miscellaneous Expenses,A49000
Royal Borough of Kingston,17/05/2023,70048743,577.48,KENT COUNTY COUNCIL,UTILITIES,Corporate & Communities,Electricity,A21000
Royal Borough of Kingston,13/06/2023,70048759,"1,410.01",KENT COUNTY COUNCIL,UTILITIES,Housing Revenue Account,Gas,A21003
Royal Borough of Kingston,13/06/2023,70048760,"2,597.34",KENT COUNTY COUNCIL,UTILITIES,Housing Revenue Account,Gas,A21003
Royal Borough of Kingston,13/06/2023,70048762,722.73,KENT COUNTY COUNCIL,UTILITIES,Housing Revenue Account,Gas,A21003
Royal Borough of Kingston,13/06/2023,70048764,828.47,KENT COUNTY COUNCIL,UTILITIES,Housing Revenue Account,Gas,A21003
Royal Borough of Kingston,13/06/2023,70048768,644.46,KENT COUNTY COUNCIL,UTILITIES,Adult Social Care & Health,Gas,A21003
Royal Borough of Kingston,13/06/2023,70048772,"2,810.46",KENT COUNTY COUNCIL,UTILITIES,Housing Revenue Account,Gas,A21003
Royal Borough of Kingston,13/06/2023,70048774,"4,038.88",KENT COUNTY COUNCIL,UTILITIES,Housing Revenue Account,Gas,A21003
Royal Borough of Kingston,14/06/2023,70048779,520.90,KENT COUNTY COUNCIL,UTILITIES,Place,Electricity,A21000
Royal Borough of Kingston,14/06/2023,70048922,907.29,KENT COUNTY COUNCIL,UTILITIES,Housing Revenue Account,Electricity,A21000
Royal Borough of Kingston,14/06/2023,70048923,285.93,KENT COUNTY COUNCIL,UTILITIES,Housing Revenue Account,Electricity,A21000
Royal Borough of Kingston,14/06/2023,70048923,285.93,KENT COUNTY COUNCIL,UTILITIES,Housing Revenue Account,Electricity,A21000
Royal Borough of Kingston,14/06/2023,70048923,285.93,KENT COUNTY COUNCIL,UTILITIES,Housing Revenue Account,Electricity,A21000
Royal Borough of Kingston,14/06/2023,70048924,"1,336.94",KENT COUNTY COUNCIL,UTILITIES,Housing Revenue Account,Electricity,A21000
Royal Borough of Kingston,14/06/2023,70048930,"1,061.84",KENT COUNTY COUNCIL,UTILITIES,Housing Revenue Account,Electricity,A21000
Royal Borough of Kingston,14/06/2023,70048930,455.07,KENT COUNTY COUNCIL,UTILITIES,Housing Revenue Account,Electricity,A21000
Royal Borough of Kingston,14/06/2023,70048932,"1,459.45",KENT COUNTY COUNCIL,UTILITIES,Housing Revenue Account,Electricity,A21000
Royal Borough of Kingston,14/06/2023,70048934,870.18,KENT COUNTY COUNCIL,UTILITIES,Place,Electricity,A21000
Royal Borough of Kingston,14/06/2023,70048935,"1,413.06",KENT COUNTY COUNCIL,UTILITIES,Housing Revenue Account,Electricity,A21000
Royal Borough of Kingston,14/06/2023,70048935,"3,297.13",KENT COUNTY COUNCIL,UTILITIES,Housing Revenue Account,Electricity,A21000
Royal Borough of Kingston,14/06/2023,70048938,841.26,KENT COUNTY COUNCIL,UTILITIES,Housing Revenue Account,Electricity,A21000
Royal Borough of Kingston,14/06/2023,70048939,"9,100.02",KENT COUNTY COUNCIL,UTILITIES,Housing Revenue Account,Electricity,A21000
Royal Borough of Kingston,14/06/2023,70048940,"1,166.56",KENT COUNTY COUNCIL,UTILITIES,Housing Revenue Account,Electricity,A21000
Royal Borough of Kingston,14/06/2023,70048941,497.56,KENT COUNTY COUNCIL,UTILITIES,Housing Revenue Account,Electricity,A21000
Royal Borough of Kingston,14/06/2023,70048941,"1,492.68",KENT COUNTY COUNCIL,UTILITIES,Housing Revenue Account,Electricity,A21000
Royal Borough of Kingston,14/06/2023,70048942,"2,133.35",KENT COUNTY COUNCIL,UTILITIES,Housing Revenue Account,Electricity,A21000
Royal Borough of Kingston,14/06/2023,70048942,533.34,KENT COUNTY COUNCIL,UTILITIES,Housing Revenue Account,Electricity,A21000
Royal Borough of Kingston,14/06/2023,70049151,993.92,KENT COUNTY COUNCIL,UTILITIES,Place,Gas,A21003
Royal Borough of Kingston,14/06/2023,70049152,"4,385.05",KENT COUNTY COUNCIL,UTILITIES,Corporate & Communities,Electricity,A21000
Royal Borough of Kingston,14/06/2023,70049153,"1,320.67",KENT COUNTY COUNCIL,UTILITIES,Place,Electricity,A21000
Royal Borough of Kingston,14/06/2023,70049154,"1,583.20",KENT COUNTY COUNCIL,UTILITIES,Place,Electricity,A21000
Royal Borough of Kingston,14/06/2023,70049159,"4,184.73",KENT COUNTY COUNCIL,UTILITIES,Place,Electricity,A21000
Royal Borough of Kingston,14/06/2023,70049160,"2,018.25",KENT COUNTY COUNCIL,UTILITIES,Adult Social Care & Health,Electricity,A21000
Royal Borough of Kingston,14/06/2023,70049161,"1,520.08",KENT COUNTY COUNCIL,UTILITIES,Housing Revenue Account,Gas,A21003
Royal Borough of Kingston,14/06/2023,70049162,"1,657.91",KENT COUNTY COUNCIL,UTILITIES,Housing Revenue Account,Gas,A21003
Royal Borough of Kingston,14/06/2023,70049163,"1,131.58",KENT COUNTY COUNCIL,UTILITIES,Place,Electricity,A21000
Royal Borough of Kingston,14/06/2023,70049164,"1,649.08",KENT COUNTY COUNCIL,UTILITIES,Place,Electricity,A21000
Royal Borough of Kingston,14/06/2023,70049364,"3,067.56",KENT COUNTY COUNCIL,UTILITIES,Corporate & Communities,Electricity,A21000
Royal Borough of Kingston,14/06/2023,70049379,"4,889.18",KENT COUNTY COUNCIL,UTILITIES,Place,Gas,A21003
Royal Borough of Kingston,14/06/2023,70049381,"5,174.64",KENT COUNTY COUNCIL,UTILITIES,Place,Gas,A21003
Royal Borough of Kingston,14/06/2023,70049382,"3,165.99",KENT COUNTY COUNCIL,UTILITIES,Place,Gas,A21003
